{"text_format":"1","workbook":"xlsx","n_sheets":13,"sheets":["ISS","Hoja2","TABLA","INFORMACION ","HONORARIOS ","DERECHO DE SALA ","INSUMOS MEDICOS","MATERIALES","Facturacion ","Facturacion Multiple","Hoja1","Hoja4","Hoja3"],"not_rendered":{"charts":0,"images":0,"macros":1,"external_links":1,"defined_names":6,"comments":1,"pivot_tables":0},"unopened":[],"bounds":{"document_bytes":16777216,"sheet_cells":100000,"rows_first":2000,"rows_last":500,"rows_between":2000,"halvings":0,"cell_chars":16384,"cell_head_chars":4096},"cells_cut":0,"cells_raw":0,"read":"whole","date_system":"1900"}

{"sheet":"ISS","index":0,"n_rows":1021,"n_cols":3,"rows_kept":1021,"cut":false,"hidden":false,"merged":[]}
["CODIGO","PROCEDIMIENTO","UVR"]
[13106,"DRENAJE DE ESPACIO SUBDURAL, POR DERIVACION SUBDURO PERITONEAL ",210]
[22101,"DERIVACION DE VENTRICULO A CISTERNA MAGNA ",210]
[22202,"DERIVACION VENTRICULAR A ESPACIO SUBARACNOIDEO CERVICAL [TORKILSEN] ",210]
[22300,"COLOCACION DE CATETER VENTRICULO PERITONEAL, SIN VALVULA SOD ",210]
[23201,"DERIVACION VENTRICULOATRIAL ",210]
[23401,"VENTRICULOPERITONEOSTOMIA ",210]
[23402,"DERIVACION CISTO PERITONEAL [QUISTE VENTRICULAR A PERITONEO] ",210]
[23500,"DERIVACION VENTRICULAR AL APARATO URINARIO SOD ",210]
[549003,"COLOCACION DE CATETERES PARA DERIVACION VENTRICULOPERITONEAL Y PERITONEOVENTRICULAR ",210]
[13105,"DRENAJE DE ESPACIO SUBARACNOIDEO,  POR  DERIVACION CISTO PERITONEAL ",210]
[24100,"IRRIGACION DE DERIVACION VENTRICULAR SOD ",120]
[24201,"REEMPLAZO PARCIAL DE DERIVACION ",120]
[24202,"REEMPLAZO TOTAL DE DERIVACION ",140]
[24300,"RETIRO DE DERIVACION SOD ",125]
[37100,"DERIVACION SIRINGO PERITONEAL ESPINAL SOD ",190]
[37200,"DERIVACION SIRINGO SUBDURAL ESPINAL SOD ",190]
[37300,"DERIVACION LUMBO PERITONEAL SOD ",190]
[37400,"DERIVACION LUMBAR EXTERNA SOD ",190]
[37500,"DERIVACION SIRINGO PLEURAL ESPINAL SOD ",190]
[22201,"COLOCACION DE CATETER VENTRICULAR AL EXTERIOR ",150]
[28302,"COLOCACION EPIDURAL DEL ELECTRODO DE NEUROESTIMULACION INTRACRANEAL ",290]
[28304,"IMPLANTACION DE RECEPTOR ELECTROENCEFALOGRAFICO POR TREPANACION ",290]
[28303,"IMPLANTACION PARENQUIMATOSA DEL ELECTRODO DE NEUROESTIMULACION INTRACRANEAL ",230]
[19100,"LOBECTOMIA POR CRANEOTOMIA SOD ",375]
[19200,"LOBECTOMIA POR CRANIECTOMIA SOD ",375]
[18101,"HEMISFERECTOMIA CEREBRAL POR CRANEOTOMIA ",610]
[18201,"HEMISFERECTOMIA CEREBELOSA POR CRANEOTOMIA SUBOCCIPITAL ",610]
[44101,"DESCOMPRESION NEUROVASCULAR DE NERVIO TRIGEMINAL, POR CRANEOTOMIA SUBOCCIPITAL ",355]
[44203,"DESCOMPRESION NEUROVASCULAR DE NERVIOS IX Y X ",355]
[44204,"DESCOMPRESION NEUROVASCULAR DE NERVIO ACUSTICO VESTIBULAR ",355]
[44205,"DESCOMPRESION  INTRACANALICULAR DE NERVIO FACIAL ",355]
[44206,"DESCOMPRESION NEUROVASCULAR DE NERVIO FACIAL , POR CRANEOTOMIA SUBOCCIPITAL ",355]
[44207,"DESCOMPRESION DE NERVIO FACIAL INTRATEMPORAL VIA TRANSLABERINTICA ",355]
[44208,"DESCOMPRESION DE NERVIO FACIAL INTRATEMPORAL VIA TRANSMASTOIDEA ",355]
[13202,"SECCION DE TEJIDO CEREBRAL (TRACTOS CEREBRALES) , POR CRANEOTOMIA    (132) ",335]
[11304,"BIOPSIA ESTEREOTAXICA DE CEREBRO    (131) ",250]
[17002,"DRENAJE DE COLECCIONES INTRACEREBRALES , GUIADO POR ESTEREOTAXIA     (2) ",250]
[17005,"DRENAJE DE COLECCIONES INTRACEREBRALES DE FOSA POSTERIOR , GUIADO POR ESTEREOTAXIA    (2) ",250]
[13201,"SECCION DE TEJIDO CEREBRAL (TRACTOS CEREBRALES) POR ABLACION [TERMOLESION] ESTEREOTAXICA ",420]
[14101,"TALAMOTOMIA POR ESTEREOTAXIA [ESTIMULACION Y/O ABLACION DE UNO DE SUS NUCLEOS] ",420]
[14201,"PALIDOTOMIA POR ESTEREOTAXIA ",420]
[28301,"IMPLANTACION DE NEUROESTIMULADOR  POR CRANEOTOMIA GUIADA POR ESTEREOTAXIA ",320]
[28601,"INJERTO INTRACEREBRAL DE TEJIDO SUPRARRENAL ",320]
[12101,"CRANEALIZACION DE SENO FRONTAL ",230]
[21101,"CORRECCION DE DESGARRO DURAL POST TRAUMATICO EN BOVEDA CRANEANA, POR CRANEOTOMIA ",135]
[21102,"CORRECCION DE DESGARRO DURAL POST TRAUMATICO EN BOVEDA CRANEANA, CON PLASTIA DURAL ",135]
[21103,"CORRECCION DE DESGARRO DURAL EN BASE DE CRANEO, POR CRANEOTOMIA ",135]
[21104,"CORRECCION DE DESGARRO DURAL EN BASE DE CRANEO, CON PLASTIA AUTOLOGA O  HETEROLOGA, POR CRANEOTOMIA ",135]
[21202,"CORRECCION FISTULA LCR EN BOVEDA CRANEANA, POR DUROPLASTIA ",135]
[35401,"PLASTIA O INJERTO DE MENINGE ESPINAL ",135]
[20500,"INSERCION O SUSTITUCION DE PLACA O MALLA CRANEAL (METALICA, ACRILICA) SOD ",190]
[20601,"CORRECCION DISPLASIA FIBROSA POR CRANEOPLASTIA ",190]
[21201,"CORRECCION FISTULA LCR EN BOVEDA CRANEANA, POR CRANEOTOMIA Y CRANEOPLASTIA ",365]
[21204,"CORRECCION FISTULA LCR EN BASE DE CRANEO ANTERIOR, POR VIA TRANSESFENOIDAL ",325]
[21207,"CORRECCION FISTULA LCR EN BASE DE CRANEO MEDIO, POR VIA TRANSESFENOIDAL ",325]
[21203,"CORRECCION FISTULA LCR EN BASE DE CRANEO ANTERIOR, POR VIA SUBFRONTAL ",250]
[21206,"CORRECCION FISTULA LCR EN BASE DE CRANEO MEDIO, POR CRANIECTOMIA ",250]
[21208,"CORRECCION FISTULA EN LCR EN BASE DE CRANEO POSTERIOR POR VIA SUBOCCIPITAL ",250]
[11302,"BIOPSIA ABIERTA ( CRANEOTOMIA) DE CEREBRO ",210]
[11303,"BIOPSIA  DE CEREBRO POR TREPANACION ",210]
[71300,"BIOPSIA DE HIPOFISIS POR VIA TRANSFRONTAL SOD ",210]
[71700,"BIOPSIA DE GLANDULA PINEAL SOD ",210]
[17209,"DRENAJE DE QUISTE TUMORAL SUPRATENTORIAL ",385]
[168401,"DESCOMPRESIÓN DE ÓRBITA VIA TECHO DE ORBITA (TECNICA TRANSCRANEANA  DE NAFZINGHER) ",350]
[168402,"DESCOMPRESIÓN DE ÓRBITA VIA LATERAL (TECNICA DE KROMLIEN) ",275]
[168403,"DESCOMPRESIÓN DE ÓRBITA VIA INFERIOR Y MEDIAL (TECNICA DE WALSHOUGURA)VIA TRANSMAXILAR ENDOSCOPICA ",275]
[15104,"CORRECCION DE DISPLASIA FIBROSA DEL CRANEO POR CRANIECTOMIA ",315]
[28201,"IMPLANTACION DE CATETER INTRACEREBRAL    (3) ",75]
[15101,"RESECCION TUMOR OSEO, POR CRANEOTOMIA ",85]
[15102,"RESECCION TUMOR OSEO, POR CRANIECTOMIA ",100]
[20401,"CORRECCION DE DEFECTO OSEO PREEXISTENTE POR CRANEOPLASTIA, CON INJERTO AUTOLOGO O HETEROLOGO ",240]
[16101,"RESECCION TUMOR DE MENINGE CEREBRAL, POR CRANEOTOMIA ",190]
[16102,"RESECCION TUMOR  DE MENINGE CEREBRAL, POR CRANIECTOMIA CON DUROPLASTIA Y CRANEOPLASTIA ",305]
[16201,"RESECCION TUMOR DE LA HOZ , POR CRANEOTOMIA Y PLASTIA ",305]
[16301,"RESECCION TUMOR DEL TENTORIO, POR CRANEOTOMIA ",190]
[15201,"RESECCION DE TUMOR DE LA BASE DEL CRANEO, FOSA ANTERIOR, POR VIA CRANEOFACIAL ANTERIOR ",730]
[15203,"RESECCION DE TUMOR DE LA BASE DEL CRANEO, FOSA ANTERIOR, POR VIA  ANTEROLATERAL Y RINOTOMIA LATERAL ",730]
[15204,"RESECCION DE TUMOR DE LA BASE DEL CRANEO, FOSA ANTERIOR, POR VIA  TRANSZIGOMATICA Y TRANSPALATAL ",730]
[15302,"RESECCION DE TUMOR DE LA BASE DEL CRANEO, FOSA MEDIA, POR ABORDAJE TRANSMAXILAR ",730]
[15305,"RESECCION DE TUMOR DE LA BASE DEL CRANEO, FOSA MEDIA, POR VIA SUBFRONTAL EXTENDIDA ",730]
[15306,"RESECCION DE TUMOR DE LA BASE DEL CRANEO, FOSA MEDIA  POR VIA SUBTEMPORAL ",700]
[15308,"RESECCION DE TUMOR DE LA BASE DEL CRANEO, FOSA MEDIA , POR VIA SUBFRONTAL ",730]
[15310,"RESECCION DE TUMOR DE LA BASE DEL CRANEO, FOSA MEDIA , POR VIA TRANSESFENOIDAL ",820]
[17202,"RESECCION DE TUMOR SUPRATENTORIAL HEMISFERICO, POR CRANEOTOMIA OSTEOPLASTICA  ",815]
[17204,"RESECCION DE TUMOR SUPRATENTORIAL HEMISFERICO, CON ESTIMULACION CORTICAL  ",700]
[17601,"RESECCION DE LESIONES VENTRICULARES SUPRATENTORIALES, POR CRANEOTOMIA ",700]
[15202,"RESECCION DE TUMOR DE LA BASE DEL CRANEO, FOSA ANTERIOR, POR VIA CRANEOFACIAL ANTEROLATERAL ",730]
[15301,"RESECCION DE TUMOR DE LA BASE DEL CRANEO, FOSA MEDIA, POR CRANEOTOMIA FRONTAL Y OSTEOTOMIA FRONTO ETMOIDAL ",730]
[15304,"RESECCION DE TUMOR DE LA BASE DEL CRANEO, FOSA MEDIA, POR VIA SUBTEMPORAL Y OSTEOTOMIA ZIGOMATICA ",730]
[15307,"RESECCION DE TUMOR DE LA BASE DEL CRANEO, FOSA MEDIA, POR VIA PREAURICULAR INFRATENTORIAL Y CERVICOTOMIA ",730]
[15309,"RESECCION DE TUMOR DE LA BASE DEL CRANEO, FOSA MEDIA , POR ORBITOTOMIA LATERAL ",730]
[17201,"RESECCION DE TUMOR SUPRATENTORIAL HEMISFERICO, POR CRANEOTOMIA  ",730]
[15311,"RESECCION DE TUMOR DE LA BASE DEL CRANEO, FOSA MEDIA , POR VIA TRANSESFENOIDAL ENDOSCOPICA    (134) ",685]
[71400,"BIOPSIA DE HIPOFISIS POR VIA TRANSESFENOIDAL SOD    (134) ",635]
[76200,"ESCISION PARCIAL DE HIPOFISIS VIA TRANSESFENOIDAL SOD    (134) ",635]
[76500,"ESCISION TOTAL DE HIPOFISIS POR VIA TRANSESFENOIDAL SOD    (134) ",685]
[17401,"RESECCION DE TUMOR DE LINEA MEDIA SUPRATENTORIAL, POR CRANEOTOMIA  ",945]
[17801,"RESECCION DE LESIONES INTRAVENTICULARES DE LINEA MEDIA , POR CRANEOTOMIA",945]
[75300,"ESCISION PARCIAL DE GLANDULA PINEAL SOD ",945]
[75400,"ESCISION TOTAL DE GLANDULA PINEAL (PINEALECTOMIA) SOD ",945]
[76100,"ESCISION PARCIAL DE HIPOFISIS POR VIA TRANSFRONTAL SOD ",945]
[76400,"ESCISION TOTAL DE HIPOFISIS POR VIA TRANSFRONTAL SOD ",945]
[17301,"RESECCION TUMOR INTRACEREBELOSO, POR CRANEOTOMIA SUBOCCIPITAL ",945]
[17501,"RESECCION DE TUMOR DE LINEA MEDIA INFRATENTORIAL, EXTRA AXIAL, POR CRANEOTOMIA SUBOCCIPITAL  ",945]
[17504,"RESECCION DE LESIONES EXOFITICAS SOLIDAS EN TRONCO CEREBRAL ( EXTRA AXIALES), POR CRANEOTOMIA SUBOCCIPITAL ",945]
[17505,"RESECCION DE LESIONES EXOFITICAS SOLIDAS EN TRONCO CEREBRAL ( EXTRA AXIALES), POR CRANEOTOMIA DE FOSA MEDIA ",945]
[17508,"RESECCION DE LESIONES SOLIDAS O QUISTICAS  INTRAAXIALES (TRONCO CEREBRAL), POR CRANEOTOMIA SUBOCCIPITAL ",945]
[17509,"RESECCION DE LESIONES SOLIDAS O QUISTICAS  INTRAAXIALES (TRONCO CEREBRAL), POR CRANEOTOMIA SUBTEMPORAL ",945]
[15401,"RESECCION DE TUMOR DE LA BASE DEL CRANEO, FOSA POSTERIOR, POR VIA EXTREMO LATERAL ",945]
[15402,"RESECCION DE TUMOR DE LA BASE DEL CRANEO, FOSA POSTERIOR, POR VIA FRONTO ORBITO ETMOIDAL ",945]
[15403,"RESECCION DE TUMOR DE LA BASE DEL CRANEO, FOSA POSTERIOR, POR VIA SUBTEMPORAL PREAURICULAR INFRATEMPORAL Y CERVICOTOMIA TRANSMANDIBULAR ",945]
[20201,"ESQUIRLECTOMIA CRANEAL A TRAVES DE TREPANACION    (1) ",220]
[20202,"DESBRIDAMIENTO DE FRACTURA COMPUESTA (CONMINUTA) DE CRANEO    (1) ",355]
[20204,"REDUCCION DE FRACTURA COMPUESTA (CONMINUTA) DE CRANEO, CON PLASTIA DURAL Y LIMPIEZA HEMOSTASIA CEREBRAL (DESBRIDAMIENTO) EN UN SOLO TIEMPO   ",435]
[12100,"INCISION  Y DRENAJE DE SENO FRONTAL SOD *    (371) ",375]
[12401,"DRENAJE DE ESPACIO EPIDURAL SUPRATENTORIAL, POR  CRANEOTOMIA ",375]
[12410,"EXTRACCION DE CUERPO EXTRAÑO INTRACRANEAL POR CRANEOTOMIA ",375]
[12502,"DRENAJE DE COLECCIÓN EPIDURAL SUPRATENTORIAL, POR  CRANIECTOMIA ",555]
[12503,"DRENAJE DE COLECCIÓN EPIDURAL FOSA POSTERIOR, POR CRANIECTOMIA ",555]
[13103,"DRENAJE  DE ESPACIO SUBDURAL  EN FOSA POSTERIOR,  POR CRANIECTOMIA ",555]
[13110,"DRENAJE DE ESPACIO SUBDURAL CON REPARO DE SENOS DURALES ROTOS ",455]
[12402,"DRENAJE DE ESPACIO EPIDURAL FOSA POSTERIOR, POR CRANEOTOMIA ",375]
[13101,"DRENAJE DE ESPACIO SUBDURAL , POR CRANEOTOMIA ",285]
[13102,"DRENAJE DE ESPACIO SUBDURAL ,  POR  TREPANACION ",285]
[13104,"DRENAJE DE ESPACIO SUBDURAL  , POR DRENAJE EXTERNO ",285]
[17001,"DRENAJE DE COLECCIONES INTRACEREBRALES , POR CRANEOTOMIA ",525]
[17303,"DRENAJE DE QUISTE TUMORAL INFRATENTORIAL ",590]
[17805,"DRENAJE DE QUISTE TUMORAL DE LINEA MEDIA INTRAVENTICULAR ",590]
[17004,"DRENAJE DE COLECCIONES INTRACEREBRALES DE FOSA POSTERIOR  POR CRANEOTOMIA SUBOCCIPITAL ",690]
[12501,"SECUESTRECTOMIA DE CRANEO, POR CRANIECTOMIA    (171) ",90]
[385104,"OCLUSION, PINZAMIENTO  O LIGADURA DE ARTERIA CEREBRAL MEDIA ",350]
[385102,"OCLUSION, PINZAMIENTO  O LIGADURA DE ARTERIA CAROTIDA INTRACEREBRAL ",350]
[385103,"OCLUSION, PINZAMIENTO  O LIGADURA DE CAROTIDA EN SENO CAVERNOSO ",350]
[385111,"OCLUSION, PINZAMIENTO  O LIGADURA DE LESION  EN ARTERIA VERTEBRAL ",350]
[385101,"OCLUSION, PINZAMIENTO  O LIGADURA DE ARTERIAS DE CIRCULACION CEREBRAL ANTERIOR ",685]
[385105,"OCLUSION, PINZAMIENTO  O LIGADURA DE VASOS MENINGEOS Y/O SENOS DURALES ",685]
[385110,"OCLUSION, PINZAMIENTO  O LIGADURA DE ARTERIAS DE CIRCULACION CEREBRAL POSTERIOR ",685]
[383101,"RESECCION DE MALFORMACION ARTERIOVENOSA SUPRATENTORIAL SPETZLER I Y II ",855]
[383102,"RESECCION DE MALFORMACION ARTERIOVENOSA SUPRATENTORIAL SPETZLER III, IV y V",855]
[383103,"RESECCION DE MALFORMACIONES ARTERIO VENOSAS DE LINEA MEDIA E INTRAVENTRICULAR ",855]
[383104,"RESECCION DE MALFORMACION ARTERIOVENOSA INFRATENTORIAL SPETZLER I Y II ",880]
[383105,"RESECCION DE MALFORMACION ARTERIOVENOSA INFRATENTORIAL SPETZLER  III, IV y V",880]
[381203,"ENDARTERECTOMIA DE CAROTIDA INTERNA PORCION CERVICAL (76) ",365]
[380102,"TROMBOEMBOLECTOMIA DE COMUNICANTE ANTERIOR    (367) ",560]
[380103,"TROMBOEMBOLECTOMIA DE CAROTIDA INTERNA SUPRACLINOIDEA    (367) ",560]
[380104,"TROMBOEMBOLECTOMIA DE OFTALMICA    (367) ",560]
[383201,"RESECCION DE MALFORMACION ARTERIOVENOSA DE CUERO CABELLUDO    (172) ",165]
[20103,"CORRECCION DE CRANEO ESTENOSIS MULTIPLE CON BRAQUICEFALIA, POR CRANICECTOMIA",380]
[20105,"CORRECCION DE CRANEO ESTENOSIS CON ALTERACION CRANEO FACIAL COMPLEJA, POR CRANEOTOMIA ",380]
[20203,"REDUCCION DE FRACTURA CRANEAL (HUNDIMIENTO SIN COMPROMISO DE DURA) CON ESQUIRLECTOMIA Y CRANEOPLASTIA (1) ",390]
[380102,"TROMBOEMBOLECTOMIA DE COMUNICANTE ANTERIOR    (367) ",560]
[380103,"TROMBOEMBOLECTOMIA DE CAROTIDA INTERNA SUPRACLINOIDEA    (367) ",560]
[380104,"TROMBOEMBOLECTOMIA DE OFTALMICA    (367) ",560]
[383201,"RESECCION DE MALFORMACION ARTERIOVENOSA DE CUERO CABELLUDO    (172) ",165]
[15404,"RESECCION DE TUMOR DE LA BASE DEL CRANEO, FOSA POSTERIOR, POR VIA TRANSORAL ",945]
[15405,"RESECCION DE TUMOR DE LA BASE DEL CRANEO, FOSA POSTERIOR , POR VIA MAXILOTOMIA EXTENDIDA ",945]
[15406,"RESECCION DE TUMOR DE LA BASE DEL CRANEO, FOSA POSTERIOR, POR VIA TRANSLABERINTICA ",945]
[15407,"RESECCION DE TUMOR DE LA BASE DEL CRANEO, FOSA POSTERIOR, POR VIA TRANSCOCLEAR ",945]
[15408,"RESECCION DE TUMOR DE LA BASE DEL CRANEO, FOSA POSTERIOR, POR VIA FOSA MEDIA ",945]
[15409,"RESECCION DE TUMOR DE LA BASE DEL CRANEO, FOSA POSTERIOR , POR VIA SUBOCCIPITAL RETROMASTOIDEA ",945]
[17701,"RESECCION DE LESIONES VENTRICULARES INFRATENTORIALES, POR CRANEOTOMIA SUBOCCIPITAL ",945]
[28202,"IMPLANTACION DE DISPOSITIVO EXTRADURAL ",75]
[28203,"IMPLANTACION DE DISPOSITIVO INTRACEREBRAL ( ELECTRODOS, TRASDUCTORES DE PIC (3)",75]
[25000,"IMPLANTE DE CATETER  (INTRAVENTRICULAR, INTRACISTICO) CON RESERVORIO SUBCUTANEO SOD    (173) ",125]
[35103,"CORRECCION DE MALFORMACION DE MEDULA ESPINAL, CON DESCOMPRESION VIA ANTERIOR ",270]
[35107,"CORRECCION DE MALFORMACION DE MEDULA ESPINAL, CON RESECCION DE CELE , DUROPLASTIA Y PLASTIA DE PIEL ",345]
[35104,"CORRECCION DE MALFORMACION DE MEDULA ESPINAL, CON FUSION OSEA E INJERTO AUTOLOGO O HETEROLOGO ",435]
[35105,"CORRECCION DE MALFORMACION DE MEDULA ESPINAL, CON RESECCION DE TABIQUE OSEO ",270]
[35106,"CORRECCION DE MALFORMACION DE MEDULA ESPINAL, CON SECCION DE FILUM TERMINALIS ",275]
[35102,"CORRECCION DE MALFORMACION DE MEDULA ESPINAL, CON MIELOTOMIA POSTERIOR ",270]
[35108,"CIERRE O LIGADURA DE COMUNICACION PERSISTENTE ENTRE PIEL Y MEDULA ESPINAL [SENO DERMICO] ",155]
[934100,"TRACCION ESPINAL CON EMPLEO DE DISPOSITIVO CRANEAL SOD ",65]
[793930,"REDUCCION ABIERTA DE FRACTURA DE ODONTOIDES VIA ANTERIOR CON INSTRUMENTACION SIMPLE (97) ",425]
[793931,"REDUCCION ABIERTA  DE FRACTURA DE ODONTOIDES VIA ANTERIOR CON INSTRUMENTACION MODULAR    (97) ",425]
[778931,"RESECCION DE APOFISIS ODONTOIDES  POR ABORDAJE TRANSORAL (94) ",450]
[792932,"REDUCCIÓN ABIERTA FRACTURA  SIN FIJACION DE COLUMNA CERVICAL VIA POSTERIOR ",310]
[793932,"REDUCCION ABIERTA DE FRACTURA DE ODONTOIDES VIA POSTERIOR CON INSTRUMENTACION SIMPLE (97) ",330]
[793937,"REDUCCION ABIERTA DE FRACTURA DE ODONTOIDES VIA POSTERIOR CON INSTRUMENTACION MODULAR    (97) ",330]
[793938,"REDUCCION DE FRACTURA OCCIPITOCERVICAL VIA POSTERIOR CON INSTRUMENTACION SIMPLE    (97) ",330]
[793942,"REDUCCION DE FRACTURA OCCIPITOCERVICAL VIA POSTERIOR CON INSTRUMENTACION MODULAR    (97) ",330]
[793943,"REDUCCION DE FRACTURA COLUMNA CERVICAL EN C1 VIA POSTERIOR CON INSTRUMENTACION SIMPLE    (97) ",330]
[793946,"REDUCCION DE FRACTURA COLUMNA CERVICAL EN C1 VIA POSTERIOR CON INSTRUMENTACION MODULAR    (97) ",330]
[793947,"REDUCCION DE FRACTURA COLUMNA CERVICAL POR DEBAJO DE C2 VIA POSTERIOR CON INSTRUMENTACION SIMPLE     (97) ",330]
[792931,"REDUCCION DE FRACTURA COLUMNA CERVICAL POR DEBAJO DE C2 VIA POSTERIOR CON INSTRUMENTACION MODULAR    (97) ",330]
[792935,"REDUCCIÓN ABIERTA FRACTURA SIN FIJACION DE COLUMNA CERVICAL  VIA ANTERIOR ",360]
[793935,"REDUCCIÓN ABIERTA  FRACTURA SIN FIJACION DE COLUMNA TORACICA O LUMBAR   VIA ANTERIOR ",360]
[793936,"REDUCCION DE FRACTURA OCCIPITOCERVICAL VIA ANTERIOR CON INSTRUMENTACION SIMPLE    (97) ",375]
[793940,"REDUCCION  DE FRACTURA OCCIPITOCERVICAL VIA ANTERIOR CON INSTRUMENTACION MODULAR    (97) ",375]
[793941,"REDUCCION DE FRACTURA COLUMNA CERVICAL EN C1 VIA ANTERIOR CON INSTRUMENTACION SIMPLE    (97) ",375]
[793944,"REDUCCION DE FRACTURA COLUMNA CERVICAL EN C1 VIA ANTERIOR CON INSTRUMENTACION MODULAR    (97) ",375]
[793945,"REDUCCION DE FRACTURA COLUMNA CERVICAL POR DEBAJO DE C2 VIA ANTERIOR CON INSTRUMENTACION SIMPLE    (97) ",375]
[793950,"REDUCCION DE FRACTURA COLUMNA CERVICAL POR DEBAJO DE C2 VIA ANTERIOR CON INSTRUMENTACION MODULAR    (97) ",375]
[793951,"REDUCCIÓN ABIERTA DE FRACTURA DE COLUMNA VERTEBRAL [TORACICA, LUMBAR O SACRA] VIA ANTERIOR  CON INSTRUMENTACION SIMPLE    (97) ",475]
[28400,"REDUCCIÓN ABIERTA DE FRACTURA DE COLUMNA VERTEBRAL [TORACICA, LUMBAR O SACRA] VIA ANTERIOR CON INSTRUMENTACION MODULAR    (97) ",475]
[null,"COLOCACION DE TRACTOR CEFALICO [HALO CHALECO] SOD ",55]
[28500,"EXTRACCIÓN DE TRACTOR CEFALICO [HALO CHALECO] SOD ",35]
[30101,"EXTRACCION DE CUERPO EXTRAÑO DEL CANAL RAQUIDEO POR LAMINECTOMIA ",220]
[30102,"EXTRACCION DE CUERPO EXTRAÑO DEL CANAL RAQUIDEO POR  HEMILAMINECTOMIA ",220]
[30103,"EXTRACCION DE CUERPO EXTRAÑO DEL CANAL RAQUIDEO POR LAMINOTOMIA ",220]
[35402,"ESQUIRLECTOMIA CON PLASTIA O INJERTO DE MENINGE ESPINAL ",300]
[383501,"RESECCION CON ANASTOMOSIS EN VASOS ESPINALES, SEGMENTO CERVICAL (77) ",585]
[383502,"RESECCION CON ANASTOMOSIS EN VASOS ESPINALES, SEGMENTO TORACICO    (77)  ",510]
[383503,"RESECCION CON ANASTOMOSIS EN VASOS ESPINALES, SEGMENTO LUMBOSACRO    ",460]
[30401,"DRENAJE DE COLECCION EPIDURAL POR LAMINOTOMIA ",275]
[30402,"DRENAJE DE COLECCION EPIDURAL POR LAMINECTOMIA ",275]
[776931,"ESCISIÓN DE TUMOR (BENIGNO O MALIGNO)  EN  COLUMNA VERTEBRAL VIA POSTERIOR O POSTEROLATERAL ",220]
[776932,"ESCISIÓN DE TUMOR (BENIGNO O MALIGNO)  SACROCOCCIGEO VIA ANTERIOR ",300]
[776933,"ESCISIÓN DE TUMOR (BENIGNO O MALIGNO)  SACROCOCCIGEO VIA POSTERIOR O POSTEROLATERAL ",220]
[776930,"ESCISIÓN DE TUMOR (BENIGNO O MALIGNO)  EN  COLUMNA VERTEBRAL VIA ANTERIOR ",300]
[34201,"RESECCION DE TUMOR EXTRADURAL (EPIDURAL) VIA POSTERIOR, CON LAMINECTOMIA BILATERAL ",260]
[34202,"RESECCION DE TUMOR EXTRADURAL (EPIDURAL) VIA POSTERIOR, CON LAMINOPLASTIA  ",260]
[34203,"RESECCION DE TUMOR EXTRADURAL (EPIDURAL) VIA POSTERIOR, CON SACRECTOMIA TOTAL O PARCIAL  ",330]
[34204,"RESECCION DE TUMOR EXTRADURAL (EPIDURAL) VIA ANTERIOR, CON CORPECTOMIA Y  ARTRODESIS  ",340]
[34205,"RESECCION DE TUMOR EXTRADURAL (EPIDURAL) VIA ANTERIOR, CON CORPECTOMIA, ARTRODESIS E INSTRUMENTACION   ",430]
[34206,"RESECCION DE TUMOR EXTRADURAL (EPIDURAL) CON INSTRUMENTACION VIA ANTERIOR Y POSTERIOR  ",430]
[34301,"RESECCION DE TUMOR INTRADURAL  EXTRAMEDULAR VIA POSTERIOR, POR LAMINECTOMIA BILATERAL ",310]
[34303,"RESECCION DE TUMOR INTRADURAL EXTRAMEDULAR , VIA POSTERIOR,  POR LAMINECTOMIA Y FORAMINECTOMIA ",310]
[34305,"RESECCION DE TUMOR INTRADURAL EXTRAMEDULAR VIA  ANTERIOR ",310]
[34302,"RESECCION DE TUMOR INTRADURAL EXTRAMEDULAR , VIA POSTERIOR,  CON LAMINOPLASTIA Y/O DUROPLASTIA ",310]
[34304,"RESECCION DE TUMOR INTRADURAL EXTRAMEDULAR  VIA POSTERIOR O POSTERO LATERAL ",310]
[34401,"RESECCION DE TUMOR INTRADURAL  INTRAMEDULARES , POR  VIA ANTERIOR ",405]
[34402,"RESECCION DE TUMOR  INTRADURAL INTRAMEDULAR, POR  VIA POSTERIOR ",405]
[33201,"BIOPSIA DE TUMOR INTRADURALES ( INTRAMEDULARES Y EXTRAMEDULARES) CERVICALES, DORSALES, LUMBOSACROS O COCCIGEOS ",230]
[30201,"EXPLORACION Y DESCOMPRESION DEL CANAL RAQUIDEO Y RAICES ESPINALES POR  LAMINECTOMIA ",305]
[30202,"EXPLORACION Y DESCOMPRESION DEL CANAL RAQUIDEO Y RAICES ESPINALES POR  HEMILAMINECTOMIA ",305]
[30207,"EXPLORACION Y DESCOMPRESION DEL CANAL RAQUIDEO  (EXCEPTO SEGMENTO CERVICAL) Y RAICES ESPINALES POR, POR FORAMINOTOMIA POSTERIOR ",305]
[30203,"EXPLORACION Y DESCOMPRESION DEL CANAL RAQUIDEO Y RAICES ESPINALES POR LAMINOTOMIA ",305]
[805101,"ESCISIÓN DE DISCO INTERVERTEBRAL EN SEGMENTO CERVICAL VIA ANTERIOR   (100) ",270]
[805102,"ESCISIÓN DE DISCO INTERVERTEBRAL  EN SEGMENTO CERVICAL VIA POSTERIOR    ",190]
[805105,"DISCECTOMIA CERVICAL, VIA ANTERIOR CON INJERTO OSEO AUTOLOGO O HETEROLOGO [CLOWARD, SMITH ROBINSON, SIMMONS]    (100) ",420]
[805121,"ESCISIÓN DE DISCO INTERVERTEBRAL  EN SEGMENTO TORACICO VIA ANTERIOR    ",270]
[805122,"ESCISIÓN DE DISCO INTERVERTEBRAL  EN SEGMENTO TORACICO VIA POSTERIOR    ",190]
[805131,"ESCISIÓN DE DISCO INTERVERTEBRAL  EN SEGMENTO LUMBAR VIA ANTERIOR     (100) ",275]
[805132,"ESCISIÓN DE DISCO INTERVERTEBRAL  EN SEGMENTO LUMBAR VIA POSTERIOR    ",195]
[805134,"DISCECTOMIA  LUMBAR, VIA  POSTEROLATERAL  CON O SIN FACECTOMIA [EN DESCOMPRESION]    (100) ",195]
[780931,"INJERTO  OSEO EN  COLUMNA VERTEBRAL VIA ANTERIOR ",250]
[780932,"INJERTO  OSEO EN  COLUMNA VERTEBRAL VIA POSTERIOR ",170]
[805110,"NUCLEOTOMIA PERCUTANEA  CERVICAL [EN DESCOMPRESION]    (100) ",175]
[805123,"NUCLEOTOMIA PERCUTANEA  TORACICA [ EN DESCOMPRESION]    (100) ",175]
[805133,"NUCLEOTOMIA PERCUTANEA LUMBAR [ EN DESCOMPRESION]    (100) ",175]
[779932,"VERTEBRECTOMIA TOTAL CERVICAL CON REEMPLAZO CORPORAL ARTIFICIAL    (174) ",510]
[805200,"QUIMIONUCLEOLISIS O DISCOLISIS INTERVERTEBRAL SOD *    (100) ",125]
[36100,"LISIS O RESECCION DE ADHERENCIAS EXTRADURALES EN MEDULA ESPINAL Y RAICES DE NERVIOS ESPINALES SOD ",200]
[32200,"CORDOTOMIA ABIERTA SOD * ",210]
[32301,"LESION DE TRACTOS DE ENTRADA DE RAICES POSTERIORES  ( DREZ ), POR RADIOFRECUENCIA ",210]
[32400,"MIELOTOMIA ABIERTA SOD * ",210]
[32100,"CORDOTOMIA PERCUTANEA SOD * ",125]
[38200,"NEUROLISIS DE RAICES ESPINALES SOD * ",105]
[39001,"INSERCION DE CATETER EPIDURAL EN CANAL ESPINAL PARA INFUSION  DE SUSTANCIA TERAPEUTICA O PALIATIVA ",80]
[39002,"INSERCION DE CATETER EPIDURAL EN CANAL ESPINAL CON PUERTA DE ENTRADA IMPLANTABLE PARA  INFUSION  DE SUSTANCIA TERAPEUTICA O PALIATIVA ",80]
[39302,"IMPLANTACION DE ELECTRODOS O RECEPTOR DE NEUROESTIMULACION ESPINAL, POR VIA PERCUTANEA ",205]
[39400,"RETIRO DE ELECTRODOS Y/O RECEPTOR DE NEUROESTIMULACION ESPINAL SOD * ",55]
[39700,"REEMPLAZO, IRRIGACION O REVISION DE DERIVACION ESPINAL SOD ",55]
[39800,"RETIRO DE DERIVACION ESPINAL SOD * ",55]
[39301,"IMPLANTACION DE ELECTRODOS O RECEPTOR DE NEUROESTIMULACION ESPINAL, INTRADURAL, POR LAMINECTOMIA ",140]
[348500,"IMPLANTACION DE MARCAPASOS DIAFRAGMATICO SOD * ",90]
[33100,"PUNCION LUMBAR SOD * ",40]
[10101,"PUNCIÓN CISTERNAL, VÍA LATERAL ",70]
[10102,"PUNCIÓN CISTERNAL, VÍA MEDIAL ",70]
[10901,"PUNCION SUBDURAL ",105]
[10201,"PUNCION [ASPIRACION DE LIQUIDO] VENTRICULAR A TRAVES DE CATETER PREVIAMENTE IMPLANTADO ",30]
[10202,"PUNCION [ASPIRACION DE LIQUIDO] VENTRICULAR  POR TREPANACION  ( SIN CATETER) ",105]
[10203,"PUNCION [ASPIRACION DE LIQUIDO] VENTRICULAR A TRAVES DE UN RESERVORIO ",30]
[43001,"ANASTOMOSIS DE NERVIO FACIAL ",210]
[47101,"REPARACION DE NERVIO FACIAL, POR INTERPOSICION DE NERVIO HIPOGLOSO ",210]
[47102,"REPARACION DE NERVIO FACIAL, POR ANASTOMOSIS TERMINO TERMINAL ",200]
[42201,"NEUROLISIS DE NERVIO XI, POR AMIGDALECTOMIA ESTEREOTAXICA ",70]
[53207,"NEUROLISIS DEL GANGLIO SIMPATICO PRESACRO ( GANGLIO IMPAR DE WALTER) ",70]
[40200,"SECCION DE NERVIO TRIGEMINO SOD ",100]
[42101,"RIZOTOMIA DE NERVIO TRIGEMINAL, POR CRANEOTOMIA SUBOCCIPITAL ",200]
[42102,"RIZOTOMIA DE NERVIO XI, POR CRANEOTOMIA SUBOCCIPITAL ",200]
[52200,"SIMPATECTOMIA CERVICAL SOD ",175]
[52300,"SIMPATECTOMIA LUMBAR SOD ",150]
[52401,"SIMPATECTOMIA PRESACRA POR LAPAROTOMIA ",150]
[52101,"GANGLIONECTOMIA ESFENOPALATINA ",185]
[55100,"EXPLORACION DE PLEJO O TRONCO (CERVICAL, LUMBAR O SACRO) SOD ",235]
[55200,"DESCOMPRESION DE PLEJO O TRONCO (CERVICAL, LUMBAR O SACRO) SOD ",235]
[54201,"RECONSTRUCCION DE PLEJO, POR NEURORRAFIA ",320]
[779134,"RESECCIÓN DE COSTILLA CERVICAL O SUPERNUMERARIA ",250]
[52601,"RESECCION DE TUMOR EN NERVIO O GANGLIO SIMPATICO NCOC * ",260]
[52602,"RESECCION DE TUMOR EN NERVIO O GANGLIO SIMPATICO CERVICAL ",290]
["M01620 ","RESECCION DE TUMOR DE PLEJO ",290]
[95300,"DRENAJE DE SACO LAGRIMAL SOD ",30]
[94100,"EXTRACCIÓN DE CUERPO EXTRAÑO DE SACO LAGRIMAL SOD    (66) ",30]
[92100,"DACRIOADENECTOMIA  PARCIAL SOD ",40]
[92200,"DACRIOADENECTOMIA TOTAL SOD ",40]
[96100,"DACRIOCISTECTOMIA (SACO LAGRIMAL) SOD ",40]
[98101,"DACRIOCISTORRINOSTOMÍA (DCR) VIA EXTERNA ",60]
[98201,"CONJUNTIVODACRIOCISTORRINOSTOMÍA SIMPLE VIA EXTERNA ",60]
[98301,"CONJUNTIVODACRIOCISTORRINOSTOMÍA  CON INTUBACION VIA EXTERNA    (66) ",95]
[97100,"PLASTIA DE CANALÍCULOS LAGRIMALES SOD ",50]
[97200,"PLASTIA DE PUNTO LAGRIMAL [CIRUGIA DE WEBER] SOD ",30]
[97300,"PLASTIA DE PUNTO LAGRIMAL MODIFICADA ( CON SUTURAS) SOD ",30]
[82000,"ESCISIÓN O ABLACIÓN DE LESIÓN O TEJIDO DE PÁRPADO, SOD ",30]
[82100,"RESECCIÓN DE CHALAZIÓN SOD ",30]
[80100,"DRENAJE DE  COLECCION POR BLEFAROTOMÍA SOD ",30]
[82301,"RESECCIÓN DE TUMOR BENIGNO O MALIGNO DE PÁRPADO, ESPESOR PARCIAL, UN TERCIO ",50]
[82302,"RESECCIÓN DE TUMOR BENIGNO O MALIGNO DE PÁRPADO, ESPESOR PARCIAL, DOS TERCIOS ",120]
[82401,"RESECCIÓN TOTAL  DE PÁRPADO Y RECONSTRUCCIÓN, CON INJERTO O COLGAJO ",200]
[86200,"RECONSTRUCCION DE PARPADO CON COLGAJO O INJERTO DE MEMBRANA MUCOSA SOD   (355) ",130]
[86300,"RECONSTRUCCION DE PARPADO CON INJERTO DE FOLICULO PILOSO SOD    (355) ",130]
[88100,"REPARACIÓN LINEAL DE LACERACIÓN DE PÁRPADO O CEJA SOD ",30]
[88201,"SUTURA SUPERFICIAL DE HERIDA UNICA DE PÁRPADO [BLEFARORRAFIA SIMPLE] ",30]
[86400,"RECONSTRUCCION DE PARPADO CON COLGAJO TARSOCONJUNTIVAL SOD    (355) ",130]
[88202,"SUTURA SUPERFICIAL DE HERIDA MULTIPLE DE PÁRPADO [BLEFARORRAFIA SIMPLE] ",60]
[88401,"SUTURA PROFUNDA DE HERIDA UNICA DE PÁRPADO [BLEFARORRAFIA COMPLEJA] ",60]
[88402,"SUTURA PROFUNDA DE HERIDA MULTIPLE DE PÁRPADO [BLEFARORRAFIA COMPLEJA] ",60]
[88403,"SUTURA DE PÁRPADO Y RECONSTRUCCION CON INJERTO O COLGAJO ",135]
[84100,"CORRECCION DE ENTROPIÓN, POR TECNICA DE SUTURA SOD ",50]
[84400,"CORRECCION DE ECTROPION, POR TECNICA DE SUTURA SOD ",50]
[86101,"BLEFAROPLASTIA  SUPERIOR  (355) ",100]
[86102,"BLEFAROPLASTIA  INFERIOR    (355) ",100]
[89101,"ABLACIÓN DE PESTAÑAS, POR ELECTROLISIS    (175) ",30]
[85300,"CANTOPLASTIA (FIJACION DE CANTO) SOD ",40]
[87300,"RECONSTRUCCION DE PLIEGUES EN CORRECCIÓN DE BLEFAROFIMOSIS SOD ",90]
[87401,"RECONSTRUCCION DE PLIEGUES CORRECCIÓN DE  EPICANTO CON CUATRO COLGAJOS [MUSTARDE] ",140]
[83100,"CORRECCIÓN DE PTOSIS PALPEBRAL, POR SUSPENSION FRONTAL CON SUTURA SOD  -4",100]
[83200,"CORRECCIÓN DE PTOSIS PALPEBRAL, POR SUSPENSION FRONTAL CON FASCIA LATA SOD (4)",100]
[83300,"CORRECCIÓN DE PTOSIS PALPEBRAL, POR  RESECCION EXTERNA DEL ELEVADOR SOD    (4) (196) ",100]
[83400,"CORRECCIÓN DE PTOSIS PALPEBRAL, POR RESECCION DEL ELEVADOR VIA CONJUNTIVAL SOD    (4) ",100]
[82600,"TARSECTOMÍA SOD ",35]
[85200,"CANTORRAFIA SOD ",30]
[85100,"CANTOTOMÍA SOD ",30]
[103103,"RESECCIÓN DE PTERIGION  SIMPLE  ( NASAL O TEMPORAL) CON SUTURA ",45]
[103104,"RESECCIÓN DE PTERIGION  SIMPLE  ( NASAL O TEMPORAL) CON INJERTO ",70]
[103105,"RESECCIÓN DE PTERIGION REPRODUCIDO (NASAL O TEMPORAL), CON PLASTIA LIBRE O CITOSTÁTICOS ",50]
[103101,"RESECCIÓN DE QUISTE O TUMOR BENIGNO DE CONJUNTIVA ",50]
[103102,"RESECCIÓN DE QUISTE O TUMOR BENIGNO DE CONJUNTIVA CON INJERTO DE MUCOSA O MEMBRANA AMNIOTICA ",70]
[103107,"RESECCIÓN DE TUMOR MALIGNO DE CONJUNTIVA, SIN PLASTIA ",90]
[106100,"SUTURA DE LA CONJUNTIVA SOD ",30]
[103106,"RESECCIÓN DE TUMOR MALIGNO DE CONJUNTIVA, CON PLASTIA    (135) ",130]
[103108,"PERITOMIA TOTAL ",30]
[104100,"REPARACION DE SIMBLÉFARON CON INJERTO LIBRE DE CONJUNTIVA SOD ",100]
[104400,"REPARACION DE SIMBLÉFARON CON INJERTO DE MUCOSA EXTRAOCULAR  SOD ",100]
[105100,"DIVISION DE SIMBLEFARON SOD ",60]
[168405,"DESCOMPRESIÓN DE ÓRBITA VIA INFERIOR Y MEDIAL, ABORDAJE SUBCILIAR ",100]
[169203,"DRENAJE DE COLECCION ANTERIOR DE ÓRBITA ",30]
[169204,"DRENAJE DE COLECCION  POSTERIOR DE ÓRBITA ",100]
[161100,"EXTRACCIÓN DE CUERPO EXTRAÑO DE ÓRBITA SOD ",125]
[169201,"RESECCIÓN DE TUMOR  MALIGNO DE ÓRBITA ",125]
[165100,"EXENTERACIÓN DE ÓRBITA CON ESCISIÓN DE ESTRUCTURAS ADYACENTES SOD ",125]
[165200,"EXENTERACIÓN DE ÓRBITA CON EXTRACCION TERAPEUTICA DE HUESO ORBITAL SOD ",125]
[169202,"RESECCIÓN DE TUMOR BENIGNO DE ÓRBITA ",80]
[767901,"REDUCCION ABIERTA DE BORDE O PARED ORBITAL ",120]
[767902,"REDUCCION ABIERTA DE FRACTURA DE UNA PARED ORBITARIA CON INJERTO ",120]
[767904,"REDUCCIÓN ABIERTA DE FRACTURA  DE PISO DE ÓRBITA Y RECONSTRUCCION CON INJERTO ",135]
[767905,"REDUCCIÓN ABIERTA DE FRACTURA DE PARED MEDIAL DE ÓRBITA Y RECONSTRUCCION CON INJERTO ",135]
[120000,"EXTRACCION DE CUERPO EXTRAÑO INTRAOCULAR DEL SEGMENTO ANTERIOR DE OJO SOD    (201) ",85]
[140000,"EXTRACCION DE CUERPO EXTRAÑO DEL SEGMENTO POSTERIOR DEL OJO SOD ",155]
[164100,"ENUCLEACIÓN CON  O SIN IMPLANTE PROTÉSICO SOD ",80]
[164200,"ENUCLEACIÓN CON INJERTO DERMOGRASO SOD ",120]
[163100,"EVISCERACIÓN DEL GLOBO OCULAR CON IMPLANTE SOD ",90]
[166101," INSERCIÓN SECUNDARIA DE PRÓTESIS [IMPLANTE] CON FORMACIÓN DE FONDOS DE SACO CONJUNTIVALES  ",100]
[168301,"PLASTIA DE ÓRBITA CON RECONSTRUCCIÓN DE FONDOS DE SACO CON INJERTOS ",100]
[152100,"PROCEDIMIENTO DE ALARGAMIENTO EN UN MUSCULO EXTRAOCULAR SOD ",80]
[152200,"PROCEDIMIENTO DE ACORTAMIENTO EN UN MUSCULO EXTRAOCULAR SOD ",80]
[154101,"REINSERCION O RETROINSERCION DE  MUSCULOS RECTOS (UNO O DOS) ",90]
[154102,"REINSERCION O RETROINSERCION DE MUSCULOS OBLICUOS (UNO O DOS) ",90]
[154103,"REINSERCION O RETROINSERCION DE  MUSCULOS RECTO Y OBLICUO ",150]
[87100,"RECONSTRUCCION DE PLIEGUES POR ACORTAMIENTO DE TENDÓN CANTAL MEDIAL (TELECANTO) SOD ",80]
[100100,"EXTRACCION DE CUERPO EXTRAÑO INCRUSTADO EN CONJUNTIVA, POR INCISION SOD ",50]
[111100,"EXTRACCIÓN DE CUERPO EXTRAÑO PROFUNDO EN CÓRNEA, POR INCISION SOD ",50]
[117400,"QUERATOTOMÍA RADIAL MIÓPICA O ASTIGMÁTICA [CIRUGÍA REFRACTIVA INCISIONAL] SOD ",60]
["M02605 ","QUERATECTOMÍA CON EXCÍMER LÁSER (FOTORREFRACTIVA O FOTOTERAPÉUTICA )  ",120]
[103201,"ABLACIÓN DE LESIÓN O TEJIDO DE CONJUNTIVA, POR DIATERMIA O CRIOCOAGULACION ",30]
[114200,"CAUTERIZACIÓN DE CÓRNEA (TERMO, QUIMIO, O CRIOAPLICACIÓN)  SOD ",30]
[128402,"RESECCIÓN DE TUMOR DE LA ESCLERÓTICA, POR DIATERMIA O CRIOTERAPIA ",30]
[117600,"QUERATECTOMÍA SOD ",50]
[114100,"RESECCIÓN SIMPLE DE TUMOR DE CÓRNEA SOD ",50]
[118100,"QUERATOPIGMENTACION (TATUAJE DE LA CÓRNEA) SOD ",30]
[115100,"SUTURA DE CORNEA SOD ",80]
[116200,"QUERATOPLASTIA PENETRANTE SOD ",170]
[115800,"RETIRO DE SUTURA EN CÓRNEA SOD ",30]
[116100,"QUERATOPLASTIA LAMELAR O SUPERFICIAL SOD ",115]
[115101,"CORNOESCLERORRAFIA ( REPARACIÓN DE HERIDA CORNEOESCLERAL) ",150]
["E02626 ","QUERATOFAQUIA ",140]
["E02627 ","QUERATOMILEUSIS ",140]
[116300,"QUERATOPLASTIA PENETRANTE, COMBINADA CON CIRUGIA DE CATARATA,ANTIGLAUCOMATOSA O LENTE INTRAOCULAR [CIRUGIA TRIPLE] SOD ",210]
[117300,"IMPLANTE DE PRÓTESIS CORNEANA (QUERATOPRÓTESIS) SOD ",100]
[117500,"QUERATOTOMÍA FOTORREFRACTIVA CON LASER CON QUERATOMILEUSIS [LASIK] SOD",160]
[115200,"REPARACION DE DESHISCENCIA DE HERIDA POS OPERATORIA CORNEAL SOD ",90]
[128100,"SUTURA DE LA ESCLERA (ESCLERORRAFIA) SOD ",90]
[128800,"PLASTIAS EN ESCLERA (ESCLEROPLASTIA) SOD    (176) ",90]
[115301,"REPARACION DE LACERACION O HERIDA CORNEAL CON INJERTO ESPESOR PARCIAL   ",170]
[115302,"REPARACION DE LACERACION O HERIDA CORNEAL CON INJERTO ESPESOR TOTAL     -5",170]
[116400,"ESCLEROQUERATOPLASTIA SOD ",170]
[128401,"RESECCIÓN DE TUMOR DE LA ESCLERÓTICA, VÍA ABIERTA ",70]
[123500,"COREOPLASTIA (PUPILOPLASTIA) SOD ",50]
[121400,"IRIDECTOMÍA ( BASAL, PERIFÉRICA Y TOTAL) SOD ",80]
[123400," REPARACION O SUTURA DE IRIDODIÁLISIS SOD ",90]
[124201,"RESECCIÓN DE TUMOR DE IRIS ",90]
[124401,"RESECCIÓN DE TUMOR DE CUERPO CILIAR ",100]
[123001,"IRIDOPLASTIA, CON SUTURA ",90]
[121301,"REDUCCIÓN DE HERNIA DE IRIS, POR SUTURA DE IRIS ",65]
[126601,"REVISIÓN DE AMPOLLA FILTRANTE CON AGUJA ",50]
["M02732 ","CICLOCRIOCOAGULACIÓN ",30]
["M02806 ","CICLOFOTOCOAGULACIÓN ",40]
[125500,"CICLODIÁLISIS SOD ",50]
["E02803 ","IRIDENCLEISIS ",65]
[125100,"GONIOTOMIA SOD ",70]
[125400,"TRABECULOTOMÍA SOD ",87]
[126400,"TRABECULECTOMÍA PRIMARIA SOD   (67) ",150]
[126401,"TRABECULECTOMÍA  SECUNDARIA (CON CIRUGIA OCULAR PREVIA)    (67) ",150]
[126700,"INSERCIÓN DE IMPLANTE PARA GLAUCOMA SOD ",150]
[126705,"REVISION ANTERIOR DE TUBO DE IMPLANTE ",95]
[144101,"IDENTACION ESCLERAL CON IMPLANTACION Y CRIOTERAPIA ",160]
[142101,"ABLACIÓN  DE LESIÓN CORIORETINAL, POR DIATERMIA O CRIOTERAPIA ",110]
[143101,"REPARACIÓN DE DESGARRO RETINAL (RETINOPEXIA) POR DIATERMIA O CRIOTERAPIA -68",130]
[145101,"REPARACION DE DESPRENDIMIENTO DE RETINA, CON DIATERMIA O CRIOTERAPIA   -69",130]
[127501,"TRABECULOPLASTIA CON LASER ",130]
[142300,"ABLACIÓN DE LESIÓN CORIORETINAL, POR FOTOCOAGULACION (LASER) SOD ",130]
[143300,"REPARACIÓN DE DESGARRO RETINAL POR FOTOCOAGULACION (LASER) SOD    (68) ",130]
[145300,"REPARACION DE DESPRENDIMIENTO DE RETINA, CON FOTOCOAGULACION (LASER) SOD    (69) ",130]
[144102,"IDENTACION ESCLERAL CON IMPLANTACION, TAMPONAMIENTO INTERNO CON GAS (NEUMORETINOPEXIA) Y CRIOTERAPIA ",170]
[144103,"IDENTACION ESCLERAL CON IMPLANTACION, TAMPONAMIENTO INTERNO CON GAS (NEUMORETINOPEXIA) Y FOTOCOAGULACION (LASER) ",200]
[136501,"CAPSULOTOMÍA ",20]
[131100,"EXTRACCIÓN INTRACAPSULAR DE CRISTALINO SOD ",100]
[132200,"EXTRACCIÓN EXTRACAPSULAR DE CRISTALINO POR ASPIRACION SOD ",100]
[132400,"EXTRACCIÓN EXTRACAPSULAR DE CRISTALINO EN PRESENCIA DE AMPOLLA FILTRANTE PREVIA SOD ",100]
[137100,"EXTRACCIÓN EXTRACAPSULAR DE CRISTALINO CON IMPLANTE DE LENTE  INTRAOCULAR SUTURADO SOD ",155]
[138100,"EXTRACCION DE LENTE INTRAOCULAR (PSEUDOCRISTALINO) SOD ",90]
[137200,"IMPLANTE DE LENTE  INTRAOCULAR SECUNDARIO SOD ",90]
[132300,"EXTRACCIÓN EXTRACAPSULAR DE CRISTALINO POR  FACOEMULSIFICACION SOD ",125]
[146100,"RETIRO DE  MATERIAL IMPLANTADO DEL SEGMENTO POSTERIOR DE OJO SOD ",110]
[147401,"VITRECTOMÍA VIA POSTERIOR  CON INSERCIÓN DE SILICÓN O GASES    (136) ",190]
[147301,"VITRECTOMÍA VIA ANTERIOR CON VITRIÓFAGO ",135]
[147402,"VITRECTOMÍA VIA POSTERIOR CON RETINOPEXIA  ",240]
[180100,"DRENAJE DE  COLECCIÓN DE PABELLÓN AURICULAR SOD ",22]
[180200,"DRENAJE DE  COLECCIÓN DE CONDUCTO AUDITIVO EXTERNO SOD ",22]
[180300,"EXTRACCIÓN DE CUERPO EXTRAÑO DE CONDUCTO AUDITIVO EXTERNO, CON INCISION SOD ",50]
[182200,"RESECCIÓN DE APÉNDICE PREAURICULAR SOD ",30]
[182100,"RESECCIÓN DE FÍSTULA O QUISTE PREAURICULAR SOD ",55]
[182300,"RESECCIÓN DE QUISTE DE PABELLÓN AURICULAR SOD ",30]
[183101,"RESECCIÓN DE TUMOR BENIGNO DE CONDUCTO AUDITIVO EXTERNO ",50]
[183102,"AURICULECTOMIA PARCIAL ",110]
[183103,"AURICULECTOMIA TOTAL ",120]
[183104,"AURICULECTOMIA  (PARCIAL O TOTAL ) CON RESECCION PARCIAL O TOTAL DEL HUESO TEMPORAL ",180]
[202101,"DRENAJE DE  COLECCIÓN DE MASTOIDES ",40]
[184100,"SUTURA DE LACERACION DE PABELLÓN AURICULAR SOD ",30]
[186200,"RECONSTRUCCION DE MEATO AUDITIVO EXTERNO SOD    (70) ",140]
[187100,"RECONSTRUCCIÓN DE PABELLÓN AURICULAR SOD ",90]
[200101,"TIMPANOSTOMIA CON DRENAJE DE MEMBRANA TIMPÁNICA ",50]
[202301,"TIMPANOTOMÍA EXPLORATORIA ",55]
[194101,"TIMPANOPLASTIA TIPO I (CIERRE DE PERFORACIÓN)   (71) ",108]
[194102,"TIMPANOPLASTIA TIPO II (CON RECONSTRUCCION DE CADENA OSEA: MARTILLO, YUNQUE Y/O ESTRIBO U OSICULOPLASTIA)    (71) ",220]
[191100,"ESTAPEDECTOMÍA O ESTAPEDOTOMIA CON COLOCACION DE PRÓTESIS SOD    (71) ",280]
[192100,"REVISIÓN DE ESTAPEDECTOMÍA O ESTAPEDOTOMIA SOD    (71) ",35]
[204200,"MASTOIDECTOMÍA RADICAL SOD    (72) ",200]
[209100,"REVISIÓN DE MASTOIDECTOMÍAS O MASTOIDOPLASTIAS SOD ",200]
[199100,"CIERRE DE FÍSTULA PERILINFATICA DE OÍDO MEDIO SOD    (71) ",150]
[205900,"PETROSECTOMÍA SOD ",130]
[204100,"MASTOIDECTOMÍA SIMPLE (ÁTICO ANTROMASTOIDECTOMÍA) SOD    (72) ",170]
[205101,"RESECCIÓN DE TUMOR GLOMICO, VIA TRANSMASTOIDEA   (73) ",200]
[205102,"RESECCIÓN DE TUMOR GLOMICO, CON EXTENSION EXTRATEMPORAL O CERVICAL    ",200]
[207301,"DESCOMPRESION DE SACO ENDOLINFATICO CON DERIVACION    (178) ",170]
[207501,"LABERINTECTOMÍA Y  VESTIBULOTOMÍA, POR VÍA TRANSMASTOIDEA    (179) ",200]
[40101,"ESCISIÓN DE NEUROMA ACUSTICO, VÍA SUBOCCIPITAL ",225]
[40102,"ESCISION DE NEUROMA ACUSTICO, VIA RETROSIGMOIDEA ",225]
[40103,"ESCISION DE NEUROMA ACUSTICO, VIA TRANSLABERINTICA ",225]
[40104,"ESCISION DE NEUROMA ACUSTICO, VIA TRANSOTICA ",225]
[209600,"IMPLANTACIÓN O SUSTITUCION DE PRÓTESIS COCLEAR SOD ",400]
[209601,"INSERCIÓN DE PRÓTESIS COCLEAR DE CANAL ÚNICO ",400]
[209602,"INSERCIÓN DE PRÓTESIS COCLEAR DE CANAL MÚLTIPLE ",400]
[215101,"RESECCIÓN DE  TUMOR BENIGNO DE CAVUM  CON EXTENSION INTRACRANEANA ",300]
[215103,"RESECCION DE TUMOR MALIGNO DE CAVUM, VIA TRANSPALATINA ",300]
[213101,"RESECCIÓN  DE TUMOR BENIGNO DE FOSA NASAL, VIA TRANSNASAL ",65]
[213201,"ESCISIÓN ABIERTA DE LA OZENA [CIRUGÍA DE EYRIES-REMADIER] ",100]
[218802,"SEPTOPLASTIA CON CIERRE  DE PERFORACIÓN SEPTAL    (180) ",100]
[211301,"DRENAJE DE LESIÓN (COLECCIÓN) EN PIRAMIDE NASAL   ",40]
[218701," TURBINOPLASTIA VIA TRANSNASAL ",50]
[218702,"TURBINOPLASTIA ENDOSCOPICA VIA TRANSNASAL ",50]
[211100,"CONDROTOMÍA NASAL SOD ",35]
[218801,"SEPTORRINOPLASTIA FUNCIONAL PRIMARIA NCOC ** ",95]
[218401,"SEPTORRINOPLASTIA FUNCIONAL SECUNDARIA ",110]
[218100,"SUTURA DE LACERACION EN NARIZ SOD    (181) ",50]
[217100,"REDUCCIÓN CERRADA DE FRACTURA NASAL SOD ",30]
[217200,"REDUCCIÓN ABIERTA DE  FRACTURA NASAL SOD ",70]
[210400,"CONTROL DE EPISTAXIS, POR LIGADURA DE ARTERIAS ETMOIDALES SOD ",120]
[210500,"CONTROL DE EPISTAXIS, POR LIGADURA DE ARTERIA MAXILAR INTERNA SOD ",120]
[210600,"CONTROL DE EPISTAXIS, POR LIGADURA DE ARTERIA CAROTIDA EXTERNA SOD ",120]
[210800,"CONTROL DE EPISTAXIS, POR LIGADURA DE ARTERIA ESFENOPALATINA SOD ",120]
[218903,"CORRECCIÓN DE ATRESIA DE COANAS, VIA TRANSPALATINA ",90]
[210900,"CONTROL DE EPISTAXIS POR DERMOPLASTIA SOD ",95]
[213100,"ESCISIÓN LOCAL O ABLACIÓN DE LESIÓN INTRANASAL SOD ",30]
[213001,"RESECCIÓN DE QUISTE DERMÓIDE ",40]
[226301,"FRONTO ETMOIDECTOMIA EXTERNA [OPERACIÓN DE LYNCH] ",80]
[226303,"ETMOIDECTOMÍA ANTERIOR TRANSNASAL ",80]
[224103,"SINUSOTOMÍA FRONTAL VIA CORONAL CON COLGAJO OSTEOPLASTICO ",120]
[224104,"SINUSOTOMÍA FRONTAL VIA CORONAL CON FRONTOTOMIA RADICAL ",120]
[224105,"SINUSOTOMÍA FRONTAL VIA CORONAL CON CRANEALIZACION DE SENO FRONTAL ",120]
[224106,"SINUSOTOMÍA FRONTAL VIA  CILIAR CON TREPANACION OBLITERATIVA, SIN COLGAJO OSTEOPLASTICO ",70]
[224107,"SINUSOTOMÍA FRONTAL VIA  CILIAR CON TREPANACION OBLITERATIVA, CON COLGAJO OSTEOPLASTICO ",120]
[224201,"RESECCIÓN DE LESIONES BENIGNAS DE SENOS FRONTAL Y/O ETMÓIDAL ",70]
[226308,"MAXILOETMOIDECTOMÍA ",150]
[222101,"ANTROSTOMIA MAXILAR INTRANASAL VIA MEATO INFERIOR ",60]
[223100,"ANTROTOMIA MAXILAR RADICAL SOD ",75]
[223901,"ANTROTOMIA MAXILAR EXPLORATORIA VIA MEATO INFERIOR ",60]
[223902,"ANTROTOMIA MAXILAR EXPLORATORIA VIA FOSA CANINA CON RESECCION DE MUCOSA DEL ANTRO MAXILAR Y ANTROTOMIA INFERIOR  [OPERACIÓN DE CALDWELL-LUC] ",60]
[226100,"ESCISIÓN DE LESIÓN DE SENO MAXILAR CON ABORDAJE CADWELL-LUC SOD ",60]
[226302,"ETMOIDECTOMÍA EXTERNA ",60]
[227101,"CIERRE DE FISTULA OROANTRAL     (183) ",70]
[213104,"RESECCIÓN DE TUMOR MALIGNO DE FOSA NASAL, VIA CRANEOFACIAL ",180]
[213105,"RESECCIÓN DE TUMOR MALIGNO DE FOSA NASAL, VIA TRANSORBITARIA ",180]
[213106,"RESECCIÓN DE TUMOR MALIGNO DE FOSA NASAL, POR RINOTOMIA LATERAL ",180]
[213107,"RESECCIÓN DE TUMOR MALIGNO DE FOSA NASAL, POR DESPEGAMIENTO FACIAL VIA SUBLABIAL [DEGLOVIN] ",180]
[226202,"RESECCIÓN DE LESION MALIGNA EN SENO MAXILAR, POR MAXILECTOMIA SUPERIOR,  PARCIAL O MEDIAL ",180]
[42202,"NEUROLISIS DE NERVIO VIDIANO POR ELECTROCOAGULACION Y/O ESCISIÓN ",150]
[225300,"INCISIÓN DE MÚLTIPLES SENOS PARANASALES SOD    (184) ",160]
[226400,"ESFENOIDECTOMÍA SOD ",95]
["M03468 ","ETMOIDECTOMÍA INTRANASAL ",90]
[313101,"EXTRACCIÓN DE CUERPO EXTRAÑO  DE TRAQUEA VIA ABIERTA ",90]
[313102,"EXTRACCIÓN DE CUERPO EXTRAÑO  DE LARINGE VIA LARINGOTOMIA ",90]
[311100,"CRICOTIROTOMÍA SOD ",55]
[311200,"TRAQUEOTOMIA TEMPORALSOD ",55]
[311300,"TRAQUEOSTOMIA SOD ",90]
[317400,"REVISION  DE TRAQUEOSTOMIA SOD    (197) ",75]
[311400,"PUNCIÓN (ASPIRACIÓN) TRANSTRAQUEAL SOD ",35]
[300202,"RESECCIÓN ENDOSCOPICA DE LESIÓN EN LARINGE ",120]
[300402,"RESECCIÓN ENDOSCOPICA DE ADHERENCIAS DE LARINGE ",120]
[315101,"RESECCIÓN ENDOSCOPICA ( RIGIDA O DE FIBRA OPTICA ) DE LESIÓN EN TRÁQUEA CON PINZA DE BIOPSIA ",120]
[300103,"RESECCION ENDOSCOPICA DE QUISTE VENTRICULAR (MARSUPIALIZACION)  ",120]
[301101,"HEMILARINGECTOMIA HORIZONTAL ",200]
[301102,"HEMILARINGECTOMIA VERTICAL ",200]
[301103,"HEMILARINGECTOMIA VERTICAL AMPLIADA ",200]
[301200,"EPIGLOTIDECTOMIA SOD ",200]
[301400,"CORDECTOMIA VOCAL SOD ",200]
[303200,"LARINGECTOMIA TOTAL (DISECCION EN BLOQUE DE LARINGE) SOD ",250]
[319300,"INSERCIÓN DE MOLDE (PROTESIS O STENT) LARÍNGEO SOD ",80]
[319401,"EXTRACCIÓN DE MOLDE (PROTESIS O STENT) LARÍNGEO VIA EXTERNA ",40]
[303101,"LARINGOFARINGECTOMIA CON RECONSTRUCCION CON COLGAJO ",250]
[316401,"REDUCCION ABIERTA DE FRACTURA LARINGEA CON SUTURA Y/O ALAMBRE ",250]
[316402,"REDUCCION ABIERTA DE FRACTURA LARINGEA CON MINIPLACAS DE FIJACION INTERNA [DISPOSITIVOS DE FIJACIÓN U OSTEOSINTESIS] ",250]
[316403,"REDUCCION DE LUXACION DE ARITENOIDES ",95]
[316501,"ARITENOPEXIA VIA EXTERNA ",155]
[316502,"ARITENOEPIGLOTOPLASTIA ",155]
[316503,"ARITENOPLASTIA ",155]
[317501,"RECONSTRUCCIÓN TRAQUEAL O  LARINGOTRAQUEAL TERMINOTERMINAL    (372) ",250]
[316201,"FISTULECTOMIA LARINGOTRAQUEAL ",90]
[317202,"CIERRE DE FISTULA TRAQUEO CUTANEA ",90]
[317300,"CIERRE DE FÍSTULA TRAQUEOESOFÁGICA SOD ",90]
[319100,"DILATACIÓN DE LA LARINGE SOD    (198) ",60]
[319201,"DILATACIÓN ENDOSCOPICA DE LA TRÁQUEA    (198) ",60]
[310101,"INYECCION ENDOSCOPICA EN PLIEGUE VOCAL LATERAL CON TEJIDO AUTOLOGO (GRASA) ",150]
[310102,"INYECCION ENDOSCOPICA EN PLIEGUE VOCAL LATERAL CON MATERIAL INERTE (COLAGENO,TEFLON O GELFOAM) ",150]
[316700,"REINERVACIÓN DE LARINGE CON PEDÍCULO NEUROMUSCULAR SOD ",180]
[40301,"SECCION DE NERVIO LARINGEO RECURRENTE ",60]
[317100,"SUTURA DE LACERACION DE TRAQUEA (TRAQUEORRAFIA) SOD ",95]
[282100,"AMIGDALECTOMÍA SOD ",70]
[283100,"ADENOAMIGDALECTOMÍA SOD ",90]
[286100,"ADENOIDECTOMÍA SOD ",40]
[284100,"RESECCIÓN DE RESTOS ADENOAMIGDALINOS SOD ",40]
[287100,"CONTROL DE HEMORRAGIA POST-ADENOAMIGDALECTOMÍA SOD ",70]
["M03631 ","EXTRACCIÓN DE CUERPO EXTRAÑO EN AMÍGDALAS ",30]
[280200,"DRENAJE TRANSORAL EN  AMIGDALA Y ESTRUCTURAS PERIAMIGDALARES SOD ",50]
[290400,"DRENAJE  DE COLECCIÓN FARÍNGEA SOD ",50]
[300100,"MARSUPIALIZACION DE QUISTE LARINGEO SOD ",50]
[293200,"DIVERCULECTOMÍA FARINGEA SOD ",90]
[295301,"FISTULECTOMÍA FARÍNGEA ",70]
[285101,"RESECCIÓN DE AMÍGDALA LINGUAL, BANDAS FARÍNGEAS LATERALES Y MEMBRANA CONGÉNITA CON ELECTROFULGURACIÓN ",50]
[295400,"LISIS DE ADHERENCIAS FARINGEAS SOD ",40]
[300401,"RESECCIÓN O LISIS DE ADHERENCIAS DE LARINGE VIA ANTERIOR ",40]
[293301,"RESECCIÓN DE TUMOR BENIGNO DE OROFARINGE ",70]
[300101,"RESECCION DE QUISTE VENTRICULAR VIA EXTERNA ",70]
[300201,"RESECCIÓN DE LESIÓN EN LARINGE VIA ABIERTA ",70]
[315000,"RESECCIÓN ABIERTA DE  LESIÓN DE TRÁQUEA SOD ",70]
[293302,"RESECCIÓN DE TUMOR MALIGNO DE OROFARINGE ",100]
[293303,"RESECCION DE LESIONES DE FARINGE CON LASER ",150]
[293401,"FARINGOLARINGECTOMÍA ",240]
[295201,"CIERRE DE FÍSTULA BRANQUIAL ",70]
[294100,"CORRECCIÓN DE ATRESIA NASOFARINGEA SOD ",100]
[294200,"CORRECCIÓN DE ESTENOSIS NASOFARÍNGEA SOD ",100]
[290200,"FARINGOSTOMÍA SOD ",60]
[295101,"FARINGOPLASTIA CON COLGAJO FARÍNGEO ",110]
[295601,"FARINGOPLASTIA POR IMPLANTE FARINGEO ",110]
[295602,"FARINGOPLASTIA POR COLGAJO FARINGEO DE BASE SUPERIOR O INFERIOR ",110]
[295603,"FARINGOPLASTIA POR ENTRECRUZAMIENTO DE PILARES ",110]
[295604,"FARINGOPLASTIA CON COLGAJO FARINGEO POSTERIOR Y DESPLAZAMIENTO DE PILARES [TECNICA HOGAN] ",175]
[296100,"DILATACIÓN DE FARINGE SOD ",30]
[296200,"DILATACIÓN DE NASOFARINGE SOD ",30]
[290301,"EXTRACCIÓN DE CUERPO EXTRAÑO ENCLAVADO EN FARINGE , POR VIA EXTERNA ",90]
[60901,"DRENAJE DE COLECCIÓN EN AREA TIROIDEA POR INCISION ",30]
[60200,"REAPERTURA DE HERIDA DE AREA TIROIDEA SOD ",50]
[60902,"EXTRACCION DE CUERPO EXTRAÑO POR INCISION ",50]
[60903,"EXPLORACION DE CUELLO O AREA TIROIDEA POR INCISION ",50]
[69100,"REEXPLORACIÓN DE CUELLO Y MEDIASTINO SOD ",50]
[60904,"DRENAJE  EN CUELLO ( EXCEPTO  AREA TIROIDEA) POR INCISION ",70]
[280100,"DRENAJE TRANSCERVICAL EN AMIGDALA Y ESTRUCTURAS PERIAMIGDALARES SOD ",70]
[62200,"HEMITIROIDECTOMIA SOD ",120]
[63100,"RESECCIÓN DE LESION  EN TIROIDES SOD ",120]
[63901,"ISTMECTOMIA ",120]
[63902,"TIROIDECTOMÍA RESIDUAL ",120]
[63903,"TIROIDECTOMÍA SUBTOTAL (LOBECTOMÍA TIROIDEA PARCIAL DE AMBOS LOBULOS O TOTAL DE UNO Y PARCIAL DE OTRO) ",120]
[65100,"TIROIDECTOMIA RETROESTERNAL PARCIAL SOD ",120]
[66100,"ESCISION DE TIROIDES LINGUAL SOD ",120]
[64100,"TIROIDECTOMIA TOTAL  SOD ",150]
[65200,"TIROIDECTOMIA RETROESTERNAL TOTAL SOD ",150]
[67000,"RESECCION  DE CONDUCTO TIROGLOSO SOD ",180]
[67100,"RESECCION  DE QUISTE TIROGLOSO SOD ",180]
[67200,"RESECCION  DE FISTULA TIROGLOSA SOD ",80]
[295202,"CIERRE DE QUISTE BRANQUIAL ",100]
[68100,"PARATIROIDECTOMIA TOTAL SOD ",165]
[68900,"PARATIROIDECTOMÍA  PARCIAL SOD ",165]
[398001,"RESECCION DE TUMOR DE CUERPO CAROTIDEO (QUEMODECTOMIA) SIN ESCISION  DE LA  CAROTIDA ",200]
[398002,"RESECCION DE TUMOR DE CUERPO CAROTIDEO (QUEMODECTOMIA) CON ESCISION DE LA  CAROTIDA ",210]
[296301,"RESECCION RADICAL DE OROFARINGE (TEJIDOS BLANDOS Y DUROS) POR TUMOR [OPERACIÓN DE MONOBLOQUE] ",250]
[402500,"ESCISIÓN DE HIGROMA  QUISTICO DE CUELLO SOD ",100]
[402600,"ESCISIÓN DE LINFANGIOMA DE CUELLO SOD ",100]
[386100,"TOMA DE INJERTO ARTERIAL SOD ",55]
[386200,"TOMA DE INJERTO VENOSO SOD ",55]
[397301,"EXPLORACION DE ARTERIA SUBCLAVIA  (6) ",90]
[397302,"EXPLORACION DE ARTERIA AXILAR    (6) ",90]
[397303,"EXPLORACION DE ARTERIA DE BRAZO O ANTEBRAZO    (6) ",55]
[397304,"EXPLORACION DE VENA SUBCLAVIA    (6) ",90]
[397305,"EXPLORACION DE VENA AXILAR    (6) ",90]
[397306,"EXPLORACION DE VENA DE BRAZO O ANTEBRAZO    (6) ",55]
[397801,"EXPLORACION ARTERIAL SUPRAPATELAR    (6) ",55]
[397802,"EXPLORACION ARTERIAL INFRAPATELAR    (6) ",55]
[397901,"EXPLORACION VENOSA SUPRAPATELAR    (6) ",55]
[397902,"EXPLORACION VENOSA INFRAPATELAR    (6) ",55]
[380301,"TROMBOLECTOMIA DE ARTERIA SUBCLAVIA ",80]
[380302,"TROMBOEMBOLECTOMIA  ARTERIAL  AXILAR ",80]
[380303,"TROMBOEMBOLECTOMIA ARTERIAL DE BRAZO O ANTEBRAZO ",80]
[380304,"TROMBOLECTOMIA DE VENA SUBCLAVIA ",100]
[380305,"TROMBOEMBOLECTOMIA VENOSA AXILAR ",90]
[380306,"TROMBOEMBOLECTOMIA VENOSA DE BRAZO O ANTEBRAZO ",80]
[380500,"TROMBOEMBOLECTOMIA EN VASOS ESPINALES SOD     (77) ",80]
[380801,"TROMBOEMBOLECTOMIA SUPRAPATELAR DE ARTERIAS EN MIEMBROS INFERIORES ",80]
[380802,"TROMBOEMBOLECTOMIA INFRAPATELAR DE ARTERIAS EN  MIEMBROS INFERIORES ",80]
[380901,"TROMBOEMBOLECTOMIA SUPRAPATELAR VENOSA PROFUNDA ",80]
[380902,"TROMBOEMBOLECTOMIA INFRAPATELAR VENOSA PROFUNDA ",80]
[380903,"TROMBOEMBOLECTOMIA VENOSA SUPERFICIAL EN MIEMBROS INFERIORES ",80]
[385801,"OCLUSION, PINZAMIENTO O LIGADURA ARTERIAL SUPRAPATELAR    (78) ",80]
[385802,"OCLUSION, PINZAMIENTO O LIGADURA ARTERIAL INFRAPATELAR    (78) ",80]
[385901,"OCLUSION, PINZAMIENTO O LIGADURAVENOSA PROFUNDA SUPRAPATELAR    (78) ",80]
[385902,"OCLUSION, PINZAMIENTO O LIGADURAVENOSA PROFUNDA INFRAPATELAR    (78) ",80]
[385303,"OCLUSION, PINZAMIENTO  O LIGADURA DE VASOS EN BRAZO O ANTEBRAZO    (78) ",80]
[385301,"OCLUSION, PINZAMIENTO  O LIGADURA DE SUBCLAVIA     (78) ",100]
[381301,"ENDARTERECTOMIA DE SUBCLAVIA     (76) ",80]
[381302,"ENDARTERECTOMIA AXILAR    (76) ",80]
[381303,"ENDARTERECTOMIA DE VASOS DE BRAZO O ANTEBRAZO    (76) ",80]
[381801,"ENDARTERECTOMIA SUPRAPATELAR    (76) ",80]
[381802,"ENDARTERECTOMIA INFRAPATELAR    (76) ",80]
[383301,"RESECCION CON ANASTOMOSIS PRIMARIA DE SUBCLAVIA    (8) ",130]
[383302,"RESECCION CON ANASTOMOSIS PRIMARIA AXILAR    (8) ",130]
[383303,"RESECCION CON ANASTOMOSIS TERMINO-TERMINAL EN BRAZO O ANTEBRAZO    (8) ",130]
[383801,"ANASTOMOSIS ARTERIAL PRIMARIA SUPRAPATELAR    (8) ",130]
[383802,"ANASTOMOSIS ARTERIAL PRIMARIA INFRAPATELAR    (8) ",130]
[383900,"RESECCION CON ANASTOMOSIS DE VENAS DE MIEMBROS INFERIORES SOD    (8) ",130]
[383901,"ANASTOMOSIS VENOSA TERMINO-TERMINAL SUPRAPATELAR    (8) ",130]
[383902,"ANASTOMOSIS VENOSA TERMINO-TERMINAL INFRAPATELAR    (8) ",130]
[394100,"CONTROL DE HEMORRAGIA DESPUES DE CIRUGIA VASCULAR SOD ",80]
[384301,"RESECCION DE SUBCLAVIA CON INTERPOSICION DE INJERTO O PROTESIS    (9) ",220]
[384302,"RESECCION AXILAR CON INTERPOSICION DE INJERTO O PROTESIS    (9) ",220]
[384303,"RESECCION EN BRAZO O ANTEBRAZO CON INTERPOSICION DE INJERTO O PROTESIS   ",220]
[384801,"RESECCION ARTERIAL SUPRAPATELAR CON INJERTO AUTOLOGO O PROTESIS     (9) ",220]
[384802,"RESECCION ARTERIAL INFRAPATELAR CON INJERTO AUTOLOGO O PROTESIS     (9) ",220]
[384900,"RESECCION CON SUSTITUCION DE VENAS DE MIEMBROS INFERIORES SOD     (9) ",220]
[385903,"LIGADURA DE PERFORANTES ",110]
[388903,"LIGADURA Y ESCISIÓN DE SAFENA EXTERNA ",110]
[388904,"LIGADURA Y ESCISIÓN  DE SAFENA INTERNA ",110]
[388901,"LIGADURA Y ESCISIÓN SUPRAPATELAR DE VENAS VARICOSAS ",110]
[388902,"LIGADURA Y ESCISIÓN INFRAPATELAR DE VENAS VARICOSAS NCOC ",100]
["M05121 ","VENECTOMÍA PERIFÉRICA (DE GRUESO CALIBRE) ",75]
[392802,"DERIVACION (INJERTO) O PUENTE FEMORO-PERONEAL ",150]
[392803,"DERIVACION (INJERTO) O PUENTE FEMORO-POPLITEO ",150]
[392804,"DERIVACION (INJERTO) O PUENTE FEMORO-TIBIAL ",150]
[392800,"DERIVACION O PUENTES EN VASOS PERIFERICOS SOD ",150]
[392601,"DERIVACION O PUENTE FEMORO- FEMORAL [ CRUZADO] ",150]
[392202,"DERIVACION O PUENTE AXILO- AXILAR ",180]
[392602,"DERIVACION O  PUENTE AXILO- FEMORAL UNILATERAL ",180]
[392603,"DERIVACION O PUENTE AXILO- FEMORAL BIFEMORAL [CRUZADO] ",250]
[384901,"TRANSPOSICION  VENOSA CON SEGMENTO VALVULADO ",200]
[407101,"ANASTOMOSIS DE VASOS LINFATICOS DE GRUESO CALIBRE ",150]
[407200,"LINFANGIORRAFIA SOD ",60]
[407400,"TRASPLANTE DE LINFATICOS AUTOGENOS SOD ",150]
[406500,"DERIVACION LINFOVENOSA SOD ",100]
[407300,"LINFANGIOPLASTIA SOD ",60]
[406300,"CIERRE DE FISTULA DEL CONDUCTO TORACICO SOD ",150]
[406600,"LIGADURA (OBLITERACION) EN EL AREA ILIACA SOD ",150]
[406400,"LIGADURA DEL CONDUCTO TORACICO SOD ",150]
[404100,"VACIAMIENTO   LINFATICO RADICAL DE CUELLO, UNILATERAL SOD ",100]
[404200,"VACIAMIENTO LINFATICO RADICAL  DE CUELLO, BILATERAL SOD ",175]
[404301,"VACIAMIENTO LINFATICO RADICAL MODIFICADO DE CUELLO, UNILATERAL ",100]
[404302,"VACIAMIENTO LINFATICO RADICAL MODIFICADO DE CUELLO, BILATERAL ",175]
[404400,"VACIAMIENTO RADICAL SUPRAHIOIDEO DE CUELLO SOD ",80]
[402300,"ESCISIÓN DE GANGLIO LINFATICO AXILAR SOD ",90]
[405100,"VACIAMIENTO RADICAL LINFATICO AXILAR SOD ",150]
["M05210 ","VACIAMIENTO LINFÁTICO ABDÓMINO-INGUINAL  ",150]
[402400,"ESCISIÓN DE GANGLIO LINFATICO INGUINAL SOD ",150]
[405300,"VACIAMIENTO RADICAL LINFATICO INGUINO ILIACO SOD ",150]
[405301,"LINFADENECTOMIA RADICAL INGUINOFEMORAL, UNILATERAL ",110]
[405302,"LINFADENECTOMIA RADICAL INGUINOFEMORAL O ILIACA  BILATERAL ",265]
[405402,"LINFADENECTOMIA RADICAL EXTRAPERITONEAL ",150]
[405500,"ESCISION RADICAL DE GANGLIOS LINFATICOS RETROPERITONEALES SOD    (157) ",130]
[405401,"LINFADENECTOMIA RADICAL PELVICA ",130]
[397201,"EXPLORACION DE ARTERIAS EN CUERO CABELLUDO Y CARA ",75]
[397202,"EXPLORACION DE ARTERIAS ZONA I Y  III DE  CUELLO ",90]
[397203,"EXPLORACION DE ARTERIAS EN ZONA II DE CUELLO ",90]
[397204,"EXPLORACION DE VENAS EN CUERO CABELLUDO Y CARA ",75]
[397205,"EXPLORACION DE VENA EN ZONA I Y III DEL CUELLO ",90]
[397206,"EXPLORACION DE VENA EN ZONA II DEL CUELLO ",90]
[393201,"SUTURA DE ARTERIAS EN ZONA I Y III DEL CUELLO     (7) ",110]
[393202,"SUTURA DE ARTERIAS EN ZONA II DEL CUELLO    (7) ",110]
[393203,"SUTURA DE VENAS ZONA I Y III DE CUELLO    (7) ",110]
[393204,"SUTURA DE VENAS ZONA II DE CUELLO    (7) ",110]
[385201,"OCLUSION, PINZAMIENTO  O LIGADURA ARTERIAL EN ZONA I Y III DEL CUELLO    (7) ",110]
[385202,"OCLUSION, PINZAMIENTO  O LIGADURA ARTERIAL EN ZONA II DEL CUELLO    (7) ",110]
[385203,"OCLUSION, PINZAMIENTO  O LIGADURA VENOSA EN ZONA I Y III DEL CUELLO    (7) ",110]
[385204,"OCLUSION, PINZAMIENTO  O LIGADURA VENOSA EN ZONA II DEL CUELLO    (7) ",110]
[380201,"TROMBOEMBOLECTOMIA ARTERIAL DE ZONA I Y III DE CUELLO ",125]
[380202,"TROMBOEMBOLECTOMIA ARTERAL DE ZONA II DE CUELLO ",125]
[380203,"TROMBOEMBOLECTOMIA VENOSA DE ZONA I Y III DE  CUELLO ",125]
[380204,"TROMBOEMBOLECTOMIA VENOSA DE ZONA II DE  CUELLO ",125]
[381201,"ENDARTERECTOMIA DE LA CAROTIDA COMUN    (10) ",125]
[381202,"ENDARTERECTOMIA DE ARTERIA CAROTIDA EXTERNA    (10) ",125]
[383202,"RESECCION ARTERIAL CON ANASTOMOSIS TERMINO TERMINAL EN ZONA I Y III DE CUELLO   (11) ",180]
[383203,"RESECCION ARTERIAL CON ANASTOMOSIS TERMINO- TERMINAL EN ZONA II DE CUELLO    (11) ",180]
[383204,"RESECCION VENOSA CON ANASTOMOSIS TERMINO TERMINAL EN ZONA I Y III DE CUELLO    (11) ",180]
[383205,"RESECCION VENOSA CON ANASTOMOSIS TERMINO- TERMINAL EN ZONA II DE CUELLO ",180]
[384201,"RESECCION CON INJERTO AUTOLOGO O PROTESIS DE VASOS DE LA ZONA I Y III DEL CUELLO    (11) ",300]
[384202,"RESECCION CON INJERTO AUTOLOGO O PROTESIS DE VASOS DE LA ZONA II DE CUELLO    (11) ",300]
[380601,"TROMBOEMBOLECTOMIA DE ARTERIAS ABDOMINALES VIA ABIERTA ",100]
[380700,"TROMBOEMBOLECTOMIA DE VENAS ABDOMINALES SOD ",100]
[380701,"TROMBOEMBOLECTOMIA DE  VENAS ABDOMINALES, VIA ABIERTA ",100]
[381603,"ENDARTERECTOMIA AORTOILIACA    (76) ",100]
[381400,"ENDARTERECTOMIA DE AORTA SOD    (76) ",185]
[384400,"RESECCION CON SUSTITUCION DE AORTA ABDOMINAL SOD ",250]
[392604,"DERIVACION AORTICO-MESENTERICO SUPERIOR ",250]
[384600,"RESECCION CON SUSTITUCION DE ARTERIAS ABDOMINALES SOD ",200]
[381500,"ENDARTERECTOMIA DE VASOS TORACICOS SOD   (76) ",185]
[392400,"DERIVACION AORTA-RENAL SOD    (12) ",240]
[392501,"DERIVACION AORTO-FEMORAL    (12) ",240]
[392502,"DERIVACION AORTO-ILIACA    (12) ",240]
[381601,"ENDARTERECTOMIA RENAL   (76) ",155]
[381602,"ENDARTERECTOMIA  CELIACA Y/O MESENTERICA    (76) ",155]
[383601,"RESECCION CON ANASTOMOSIS TERMINO-TERMINAL DE ARTERIAS ABDOMINALES   ",200]
[383701,"RESECCION CON ANASTOMOSIS TERMINO- TERMINAL DE VENAS ABDOMINALES    (11) ",250]
[384700,"RESECCION CON SUSTITUCION DE VENAS ABDOMINALES SOD    (11) ",250]
[388700,"LIGADURA Y ESCISIÓN DE VENAS VARICOSAS ABDOMINALES SOD ",125]
[384500,"RESECCION CON SUSTITUCION DE VASOS TORACICOS SOD ",200]
[385500,"OCLUSION, PINZAMIENTO  O LIGADURA DE VASOS TORACICOS SOD ",125]
[390200,"ANASTOMOSIS (INJERTO) SUBCLAVIA-PULMONAR SOD ",200]
[391201,"DERIVACION YUGULO-CAVA ",200]
[391202,"DERIVACION YUGULO- ATRIAL ",200]
[392100,"ANASTOMOSIS DE VENA CAVA-ARTERIA PULMONAR SOD ",200]
[392201,"DERIVACION DE AORTA A CAROTIDA ",200]
[392203,"DERIVACION O PUENTE SUBCLAVIO- SUBCLAVIO ",200]
[392204,"DERIVACION O PUENTE AORTO- SUBCLAVIO ",200]
[381501,"TROMBOENDARTERECTOMIA PULMONAR     (76) ",350]
[383401,"RECONSTRUCION  DE AORTA TORACICA ASCENDENTE ",410]
[383402,"RECONSTRUCCION DEL CAYADO AORTICO ",500]
[383403,"RECONSTRUCION DE AORTA TORACICA DESCENDENTE ",400]
[383405,"RECONSTRUCION AORTICA TORACO- ABDOMINAL (METODOS CLASICO, DE KOUCHOUKOSY DE LA TROMPA DE ELEFANTE) ",500]
[358701,"REPARACION DE COARTACION AORTICA CON RESECCION Y ANASTOMOSIS T-T. ",350]
[358702,"REPARACION DE COARTACION AORTICA CON  RESECCION Y COLGAJO DE SUBCLAVIA ",350]
[358703,"REPARACION DE COARTACION AORTICA CON INTERPOSICION DE INJERTO ",350]
[390100,"ANASTOMOSIS (INJERTO) AORTA ASCENDENTE-ARTERIA PULMONAR SOD ",350]
[358001,"REPARACION DE CANAL ATRIO-VENTRICULAR PARCIAL ",300]
[358301,"CIERRE DE DUCTUS ARTERIOSO PERSITENTE  POR TORACOTOMIA ",300]
[358803,"REPARO DE VENTANA AORTOPULMONAR CON PARCHE AORTICO Y/O PULMONAR ",300]
[359200,"CREACION DE CONDUCTO ENTRE EL VENTRICULO DERECHO Y LA ARTERIA PULMONAR SOD ",300]
[359300,"CREACION DE CONDUCTO ENTRE EL VENTRICULO IZQUIERDO Y LA AORTA SOD ",300]
[359401,"CREACION DE CONDUCTO ENTRE AURICULA Y ARTERIA PULMONAR ",300]
[359402,"CREACION DE FISTULAS SISTEMICO-PULMONARES ",300]
[359403,"DERIVACION CAVO- PULMONAR TOTAL [FONTAN] ",300]
[359404,"DERIVACION CAVO SUPERIOR A ARTERIA PULMONAR [GLENN CLASICO O BIDIRECCIONAL] ",300]
[359405,"DERIVACION CAVO SUPERIOR- PULMONAR,  DEJANDO FLUJO ANTEROGRADO (REPARO UNO Y MEDIO VENTRICULAR) ",300]
[359700,"CERCLAJE DE ARTERIA PULMONAR SOD ",300]
[373600,"EXTRACCION DE CUERPO EXTRAÑO INTRACARDIACO SOD ",310]
[373700,"EXTRACCION DE CUERPO EXTRAÑO INTRAPERICARDICO SOD ",150]
[373103,"ESCISIÓN DE QUISTE O TUMOR PERICARDICO ",150]
[373301,"ESCISION DE TUMOR DEL CORAZON   (75) ",400]
[373303,"RESECCION ENDOMIOCARDICA    (75) ",400]
[373100,"PERICARDIECTOMIA SOD ",240]
[373200,"ESCISION DE ANEURISMA DE CORAZON SOD ",400]
[371200,"PERICARDIOTOMIA SOD   (144) ",100]
[374300,"PERICARDIORRAFIA SOD ",125]
[351100,"COMISUROTOMIA, VALVULOTOMIA O VALVULOPLASTIA AORTICA VIA ABIERTA SOD ",450]
[352100,"REEMPLAZO DE LA VALVULA AORTICA CON PROTESIS MECANICA O BIOPROTESIS (AUTOLOGA O HETEROLOGA) SOD ",450]
[352600,"REEMPLAZO DE LA VALVULA AORTICA Y AORTA ASCENDENTE SOD ",680]
[351200,"COMISUROTOMIA, VALVULOTOMIA O VALVULOPLASTIA  MITRAL VIA ABIERTA SOD ",425]
[352200,"REEMPLAZO DE VALVULA MITRAL CON PROTESIS O BIOPROTESIS (AUTOLOGA O HETEROLOGA) SOD ",450]
[351400,"COMISUROTOMIA, VALVULOTOMIA O VALVULOPLASTIA  TRICUSPIDEA VIA ABIERTA SOD ",400]
[352700,"REINTERVENCION POR DISFUNCION PROTESICA VALVULAR SIN REEMPLAZO  O SUSTITUCION SOD ",350]
[352300,"REEMPLAZO DE VALVULA TRICUSPIDE CON PROTESIS MECANICA O BIOPROTESIS (AUTOLOGA O HETEROLOGA) SOD ",450]
[351300,"COMISUROTOMIA, VALVULOTOMIA O VALVULOPLASTIA PULMONAR VIA ABIERTA SOD ",385]
[352400,"REEMPLAZO O RECONSTRUCCION DE DOS O TRES VALVULAS SOD    (199) ",500]
[352500,"REINTERVENCION PARA SUSTITUCIÓN DE PROTESIS VALVULARES  SOD *    (200) ",550]
[355101,"REPARACION DE DEFECTO DE TABIQUE INTERAURICULAR CON PROTESIS ",370]
[356100,"ATRIOSEPTOPLASTIA CON INJERTO (PARCHE) DE TEJIDO SOD * ",370]
[356101,"REPARACION DE DEFECTO INTERAURICULAR CON SUTURA CONTINUA ",370]
[355201,"REPARACION DE DEFECTO DE TABIQUE INTERVENTRICULAR CON PROTESIS ",400]
[356201,"REPARACION DE DEFECTO INTERVENTRICULAR CON PARCHE A TRAVES DE AURICULA DERECHA, VENTRICULOTOMIA DERECHA O ARTERIOTOMIA PULMONAR O AORTICA ",400]
[356202,"REPARACION DE DEFECTO INTERVENTRICULAR CON PARCHE A TRAVES DE VENTRICULOTOMIA IZQUIERDA ",400]
[358800,"CORRECCION TOTAL DE TRANSPOSICION DE GRANDES VASOS SOD * ",550]
[358801,"TRANSPOSICION DEL RETORNO VENOSO CON PARCHE O SEPTACION INTERAURICULAR [MUSTARD Y SENNING] ",550]
[358802,"TRANSPOSICION ARTERIAL CON REIMPLANTE DE CORONARIAS [JATENE] ",550]
[358002,"REPARACION DE CANAL ATRIO-VENTRICULAR COMPLETO ( RASTELLY A, B, C. ) ",550]
[358101,"REPARACION DE TETRALOGIA DE FALLOT CON ESTENOSIS DE RAMAS PULMONARES ",550]
[358102,"REPARACION TRANSATRIAL DE LA TETRALOGIA DE FALLOT CON ESTENOSIS PULMONAR ",550]
[358103,"REPARACION  TRANSVENTRICULAR DE LA TETRALOGIA DE FALLOT ",550]
[358104,"REPARACION DE TETRALOGIA DE FALLOT CON ESTENOSIS DE BIFURCACION DEL TRONCO PULMONAR ",550]
[358105,"REPARACION DE TETRALOGIA DE FALLOT CON CORONARIA ANOMALA ( DESCENDENTE ANTERIOR ORIGINADA DE LA CORONARIA DERECHA) ",550]
[358106,"REPARACION DE TETRALOGIA DE FALLOT CON FISTULA SISTEMICO PULMONAR PREVIA ",550]
[358201,"REPARACION COMPLETA DE DRENAJE VENOSO PULMONAR ANOMALO TOTAL SUPRACARDIACO ",550]
[358202,"REPARACION COMPLETA DE DRENAJE VENOSO PULMONAR ANOMALO TOTAL INFRACARDIACO ",550]
[358203,"REPARACION COMPLETA DE DRENAJE VENOSO PULMONAR ANOMALO TOTAL A SENO CORONARIO O INTRACARDIACO ",550]
[358204,"REPARACION COMPLETA DE DRENAJE VENOSO PULMONAR ANOMALO TOTAL A AURICULA DERECHA ",550]
[358205,"REPARACION COMPLETA DE DRENAJE VENOSO PULMONAR ANOMALO TOTAL A VENA INFRADIAFRAGMATICA ",550]
[358206,"REPARACION COMPLETA DE DRENAJE VENOSO PULMONAR ANOMALO TOTAL MIXTO ",550]
[358207,"REPARACION  DE DRENAJE VENOSO PULMONAR ANOMALO PARCIAL DE VENAS PULMONARES DERECHAS A VENA CAVA SUPERIOR ",550]
[358208,"REPARACION  DE DRENAJE VENOSO PULMONAR ANOMALO PARCIAL DE VENAS PULMONARES DERECHAS A VENA CAVA INFERIOR ",550]
[358209,"REPARACION  DE DRENAJE VENOSO PULMONAR ANOMALO PARCIAL DE VENAS PULMONARES IZQUIERDA A VENA INNOMINADA ",550]
[358306,"REPARO  DEL TRUNCUS ARTERIOSO CON HOMOINJERTO O CON TEJIDO AUTOLOGO ",550]
[358307,"REPARO  DEL TRUNCUS ARTERIOSO CON CONDUCTO EXTERNO ",550]
[358308,"REPARO  DEL TRUNCUS ARTERIOSO CON PARCHE PERICARDICO DEJANDO ARTERIA PULMONAR ANTERIOR A LA AORTA [LECOMPTE] ",550]
[358401,"REPARO DE LA DOBLE SALIDA DEL VENTRICULO IZQUIERDO Y CONEXION ATRIOVENTRICULAR CONCORDANTE O DISCORDANTE ",550]
[358402,"REPARO DE LA DOBLE SALIDA DEL VENTRICULO IZQUIERDO CON ESTENOSIS PULMONAR ",550]
[358403,"REPARO DE LA DOBLE SALIDA DEL VENTRICULO IZQUIERDO E HIPOPLASIA DEL VENTRICULO DERECHO ",550]
[358501,"REPARO  DEL DOBLE  TRACTO DE SALIDA DEL VENTRICULO DERECHO CON CIV SUBAORTICA Y ESTENOSIS PULMONAR ",550]
[358502,"REPARO DE DEFECTO VENTRICULAR POR TRANSPOSICION AORTA CABALGAMIENTO PULMONAR [CORAZÓN DE TAUSSING- BING] ",550]
[358503,"REPARO DEL DOBLE TRACTO DE SALIDA DEL VENTRICULO DERECHO CON CIV DOBLE/ RELACIONADA ",550]
[358504,"REPARODEL DOBLE TRACTO DE SALIDA DEL VENTRICULO DERECHO CON CIV NO RELACIONADA ",550]
[358505,"REPARO DEL DOBLE TRACTO DE SALIDA DEL VENTRICULO DERECHO CON CANAL AV ",550]
[358506,"REPARO DEL DOBLE TRACTO DE SALIDA DEL VENTRICULO DERECHO CON L- MALPOSICION DE LA AORTA ",550]
[358507,"REPARO DEL DOBLE TRACTO DE SALIDA DEL VENTRICULO DERECHO Y CONEXIÓN ATRIOVENTRICULAR DISCORDANTE ",550]
[358508,"REPARO DEL DOBLE TRACTO DE SALIDA DEL VENTRICULO DERECHO CON ESTENOSIS PULMONAR ",550]
[358509,"REPARO DEL DOBLE TRACTO DE SALIDA DEL VENTRICULO DERECHO SIN ESTENOSIS PULMONAR ",550]
[358510,"REPARO INTRAVENTRICULAR DEL DOBLE TRACTO DE SALIDA DEL VENTRICULO DERECHO ",550]
[359502,"REINTERVENCION POR CARDIOPATIAS CONGENITAS COMPLEJAS ",570]
[374100,"CARDIORRAFIA SOD * ",150]
[374200,"REPARACION DE CORAZON POR RUPTURA POSTINFARTO SOD * ",400]
[360300,"ANGIOPLASTIA DE ARTERIA CORONARIA CON TORAX ABIERTO SOD * ",300]
[361100,"ANASTOMOSIS AORTOCORONARIA  DE UNA ARTERIA CORONARIA SOD *    (13) ",470]
[361200,"ANASTOMOSIS AORTOCORONARIAO DE DOS ARTERIAS CORONARIAS SOD *    (13) ",470]
[361300,"ANASTOMOSIS AORTOCORONARIAO DE TRES ARTERIAS CORONARIAS SOD *    (13) ",470]
[361400,"ANASTOMOSIS AORTOCORONARIAO DE CUATRO O MAS ARTERIAS CORONARIAS SOD*",490]
[361501,"ANASTOMOSIS  SIMPLE O SECUENCIAL DE ARTERIA MAMARIA-ARTERIA CORONARIA, POR ESTERNOTOMIA O TORACOTOMIA    (13) ",470]
[361701," ANASTOMOSIS CORONARIA PARA REVASCULARIZACION CARDIACA DE UNO O MAS VASOS CON VENA SAFENA POR ESTERNOTOMIA O TORACOTOMIA    (13) ",470]
[362100,"REVASCULARIZACION CARDIACA POR IMPLANTACION DE ARTERIA RADIAL SOD    (14) ",520]
[362200,"REVASCULARIZACION CARDIACA POR IMPLANTACION DE ARTERIA GASTROEPIPLOICA SOD *    (14) ",520]
[362300,"REVASCULARIZACION CARDIACA POR IMPLANTACION DE OTRAS ARTERIAS SOD    (14) ",520]
[363200,"REINTERVENCION DE REVASCULARIZACION  CARDIACA ( DERIVACION O PUENTES CORONARIOS) SOD *    (145) ",550]
[369200,"REPARACION O CIERRE DE FISTULA AORTO-CORONARIA SOD ",350]
[377401,"INSERCION O SUSTITUCION DE ELECTRODO EPICARDICO POR ESTERNOTOMIA O TORACOTOMIA    (146) ",350]
[376100,"IMPLANTACION DE BALON CONTRAPULSACION SOD    (344) ",100]
[373302,"RESECCION ABIERTA DE  HACES ANOMALOS DEL SISTEMA DE CONDUCCION    (75) ",450]
[379401,"IMPLANTACION DE CARDIOVERSOR/DESFIBRILADOR  POR VIA INFRACLAVICULAR ",180]
[379402,"IMPLANTACION DE CARDIOVERSOR/DESFIBRILADOR  POR  VIA SUBCUTANEA (SUBPECTORAL) ",180]
[359501,"REINTERVENCION POR SANGRADO, DESPUES DE CIRUGIA CARDIACA ",150]
[375100,"TRASPLANTE CARDIACO SOD ",1200]
[375200,"OBTENCIÓN DEL CORAZON ( DONANTE) SOD ",500]
[342000,"TORACENTESIS DIAGNÓSTICA SOD ",35]
[340101,"TORACENTESIS DE DRENAJE O DESCOMPRESIVA ",45]
[340400,"TORACOSTOMÍA PARA DRENAJE CERRADO [TUBO DE TÓRAX] SOD ",40]
[340200,"TORACOTOMIA EXPLORATORIA SOD ",95]
[343401,"EXTRACCION DE CUERPO EXTRAÑO DE MEDIASTINO POR TORACOTOMIA CON O SIN RESECCION DE COSTILLA ",120]
[344101,"ESCISION O ABLACIÓN DE LESION DE PARED TORACICA POR TORACOTOMIA ",90]
[344300,"EXTRACCIÓN DE CUERPO EXTRAÑO EN PARED TORÁCICA SOD ",95]
[397500,"EXPLORACION DE VASOS TORACICOS SOD ",95]
[340300,"TORACOSTOMÍA ABIERTA CON RESECCION COSTAL SOD ",120]
[330101,"EXTRACCIÓN DE CUERPO EXTRAÑO EN BRONQUIO O PULMON, VIA ABIERTA    (345) ",140]
[334302,"REPARACION DE  LACERACION PULMONAR  CON CONTROL DE HEMORRAGIA, POR TORACOTOMIA ",200]
[779131,"RESECCIÓN TOTAL DE COSTILLA  O  COSTOCONDRECTOMÍA (UNA O MAS) ",120]
[347001,"RECONSTRUCCION DE PARED TORACICA ANTERIOR CON COLGAJO (MUSCULAR O DE EPIPLON) ",280]
[347200,"CIERRE DE TORACOSTOMÍA ABIERTA SOD ",120]
[349400,"CONTROL DE HEMORRAGIA DESPUES DE INTERVENCIONES INTRATORÁCICAS SOD ",200]
[347600,"TORACOPLASTIA EXTRAPLEURAL SOD ",200]
[347300,"TORACOPLASTIA CON CIERRE DE FÍSTULA BRONCOPLEURAL SOD ",250]
[347000,"RECONSTRUCCION DE LA PARED TORACICA  SOD  ",120]
[776109,"RESECCION TUMOR BENIGNO DE TORAX (REJA COSTAL Y ESTERNON) ",100]
[779105,"RESECCIÓN TOTAL DE ESTERNON ",155]
[776110,"RESECCION TUMOR MALIGNO DE TORAX (REJA COSTAL Y ESTERNON) ",100]
[347500,"REPARACION DE DEFORMIDAD DE PECTUS SOD ",190]
[341101,"EXPLORACION Y DRENAJE DE MEDIASTINO POR MEDIASTINOTOMÍA ",120]
[343201,"RESECCIÓN DE QUISTE O TUMOR BENIGNO DEL MEDIASTINO  POR TORACOTOMIA ",150]
[343300,"RESECCIÓN DE TUMOR MALIGNO DEL MEDIASTINO SOD ",160]
[343301,"RESECCIÓN DE  TUMOR MALIGNO  DEL MEDIASTINO POR TORACOTOMIA    (15) ",250]
[343302,"RESECCIÓN DE  TUMOR MALIGNO  DEL MEDIASTINO POR ESTERNOTOMIA    (15) ",250]
[78100,"ESCISIÓN PARCIAL DE TIMO SOD ",170]
[78200,"ESCISIÓN TOTAL DE TIMO SOD ",190]
[347801,"RECONSTRUCCION DEL ESTERNON  CON  INTERPOSICION DE MUSCULOS ",220]
[347802,"RECONSTRUCCION DEL ESTERNON CON INTERPOSICION DE PROTESIS ",200]
[974300,"RETIRO DE SUTURAS DE TORAX ( RETIRO DE PUNTOS) SOD ",50]
[347400,"CERCLAJE ESTERNAL SOD ",100]
[345100,"PLEURECTOMÍA PARIETAL SOD ",130]
[349201,"PLEURODESIS QUÍMICA    (346) ",80]
[345300,"DECORTICACIÓN PULMONAR SOD ",150]
[320001,"RESECCIÓN O ABLACIÓN DE LESION O TEJIDO EN BRONQUIO CON BRONCOPLASTIA VÍA ABIERTA ",200]
[334400,"RECONSTRUCCION DE BRONQUIO (BRONCOPLASTIA) SOD ",140]
[334100,"SUTURA DE LACERACION BRONQUIAL SOD ",140]
[334202,"CIERRE DE BRONCOSTOMIA ",140]
[334201,"CIERRE DE FÍSTULA  BRONCOCUTÁNEA O BRONCOPLEURAL ",230]
[324200,"LOBECTOMÍA TOTAL PULMONAR SOD ",200]
[323100,"LOBECTOMIA SEGMENTARIA ( LOBECTOMIA PARCIAL O RESECCION EN CUÑA) SOD ",150]
[325100,"NEUMONECTOMÍA SIMPLE SOD ",185]
[325200,"NEUMONECTOMÍA RADICAL SOD ",250]
[347005,"RECONSTRUCCION DE LA PARED TORACICA CON PROTESIS ",200]
[325300,"NEUMONECTOMÍA CON DECORTICACION CONCOMITANTE (PLEURONEUMONECTOMIA) SOD ",300]
[322100,"RESECCIÓN O PLICATURA DE BULAS SOD ",150]
[322200,"REDUCCIÓN  QUIRURGICA DE VOLUMEN PULMONAR SOD ",200]
[334301,"NEUMORRAFIA SIMPLE ",130]
["E06321 ","SECCIÓN INTRATORÁCICA NERVIO FRÉNICO ",50]
[335100,"TRASPLANTE UNILATERAL DE PULMON SOD ",1500]
[335200,"TRASPLANTE BILATERAL DE PULMON SOD ",2500]
[325400,"OBTENCIÓN PULMONAR PARA TRANSPLANTE SOD    (185) ",1200]
[336100,"TRANSPLANTE DE PULMON CORAZON SOD ",2500]
[325500,"OBTENCIÓN DE CORAZÓN-PULMON SOD ",1200]
[420100,"DRENAJE DE COLECCIÓN DE ESÓFAGO POR ESOFAGOTOMIA SOD ",100]
[427100,"ESOFAGOTOMIA CERVICAL CON MIOTOMIA SOD ",110]
[427200,"ESOFAGOTOMIA TRANSTORACICA CON MIOTOMIA SOD ",200]
[427300,"ESOFAGOTOMIA CON MIOTOMIA EN ESPIRAL SOD ",200]
[421100,"ESOFAGOSTOMÍA CON  MIOTOMIA CERVICAL SOD ",160]
[425000,"ANASTOMOSIS  DE ESOFAGO  VIA INTRATORACICA Y/O CERVICAL SOD ",200]
[428300,"CIERRE DE ESOFAGOSTOMIA SOD ",125]
[429401,"EXTRACCIÓN DE CUERPO EXTRAÑO O LESIÓN LOCALIZADA EN ESÓFAGO CON REPARO PRIMARIO, VIA CERVICAL ",150]
[429402,"EXTRACCIÓN DE CUERPO EXTRAÑO O LESIÓN LOCALIZADA EN ESÓFAGO CON REPARO PRIMARIO, VIA TRANSTORACICA ",200]
[423101,"DIVERTICULECTOMÍA DE ESÓFAGO VIA CERVICAL  ",150]
[423102,"DIVERTICULECTOMÍA DE ESÓFAGO VIA TRANSTORACICA  ",200]
[423201,"RESECCIÓN DE TUMOR DE ESÓFAGO  VIA  CERVICAL ",150]
[423202,"RESECCIÓN DE TUMOR  DE ESÓFAGO  POR TORACOTOMIA ",200]
[423203,"RESECCIÓN DE TUMOR DE ESÓFAGO  VIA ABDOMINAL ",200]
[295500,"DIVERTICULOPEXIA DE LA HIPOFARINGE SOD ",90]
[424100,"ESOFAGECTOMIA PARCIAL SOD    (191) ",250]
[424200,"ESOFAGECTOMÍA TOTAL SOD    (191) (202) ",280]
[425502,"RECONSTRUCCION ESOFAGICA INTRATORACICA CON INTERPOSICION DE COLON VIA TORACOABDOMINAL Y CERVICAL ",200]
[425501,"RECONSTRUCCION ESOFAGICA INTRATORACICA CON INTERPOSICION DE COLON VIA ABDOMINAL Y CERVICAL ",200]
[426101,"RECONSTRUCCION ESOFAGICA ANTE -ESTERNAL CON  INTERPOSICION DE COLON ",200]
[426102,"RECONSTRUCCION ESOFAGICA ANTE -ESTERNAL CON INTERPOSICION DE INTESTINO DELGADO ",200]
[426103,"RECONSTRUCCION ESOFAGICA ANTE -ESTERNAL CON OTRA INTERPOSICION NCOC ** ",185]
[425300,"ANASTOMOSIS ESOFAGICA VIA  INTRATORACICA Y/O CERVICAL CON INTERPOSICION DEL INTESTINO DELGADO SOD ",185]
[425100,"ESOFAGOESOFAGOSTOMIA VIA INTRATORACICA Y/O CERVICAL SOD ",185]
[439300,"ESOFAGOGASTRECTOMIA SOD ",205]
[317301,"CIERRE DE FÍSTULA TRAQUEOESOFAGICA CON ANASTOMOSIS ESOFÁGICA E INTERPOSICION DE TEJIDO MEDIASTINAL ",200]
[428201,"ESOFAGORRAFIA POR CERVICOTOMIA ",150]
[428202,"ESOFAGORRAFIA POR TORACOTOMIA ",150]
[429101,"LIGADURA DE VARICES ESOFAGICAS VIA TRANSTORACICA ",170]
[429102,"LIGADURA DE VARICES ESOFAGICAS POR TRANSECCION GASTRICA ",170]
[427401,"ESOFAGOCARDIO MIOTOMIA ABDOMINAL O TORACICA [HELLER] VIA ABIERTA ",200]
[428500,"REPARACION DE ESTENOSIS ESOFAGICA SOD ",200]
[530100,"HERNIORRAFIA INGUINAL DIRECTA SOD   (84) ",70]
[530200,"HERNIORRAFIA INGUINAL INDIRECTA SOD    (84) ",70]
[530300,"HERNIORRAFIA INGUINAL ENCARCELADA SOD    (84) ",70]
[530500,"HERNIORRAFIA INGUINAL CON INJERTO O  PROTESIS SOD ",90]
[531100,"REPARACION BILATERAL DE HERNIA INGUINAL DIRECTA SOD    (84) ",125]
[531200,"REPARACION BILATERAL DE HERNIA INGUINAL INDIRECTA SOD    (84) ",125]
[531300,"REPARACION BILATERAL DE HERNIA INGUINAL CON  UNA PROTESIS SOD ",125]
[531400,"REPARACION BILATERAL DE HERNIA INGUINAL CON DOS PROTESIS SOD ",125]
[530400,"HERNIORRAFIA INGUINAL REPRODUCIDA SOD    (84) ",90]
[532100,"HERNIORRAFIA FEMORAL O CRURAL ENCARCELADA SOD    (84) ",70]
[532200,"HERNIORRAFIA FEMORAL O CRURAL POR DESLIZAMIENTO SOD    (84) ",70]
[533100,"REPARACION BILATERAL DE HERNIA CRURAL CON INJERTO O PROTESIS SOD ",125]
[533000,"HERNIORRAFIA BILATERAL FEMORAL O CRURAL REPRODUCIDA SOD    (84) ",160]
[535200,"HERNIORRAFIA EPIGÁSTRICA SOD    (84) ",60]
[535202,"HERNIORRAFIA EPIGÁSTRICA REPRODUCIDA    (84) ",60]
[535203,"HERNIORRAFIA EPIGÁSTRICA  CON PROTESIS    (84) ",60]
[534000,"HERNIORRAFIA UMBILICAL SOD    (84) ",60]
[534100,"HERNIORRAFIA UMBILICAL REPRODUCIDA SOD    (84) ",70]
[534200,"HERNIORRAFIA UMBILICAL CON PROTESIS SOD ",70]
[535100,"REPARACION DE HERNIA INCISIONAL (EVENTRACION) SOD    (84) ",80]
[543302,"ESCISIÓN DE LESION AMPLIA EN LA PARED ABDOMINAL CON PROTESIS ",100]
[547400,"EVENTRORRAFIA SOD ",80]
[547401,"EVENTRORRAFIA CON COLOCACION DE MALLA ",80]
[531400,"REPARACION BILATERAL DE HERNIA INGUINAL CON DOS PROTESIS SOD ",125]
[530400,"HERNIORRAFIA INGUINAL REPRODUCIDA SOD    (84) ",90]
[532100,"HERNIORRAFIA FEMORAL O CRURAL ENCARCELADA SOD    (84) ",70]
[532200,"HERNIORRAFIA FEMORAL O CRURAL POR DESLIZAMIENTO SOD    (84) ",70]
[533100,"REPARACION BILATERAL DE HERNIA CRURAL CON INJERTO O PROTESIS SOD ",125]
[533000,"HERNIORRAFIA BILATERAL FEMORAL O CRURAL REPRODUCIDA SOD    (84) ",160]
[535200,"HERNIORRAFIA EPIGÁSTRICA SOD    (84) ",60]
[535202,"HERNIORRAFIA EPIGÁSTRICA REPRODUCIDA    (84) ",60]
[535203,"HERNIORRAFIA EPIGÁSTRICA  CON PROTESIS    (84) ",60]
[534000,"HERNIORRAFIA UMBILICAL SOD    (84) ",60]
[534100,"HERNIORRAFIA UMBILICAL REPRODUCIDA SOD    (84) ",70]
[534200,"HERNIORRAFIA UMBILICAL CON PROTESIS SOD ",70]
[535100,"REPARACION DE HERNIA INCISIONAL (EVENTRACION) SOD    (84) ",80]
[543302,"ESCISIÓN DE LESION AMPLIA EN LA PARED ABDOMINAL CON PROTESIS ",100]
[547400,"EVENTRORRAFIA SOD ",80]
[547401,"EVENTRORRAFIA CON COLOCACION DE MALLA ",80]
[536200,"HERNIORRAFIA ISQUIÁTICA SOD    (84) ",60]
[536300,"HERNIORRAFIA ISQUIORRECTAL SOD    (84) ",60]
[536000,"HERNIORRAFIA LUMBAR SOD    (84) ",60]
[536100,"HERNIORRAFIA OBTURADORA SOD    (84) ",60]
[537000,"REPARACION DE HERNIA DIAFRAGMATICA VIA ABDOMINAL SOD    (84) ",180]
[537100,"REPARACION DE HERNIA DIAFRAGMATICA VIA TORACICA SOD    (84) ",180]
[537200,"REPARACION DE HERNIA DIAFRAGMATICA VIA TORACOABDOMINAL SOD    (84) ",200]
[348201,"SUTURA DE LACERACION DIAFRAGMÁTICA VIA  TRANSTORACICA ",150]
[348202,"SUTURA DE LACERACION DIAFRAGMÁTICA VÍA ABDOMINAL POR LAPAROTOMÍA ",150]
[348600,"PLICATURA DE DIAFRAGMA POR EVENTRACIÓN SOD ",180]
[397400,"EXPLORACION DE AORTA ABDOMINAL SOD ",90]
[397601,"EXPLORACION DE ARTERIAS ABDOMINALES,  UNA O MAS ",90]
[397700,"EXPLORACION DE VENAS ABDOMINALES SOD ",90]
[541200,"LAPAROTOMIA EXPLORATORIA SOD ",90]
[591910,"EXPLORACIÓN DE TEJIDO PERIVESICAL ",90]
[540000,"DRENAJE DE COLECCIÓN  EN PARED ABDOMINAL SOD ",30]
[543100,"ESCISIÓN DE TUMOR BENIGNO EN LA PARED ABDOMINAL SOD ",30]
[543200,"RESECCION DE TUMOR MALIGNO DE LA PARED ABDOMINAL SOD ",55]
[546100,"NUEVO CIERRE DE DISRUPCION POSTOPERATORIA DE PARED ABDOMINAL (EVISCERACION) SOD ",60]
["M07124 ","LAPAROTOMÍA PARA HEMOSTASIA Y EVACUACIÓN DE HEMOPERITONEO ",130]
[542500,"LAVADO PERITONEAL DIAGNOSTICO SOD    (186) ",40]
[541301,"DRENAJE DE COLECCIÓN  INTRAPERITONEAL(EPIPLOICO, OMENTAL,PERIESPLÉNICO, PERIGÁSTRICO, SUBHEPÁTICO, DE LA FOSA ILÍACA O PLASTRÓN APENDICULAR)  POR LAPAROTOMÍA ",100]
[540001,"DRENAJE DE COLECCIÓN EXTRAPERITONEAL ",100]
[540002,"DRENAJE DE COLECCIÓN RETROPERITONEAL ",100]
["M07143 ","DRENAJE DE ABSCESO SUBFRÉNICO O SUBDIAFRAGMÁTICO, CUALQUIER VÍA ",100]
["M07142 ","DRENAJE PERITONITIS GENERALIZADA ",110]
[541400,"LAVADO PERITONEAL TERAPEUTICO SOD ",100]
[547200,"CORRECCIÓN DE ONFALOCELE SOD ",70]
[547100,"CORRECCIÓN TOTAL DE EVISCERACION PRENATAL ( GASTROSQUISIS) SOD    (158) ",130]
[547300,"CIERRE DE PIEL CON INCISIONES DE RELAJACION EN ONFALOCELE O GASTROSQUISIS SOD ",80]
[541600,"RESECCION DE LESION BENIGNA O MALIGNA EN EPIPLON O EN MESENTERIO SOD ",110]
[541502,"RESECCIÓN DE TUMOR RETROPERITONEAL CON VACIAMIENTO GANGLIONAR ",290]
[541503,"RESECCIÓN DE TUMOR RETROPERITONEAL CON DISECCION DE ESTRUCTURAS VASCULARES U ORGANOS RETROPERITONEALES  ",290]
[599110,"ESCISIÓN DE TUMOR RETROPERITONEAL  CON DISECCIÓN DE GRANDES VASOS ",200]
[549201,"EXTRACCION CUERPO EXTRAÑO INTRAPERITONEAL (O DIU PERDIDO), POR LAPAROTOMIA ",75]
[544101,"OMENTECTOMÍA PARCIAL ",60]
[544102,"OMENTECTOMÍA TOTAL ",60]
[547600,"RESECCION DE QUISTE VITELINO O SENO UMBILICAL SOD ",60]
[544200,"ONFALECTOMÍA SOD ",60]
[549501,"PLICATURA DE PERITONEO [NOBLE MODIFICADA] ",100]
[545000,"LISIS DE ADHERENCIAS PERITONEALES  POR LAPAROTOMIA SOD ",140]

{"sheet":"Hoja2","index":1,"n_rows":4,"n_cols":2,"rows_kept":4,"cut":false,"hidden":false,"merged":[]}
["CODIGO",15102]
["PROCEDIMIENTOS",{"$f":"VLOOKUP(B1,ISS,2,FALSE)","v":"RESECCION TUMOR OSEO, POR CRANIECTOMIA "}]
["UVR",100]
["DERECHO DE SALA",{"$f":"IF(B3>450,1410*B3,VLOOKUP(B3,SALAS,2,TRUE))","v":144645}]

{"sheet":"TABLA","index":2,"n_rows":39,"n_cols":2,"rows_kept":39,"cut":false,"hidden":false,"merged":[[24,0,24,1]]}
["HASTA UVR","VALOR"]
[20,1280]
[30,26790]
[40,44270]
[50,55605]
[60,81176]
[70,96520]
[80,114830]
[90,129655]
[100,144645]
[110,148545]
[130,153075]
[150,186410]
[170,204700]
[200,246970]
[230,279405]
[260,318255]
[290,356455]
[320,401105]
[350,445560]
[380,471015]
[410,503460]
[450,548020]
[]
["MATERIALES"]
["Hasta UVR","Valor"]
[20,31000]
[30,32005]
[40,33110]
[50,45305]
[60,57410]
[70,82315]
[80,88610]
[90,95015]
[100,109205]
[110,123310]
[130,131115]
[150,140120]
[170,152910]

{"sheet":"INFORMACION ","index":3,"n_rows":16,"n_cols":6,"rows_kept":16,"cut":false,"hidden":false,"merged":[[1,0,4,0],[0,0,0,2],[5,0,8,0],[9,0,11,0],[12,0,14,0]]}
["INFORMACION PROCEDIMIENTO QUIRURGICOS "]
["INFORMACIN GENERAL","Documento Nº "]
[null,"Fecha"]
[null,"Sala Nº ",null,null,null,{"$f":"E4*'INFORMACION '!C163","v":0}]
[null,"Tiempo Empleado"]
["CARACTERISTICAS ","No de Cirugias",2]
[null,"No de Vias",2]
[null,"No de Cirujanos",2]
[null,"Bilateral","NO"]
["PRIMERA CIRUGIA ","CUPS",28500]
[null,"DETALLE",{"$f":"VLOOKUP(C10,ISS,2,FALSE)","v":"EXTRACCIÓN DE TRACTOR CEFALICO [HALO CHALECO] SOD "}]
[null,"UVR",{"$f":"VLOOKUP(C10,ISS,3,FALSE)","v":35}]
["SEGUNDA CIRUGIA ","CUPS",373301]
[null,"DETALLE",{"$f":"IF(C6=1,\"SOLO TIENE REGISTRADA UNA(1) CX\",VLOOKUP(C13,ISS,2,FALSE))","v":"ESCISION DE TUMOR DEL CORAZON   (75) "}]
[null,"UVR",{"$f":"IF(C12<VLOOKUP(C13,ISS,3,FALSE),\"LA PRIMERA CX ES DE MENOR VALOR, CORREGIR EL ORDEN\",VLOOKUP(C13,ISS,3,FALSE))","v":"LA PRIMERA CX ES DE MENOR VALOR, CORREGIR EL ORDEN"}]
["RECARGO","ISS-2001+",0.35]

{"sheet":"HONORARIOS ","index":4,"n_rows":18,"n_cols":8,"rows_kept":18,"cut":false,"hidden":false,"merged":[[9,7,9,8],[0,0,0,7],[1,0,1,7],[3,7,3,8],[4,7,4,8],[7,7,7,8]]}
["HONORARIOS PROFESIONALES"]
["HONORARIOS CIRUJANO"]
["CODIGO","PROCEDIMIENTO","UVR","VALOR PLENO","# vias","#CIRUJANO","%","VALOR  FACTURADO"]
[{"$f":"[1]INFORMACION!C10","v":16201},{"$f":"VLOOKUP(A4,ISS,2,FALSE)","v":"RESECCION TUMOR DE LA HOZ , POR CRANEOTOMIA Y PLASTIA "},{"$f":"VLOOKUP(A4,ISS,3,FALSE)","v":305},{"$f":"C4*G15","v":387350},{"$f":"[1]INFORMACION!C6","v":1},{"$f":"[1]INFORMACION!C8","v":1},1,{"$f":"(D4*G4)*(100%+[1]INFORMACION!C16)","v":522922.50000000006}]
[11302,{"$f":"IF(A5=\"\",\"\",VLOOKUP(A5,ISS,2,FALSE))","v":"BIOPSIA ABIERTA ( CRANEOTOMIA) DE CEREBRO "},{"$f":"IF(A5=\"\",0,VLOOKUP(A5,ISS,3,FALSE))","v":210},"%",266700,null,{"$f":"IF([1]INFORMACION!C9=\"SI\",75%,VLOOKUP(CONCATENATE([1]INFORMACION!C6,[1]INFORMACION!C7),CIRUGIA2,2,FALSE))","v":0.75},{"$f":"(E5*G5)*(100%+[1]INFORMACION!C16)","v":270033.75}]
[null,"HONORARIOS ANESTESISTA"]
["CODIGO","PROCEDIMIENTO","UVR","VALOR PLENO","# vias","#CIRUJANO","%","VALOR  FACTURADO"]
[null,null,{"$f":"VLOOKUP(A4,ISS,3,FALSE)","v":305},{"$f":"C4*G16","v":292800},null,null,1,{"$f":"(D8*G8)*(100%+[1]INFORMACION!C16)","v":395280}]
["CODIGO","PROCEDIMIENTO","UVR","VALOR PLENO","# vias","#CIRUJANO","%","VALOR  FACTURADO"]
[null,null,{"$f":"VLOOKUP(A4,ISS,3,FALSE)","v":305},{"$f":"C4*G17","v":109800},null,null,1,{"$f":"(D10*G10)*(100%+[1]INFORMACION!C16)","v":148230}]
[]
[]
[]
[null,null,null,null,null,"UVR","VALOR"]
[null,null,null,null,null,"CIRUJANO",1270]
[null,null,null,null,null,"ANEST",960]
[null,null,null,null,null,"AYUDANTE",360]
["CODIGO","PROCEDIMIENTO","UVR","VALOR PLENO","# vias","#CIRUJANO","%","VALOR  FACTURADO"]

{"sheet":"DERECHO DE SALA ","index":5,"n_rows":5,"n_cols":6,"rows_kept":5,"cut":false,"hidden":false,"merged":[[0,0,0,6],[3,5,3,6],[4,5,4,6]]}
["DERCHO DE SALA "]
[]
["CODIGO","DETALLE","UVR","BILATERAL ","Vr BASE","VALOR DERECHO DE SALA "]
[383501,{"$f":"VLOOKUP(A4,ISS,2,FALSE)","v":"RESECCION CON ANASTOMOSIS EN VASOS ESPINALES, SEGMENTO CERVICAL (77) "},{"$f":"VLOOKUP(A4,ISS,3,FALSE)","v":585},null,{"$f":"IF(C4>=450,C4*1410,VLOOKUP(C4,SALA,2,TRUE))","v":824850},{"$f":"E4*'INFORMACION '!C16+E4","v":1113547.5}]
[373301,{"$f":"IFERROR(VLOOKUP(A5,ISS,2,FALSE),\"\")","v":"ESCISION DE TUMOR DEL CORAZON   (75) "},{"$f":"IFERROR(VLOOKUP(A5,ISS,3,FALSE),\"\")","v":400},{"$f":"'INFORMACION '!C9","v":"NO"},{"$f":"IF(C5<=450,C5*1410,VLOOKUP(C5,SALA,2,TRUE))","v":564000},{"$f":"IF(D5=\"SI\",(E5*75%)*(100%+'INFORMACION '!C16),(E5*50%)*(100%+'INFORMACION '!C16))","v":380700}]

{"sheet":"INSUMOS MEDICOS","index":6,"n_rows":272,"n_cols":8,"rows_kept":272,"cut":false,"hidden":false,"merged":[]}
["ss","id","URL","ID Producto","Tipo Producto","Nombre Producto","idTipoProducto","VALOR"]
["http://www.mercadopublico.cl/TiendaFicha/Ficha?idProducto=",1266128,{"$f":"CONCATENATE(A2,B2)","v":"http://www.mercadopublico.cl/TiendaFicha/Ficha?idProducto=1266128"},{"$f":"HYPERLINK(C2,B2)","v":1266128},"ALARGADOR ARTERIAL","ALARGADOR ARTERIAL 3M MEDIVEINS ALPHA-MEDIKIT 25 UNIDADES",6844,15000]
["http://www.mercadopublico.cl/TiendaFicha/Ficha?idProducto=",1266131,"http://www.mercadopublico.cl/TiendaFicha/Ficha?idProducto=1266131",1266131,"ALARGADOR VENOSO","ALARGADOR VENOSO 3M 50 CM M/H MEDIVEINS-MEDIKIT 25 UNIDADES",6845,{"$f":" H2+5000","v":20000}]
["http://www.mercadopublico.cl/TiendaFicha/Ficha?idProducto=",1266186,"http://www.mercadopublico.cl/TiendaFicha/Ficha?idProducto=1266186",1266186,"APÓSITO","APÓSITO TEGADERM FILM 1627 TRANSPARENTE 10 X 25 CM 20 UNIDADES",6860,{"$f":" H3+5000","v":25000}]
["http://www.mercadopublico.cl/TiendaFicha/Ficha?idProducto=",1266197,"http://www.mercadopublico.cl/TiendaFicha/Ficha?idProducto=1266197",1266197,"APÓSITO","APÓSITO TEGADERM + PAD 3582 TRANSPARENTE CON GASA NO ADHERENTE 5 X 7 CM 50 UNIDADES",6860,30000]
["http://www.mercadopublico.cl/TiendaFicha/Ficha?idProducto=",1266196,"http://www.mercadopublico.cl/TiendaFicha/Ficha?idProducto=1266196",1266196,"APÓSITO","APÓSITO 3M TRANSPARENTE CON GASA NO ADHERENTE TEGADERM + PAD 3593 10 X 35 CM 25 UNIDADES",6860,35000]
["http://www.mercadopublico.cl/TiendaFicha/Ficha?idProducto=",1266155,"http://www.mercadopublico.cl/TiendaFicha/Ficha?idProducto=1266155",1266155,"APÓSITO","APÓSITO 3M CAVILON PELICULA PROTECTORA SIN ARDOR 3355 12 UNIDADES",6860,40000]
["http://www.mercadopublico.cl/TiendaFicha/Ficha?idProducto=",1266193,"http://www.mercadopublico.cl/TiendaFicha/Ficha?idProducto=1266193",1266193,"APÓSITO","APÓSITO 3M TRANSPARENTE ADHESIVO TEGADERM 9534HP 6 X 7 CM 100 UNIDADES",6860,45000]
["http://www.mercadopublico.cl/TiendaFicha/Ficha?idProducto=",1266166,"http://www.mercadopublico.cl/TiendaFicha/Ficha?idProducto=1266166",1266166,"APÓSITO","APÓSITO 3M HIDROGEL TUBO 15 GR TEGADERM 91110 10 UNIDADES",6860,50000]
["http://www.mercadopublico.cl/TiendaFicha/Ficha?idProducto=",1266151,"http://www.mercadopublico.cl/TiendaFicha/Ficha?idProducto=1266151",1266151,"APÓSITO","APÓSITO 3M ALGINATO DE CALCIO EN PLACA TEGADERM 90112 10 X 10 CM 10 UNIDADES ",6860,55000]
["http://www.mercadopublico.cl/TiendaFicha/Ficha?idProducto=",1266161,"http://www.mercadopublico.cl/TiendaFicha/Ficha?idProducto=1266161",1266161,"APÓSITO","APÓSITO 3M HIDROCOLOIDE OVALADO TEGADERM STANDARD 90001 7 X 9 CM 5 UNIDADES",6860,60000]
["http://www.mercadopublico.cl/TiendaFicha/Ficha?idProducto=",1266164,"http://www.mercadopublico.cl/TiendaFicha/Ficha?idProducto=1266164",1266164,"APÓSITO","APÓSITO 3M HIDROCOLOIDE THIN OVALADO TEGADERM 90023 10 X 12 CM 10 UNIDADES",6860,65000]
["http://www.mercadopublico.cl/TiendaFicha/Ficha?idProducto=",1266169,"http://www.mercadopublico.cl/TiendaFicha/Ficha?idProducto=1266169",1266169,"APÓSITO","APÓSITO 3M CAVILON PELICULA PROTECTORA SIN ARDOR SPRAY 28 ML 12 UNIDADES",6860,70000]
["http://www.mercadopublico.cl/TiendaFicha/Ficha?idProducto=",1266202,"http://www.mercadopublico.cl/TiendaFicha/Ficha?idProducto=1266202",1266202,"APÓSITO","APÓSITO 3M TRANSPARENTE CON GASA NO ADHERENTE TEGADERM + PAD 3589 9 X 15 CM 25 UNIDADES",6860,75000]
["http://www.mercadopublico.cl/TiendaFicha/Ficha?idProducto=",1266160,"http://www.mercadopublico.cl/TiendaFicha/Ficha?idProducto=1266160",1266160,"APÓSITO","APÓSITO 3M HIDROCOLOIDE OVALADO TEGADERM STANDARD 90004 14 X 17 CM 3 UNIDADES",6860,80000]
["http://www.mercadopublico.cl/TiendaFicha/Ficha?idProducto=",1266184,"http://www.mercadopublico.cl/TiendaFicha/Ficha?idProducto=1266184",1266184,"APÓSITO","APÓSITO 3M TRANSPARENTE ADHESIVO TEGADERM 1626W 10 X 12 CM 50 UNIDADES",6860,85000]
["http://www.mercadopublico.cl/TiendaFicha/Ficha?idProducto=",1266203,"http://www.mercadopublico.cl/TiendaFicha/Ficha?idProducto=1266203",1266203,"APÓSITO","APÓSITO 3M TRANSPARENTE CON GASA NO ADHERENTE TEGADERM + PAD 3591 9 X 25 CM 25 UNIDADES",6860,90000]
["http://www.mercadopublico.cl/TiendaFicha/Ficha?idProducto=",1266156,"http://www.mercadopublico.cl/TiendaFicha/Ficha?idProducto=1266156",1266156,"APÓSITO","APÓSITO 3M ESPUMA HIDROFÍLICA SIN ADHESIVO TEGADERM FOAM 90601 10 X 10 CM 10 UNIDADES",6860,95000]
["http://www.mercadopublico.cl/TiendaFicha/Ficha?idProducto=",1266192,"http://www.mercadopublico.cl/TiendaFicha/Ficha?idProducto=1266192",1266192,"APÓSITO","APÓSITO 3M TRANSPARENTE ADHESIVO TEGADERM 1624W 6 X 7 CM 100 UNIDADES",6860,100000]
["http://www.mercadopublico.cl/TiendaFicha/Ficha?idProducto=",1266165,"http://www.mercadopublico.cl/TiendaFicha/Ficha?idProducto=1266165",1266165,"APÓSITO","APÓSITO 3M HIDROCOLOIDE THIN OVALADO TEGADERM 90021 7 X 9 CM 10 UNIDADES",6860,105000]
["http://www.mercadopublico.cl/TiendaFicha/Ficha?idProducto=",1266179,"http://www.mercadopublico.cl/TiendaFicha/Ficha?idProducto=1266179",1266179,"APÓSITO","APÓSITO 3M TELA SUAVE CON GASA NO ADHERENTE MEDIPORE + PAD 3562 5 X 7 CM 50 UNIDADES",6860,110000]
["http://www.mercadopublico.cl/TiendaFicha/Ficha?idProducto=",1266195,"http://www.mercadopublico.cl/TiendaFicha/Ficha?idProducto=1266195",1266195,"APÓSITO","APÓSITO 3M TRANSPARENTE ADHESIVO TEGADERM I.V. 1655 8,5 X 11,5 CM 50 UNIDADES",6860,115000]
["http://www.mercadopublico.cl/TiendaFicha/Ficha?idProducto=",1266194,"http://www.mercadopublico.cl/TiendaFicha/Ficha?idProducto=1266194",1266194,"APÓSITO","APÓSITO 3M TRANSPARENTE ADHESIVO TEGADERM I.V. 1633 7 X 8,5 CM 100 UNIDADES",6860,120000]
["http://www.mercadopublico.cl/TiendaFicha/Ficha?idProducto=",1266191,"http://www.mercadopublico.cl/TiendaFicha/Ficha?idProducto=1266191",1266191,"APÓSITO","APÓSITO 3M TRANSPARENTE ADHESIVO TEGADERM I.V. 1610 5 X 5,7 CM 100 UNIDADES",6860,125000]
["http://www.mercadopublico.cl/TiendaFicha/Ficha?idProducto=",1266172,"http://www.mercadopublico.cl/TiendaFicha/Ficha?idProducto=1266172",1266172,"APÓSITO","APÓSITO 3M TEGADERM FOAM 10 X 20 CM 5 UNIDADES",6860,130000]
["http://www.mercadopublico.cl/TiendaFicha/Ficha?idProducto=",1339629,"http://www.mercadopublico.cl/TiendaFicha/Ficha?idProducto=1339629",1339629,"APÓSITO","APÓSITO 3M TEGADERM I.V. ADVANCED 1680 PEDIATRICO PEQUEÑO 3,8 X 4,5 CM 400 UNIDADES",6860,135000]
["http://www.mercadopublico.cl/TiendaFicha/Ficha?idProducto=",1266152,"http://www.mercadopublico.cl/TiendaFicha/Ficha?idProducto=1266152",1266152,"APÓSITO","APÓSITO 3M ANTIMICROBIANO CON PLATA TEGADERM AG MESH 90500 5 X 5 CM 5 UNIDADES",6860,140000]
["http://www.mercadopublico.cl/TiendaFicha/Ficha?idProducto=",1266190,"http://www.mercadopublico.cl/TiendaFicha/Ficha?idProducto=1266190",1266190,"APÓSITO","APÓSITO 3M TRANSPARENTE ADHESIVO TEGADERM 1622W 4,4 X 4,4 CM 100 UNIDADES",6860,145000]
["http://www.mercadopublico.cl/TiendaFicha/Ficha?idProducto=",1266153,"http://www.mercadopublico.cl/TiendaFicha/Ficha?idProducto=1266153",1266153,"APÓSITO","APÓSITO 3M ANTIMICROBIANO CON PLATA TEGADERM AG MESH 90501 10 X 12,7 CM 5 UNIDADES",6860,150000]
["http://www.mercadopublico.cl/TiendaFicha/Ficha?idProducto=",1266200,"http://www.mercadopublico.cl/TiendaFicha/Ficha?idProducto=1266200",1266200,"APÓSITO","APÓSITO 3M TRANSPARENTE CON GASA NO ADHERENTE TEGADERM + PAD 3587 9 X 10,5 CM 25 UNIDADES",6860,155000]
["http://www.mercadopublico.cl/TiendaFicha/Ficha?idProducto=",1266158,"http://www.mercadopublico.cl/TiendaFicha/Ficha?idProducto=1266158",1266158,"APÓSITO","APÓSITO 3M HIDROCOLOIDE CUADRADO STANDARD 90002 10 X 10 CM 5 UNIDADES",6860,160000]
["http://www.mercadopublico.cl/TiendaFicha/Ficha?idProducto=",1266150,"http://www.mercadopublico.cl/TiendaFicha/Ficha?idProducto=1266150",1266150,"APÓSITO","APÓSITO 3M ALGINATO DE CALCIO EN MECHA TEGADERM 90120 30,4 CM 5 UNIDADES",6860,165000]
["http://www.mercadopublico.cl/TiendaFicha/Ficha?idProducto=",1266175,"http://www.mercadopublico.cl/TiendaFicha/Ficha?idProducto=1266175",1266175,"APÓSITO","APÓSITO 3M TEGADERM I.V. CHG CATETERES CENTRALES 8,5 X 11,5 CM 25 UNIDADES",6860,170000]
["http://www.mercadopublico.cl/TiendaFicha/Ficha?idProducto=",1266176,"http://www.mercadopublico.cl/TiendaFicha/Ficha?idProducto=1266176",1266176,"APÓSITO","APÓSITO 3M TEGADERM I.V. CHG CATETERES PERIFERICOS 7 X 8,5 CM 25 UNIDADES",6860,175000]
["http://www.mercadopublico.cl/TiendaFicha/Ficha?idProducto=",1266148,"http://www.mercadopublico.cl/TiendaFicha/Ficha?idProducto=1266148",1266148,"APÓSITO","APÓSITO 3M ALGINATO AG TEGADERM 10 X 12,7 CM 10 UNIDADES",6860,180000]
["http://www.mercadopublico.cl/TiendaFicha/Ficha?idProducto=",1266149,"http://www.mercadopublico.cl/TiendaFicha/Ficha?idProducto=1266149",1266149,"APÓSITO","APÓSITO 3M ALGINATO AG TEGADERM 5 X 5 CM 10 UNIDADES",6860,185000]
["http://www.mercadopublico.cl/TiendaFicha/Ficha?idProducto=",1266170,"http://www.mercadopublico.cl/TiendaFicha/Ficha?idProducto=1266170",1266170,"APÓSITO","APÓSITO 3M RESTON CONFORMABLE 16 X 20 CM 2 UNIDADES",6860,190000]
["http://www.mercadopublico.cl/TiendaFicha/Ficha?idProducto=",1266183,"http://www.mercadopublico.cl/TiendaFicha/Ficha?idProducto=1266183",1266183,"APÓSITO","APÓSITO 3M TELA SUAVE CON GASA NO ADHERENTE MEDIPORE + PAD 3570 9 X 20 CM 25 UNIDADES",6860,195000]
["http://www.mercadopublico.cl/TiendaFicha/Ficha?idProducto=",1339630,"http://www.mercadopublico.cl/TiendaFicha/Ficha?idProducto=1339630",1339630,"APÓSITO","APÓSITO 3M TEGADERM I.V. ADVANCED 1682 PEDIATRICO GRANDE 5 X 5,7 CM 400 UNIDADES",6860,200000]
["http://www.mercadopublico.cl/TiendaFicha/Ficha?idProducto=",1266159,"http://www.mercadopublico.cl/TiendaFicha/Ficha?idProducto=1266159",1266159,"APÓSITO","APÓSITO 3M HIDROCOLOIDE OVALADO TEGADERM STANDARD 90003 10 X 12 CM 5 UNIDADES",6860,205000]
["http://www.mercadopublico.cl/TiendaFicha/Ficha?idProducto=",1266206,"http://www.mercadopublico.cl/TiendaFicha/Ficha?idProducto=1266206",1266206,"APÓSITO","APÓSITO 3M TRANSPARENTE NO ADHERENTE TEGADERM CONTACT 5644 20 X 25 CM 5 UNIDADES",6860,210000]
["http://www.mercadopublico.cl/TiendaFicha/Ficha?idProducto=",1266157,"http://www.mercadopublico.cl/TiendaFicha/Ficha?idProducto=1266157",1266157,"APÓSITO","APÓSITO 3M ESPUMA HIDROFÍLICA SIN ADHESIVO TEGADERM FOAM 90602 10 X 20 CM 5 UNIDADES",6860,215000]
["http://www.mercadopublico.cl/TiendaFicha/Ficha?idProducto=",1266173,"http://www.mercadopublico.cl/TiendaFicha/Ficha?idProducto=1266173",1266173,"APÓSITO","APÓSITO 3M TEGADERM I.V. ADVANCED 1683 6,5 X 7 CM 100 UNIDADES",6860,220000]
["http://www.mercadopublico.cl/TiendaFicha/Ficha?idProducto=",1266177,"http://www.mercadopublico.cl/TiendaFicha/Ficha?idProducto=1266177",1266177,"APÓSITO","APÓSITO 3M TEGADERM SUPERABSORBER 90701 10 X 10 CM 10 UNIDADES",6860,225000]
["http://www.mercadopublico.cl/TiendaFicha/Ficha?idProducto=",1266182,"http://www.mercadopublico.cl/TiendaFicha/Ficha?idProducto=1266182",1266182,"APÓSITO","APÓSITO 3M TELA SUAVE CON GASA NO ADHERENTE MEDIPORE + PAD 3569 9 X 15 CM 25 UNIDADES",6860,230000]
["http://www.mercadopublico.cl/TiendaFicha/Ficha?idProducto=",1266205,"http://www.mercadopublico.cl/TiendaFicha/Ficha?idProducto=1266205",1266205,"APÓSITO","APÓSITO 3M TRANSPARENTE NO ADHERENTE TEGADERM CONTACT 5643 7,5 X 20 CM 10 UNIDADES",6860,235000]
["http://www.mercadopublico.cl/TiendaFicha/Ficha?idProducto=",1266171,"http://www.mercadopublico.cl/TiendaFicha/Ficha?idProducto=1266171",1266171,"APÓSITO","APÓSITO 3M RESTON EN ROLLO 0,7 X 10 CM X 4,9 M UNIDAD",6860,240000]
["http://www.mercadopublico.cl/TiendaFicha/Ficha?idProducto=",1266180,"http://www.mercadopublico.cl/TiendaFicha/Ficha?idProducto=1266180",1266180,"APÓSITO","APÓSITO 3M TELA SUAVE CON GASA NO ADHERENTE MEDIPORE + PAD 3564 6 X 10 CM 50 UNIDADES",6860,245000]
["http://www.mercadopublico.cl/TiendaFicha/Ficha?idProducto=",1370315,"http://www.mercadopublico.cl/TiendaFicha/Ficha?idProducto=1370315",1370315,"APÓSITO","APÓSITO 3M TEGADERM I.V. AVANZADO 1685 CATETERES CENTRALES 200 UNIDADES",6860,250000]
["http://www.mercadopublico.cl/TiendaFicha/Ficha?idProducto=",1370314,"http://www.mercadopublico.cl/TiendaFicha/Ficha?idProducto=1370314",1370314,"APÓSITO","APÓSITO 3M TEGADERM I.V. AVANZADO 1683 CATETERES PERIFERICOS 400 UNIDADES",6860,255000]
["http://www.mercadopublico.cl/TiendaFicha/Ficha?idProducto=",1266178,"http://www.mercadopublico.cl/TiendaFicha/Ficha?idProducto=1266178",1266178,"APÓSITO","APÓSITO 3M TEGADERM SUPERABSORBER 90702 10 X 20 CM 10 UNIDADES",6860,260000]
["http://www.mercadopublico.cl/TiendaFicha/Ficha?idProducto=",1266162,"http://www.mercadopublico.cl/TiendaFicha/Ficha?idProducto=1266162",1266162,"APÓSITO","APÓSITO 3M HIDROCOLOIDE SACRO TEGADERM STANDARD 90007 12 X 14 CM 6 UNIDADES",6860,265000]
["http://www.mercadopublico.cl/TiendaFicha/Ficha?idProducto=",1266204,"http://www.mercadopublico.cl/TiendaFicha/Ficha?idProducto=1266204",1266204,"APÓSITO","APÓSITO 3M TRANSPARENTE NO ADHERENTE TEGADERM CONTACT 5642 7,5 X 10 CM 10 UNIDADES",6860,270000]
["http://www.mercadopublico.cl/TiendaFicha/Ficha?idProducto=",1266163,"http://www.mercadopublico.cl/TiendaFicha/Ficha?idProducto=1266163",1266163,"APÓSITO","APÓSITO 3M HIDROCOLOIDE THIN CUADRADO TEGADERM 90022 10 X 10 CM 5 UNIDADES",6860,275000]
["http://www.mercadopublico.cl/TiendaFicha/Ficha?idProducto=",1266189,"http://www.mercadopublico.cl/TiendaFicha/Ficha?idProducto=1266189",1266189,"APÓSITO","APÓSITO 3M TRANSPARENTE ADHESIVO TEGADERM 1629 20 X 30 CM 10 UNIDADES",6860,280000]
["http://www.mercadopublico.cl/TiendaFicha/Ficha?idProducto=",1266181,"http://www.mercadopublico.cl/TiendaFicha/Ficha?idProducto=1266181",1266181,"APÓSITO","APÓSITO 3M TELA SUAVE CON GASA NO ADHERENTE MEDIPORE + PAD 3566 9 X 10 CM 25 UNIDADES",6860,285000]
["http://www.mercadopublico.cl/TiendaFicha/Ficha?idProducto=",1266185,"http://www.mercadopublico.cl/TiendaFicha/Ficha?idProducto=1266185",1266185,"APÓSITO","APÓSITO 3M TRANSPARENTE ADHESIVO TEGADERM 9536HP 10 X 12 CM 50 UNIDADES",6860,290000]
["http://www.mercadopublico.cl/TiendaFicha/Ficha?idProducto=",1266188,"http://www.mercadopublico.cl/TiendaFicha/Ficha?idProducto=1266188",1266188,"APÓSITO","APÓSITO 3M TRANSPARENTE ADHESIVO TEGADERM 1628 15 X 20 CM 10 UNIDADES",6860,295000]
["http://www.mercadopublico.cl/TiendaFicha/Ficha?idProducto=",1266199,"http://www.mercadopublico.cl/TiendaFicha/Ficha?idProducto=1266199",1266199,"APÓSITO","APÓSITO 3M TRANSPARENTE CON GASA NO ADHERENTE TEGADERM + PAD 3584 6 X 10 CM 50 UNIDADES",6860,300000]
["http://www.mercadopublico.cl/TiendaFicha/Ficha?idProducto=",1266168,"http://www.mercadopublico.cl/TiendaFicha/Ficha?idProducto=1266168",1266168,"APÓSITO","APÓSITO 3M CAVILON PELICULA PROTECTORA SIN ARDOR SACHET 1 ML 25 UNIDADES",6860,305000]
["http://www.mercadopublico.cl/TiendaFicha/Ficha?idProducto=",1266174,"http://www.mercadopublico.cl/TiendaFicha/Ficha?idProducto=1266174",1266174,"APÓSITO","APÓSITO 3M TEGADERM I.V. ADVANCED 1685 8,5 X 11 CM 50 UNIDADES",6860,310000]
["http://www.mercadopublico.cl/TiendaFicha/Ficha?idProducto=",1323219,"http://www.mercadopublico.cl/TiendaFicha/Ficha?idProducto=1323219",1323219,"BANDEJA DE CURACIÓN ","BANDEJA DE CURACIÓN  3M KIT INTERMEDIO II ESTÉRIL DESECHABLE 3505 60 UNIDADES",6835,315000]
["http://www.mercadopublico.cl/TiendaFicha/Ficha?idProducto=",1266295,"http://www.mercadopublico.cl/TiendaFicha/Ficha?idProducto=1266295",1266295,"BANDEJA DE CURACIÓN ","BANDEJA DE CURACIÓN  3M KIT ESTÉRIL DESECHABLE 3538 30 UNIDADES",6835,320000]
["http://www.mercadopublico.cl/TiendaFicha/Ficha?idProducto=",1266297,"http://www.mercadopublico.cl/TiendaFicha/Ficha?idProducto=1266297",1266297,"BANDEJA DE CURACIÓN ","BANDEJA DE CURACIÓN  3M KIT INTERMEDIO II ESTÉRIL DESECHABLE 3509 40 UNIDADES",6835,325000]
["http://www.mercadopublico.cl/TiendaFicha/Ficha?idProducto=",1266634,"http://www.mercadopublico.cl/TiendaFicha/Ficha?idProducto=1266634",1266634,"BOBINA DE ESTERILIZACIÓN","ENVOLTURA  3M MIXTO CON FUELLE 30 CM X 100 M ROLLO",6823,330000]
["http://www.mercadopublico.cl/TiendaFicha/Ficha?idProducto=",1266639,{"$f":"CONCATENATE(A66,B66)","v":"http://www.mercadopublico.cl/TiendaFicha/Ficha?idProducto=1266639"},{"$f":"HYPERLINK(C66,B66)","v":1266639},"BOBINA DE ESTERILIZACIÓN","ENVOLTURA  3M MIXTO SIN FUELLE 20 CM X 200 M 2 ROLLOS",6823,335000]
["http://www.mercadopublico.cl/TiendaFicha/Ficha?idProducto=",1266635,"http://www.mercadopublico.cl/TiendaFicha/Ficha?idProducto=1266635",1266635,"BOBINA DE ESTERILIZACIÓN","ENVOLTURA  3M MIXTO CON FUELLE 40 CM X 100 M ROLLO",6823,340000]
["http://www.mercadopublico.cl/TiendaFicha/Ficha?idProducto=",1266632,"http://www.mercadopublico.cl/TiendaFicha/Ficha?idProducto=1266632",1266632,"BOBINA DE ESTERILIZACIÓN","ENVOLTURA  3M MIXTO CON FUELLE 20 CM X 100 M 2 ROLLOS",6823,{"$f":" H67+5000","v":345000}]
["http://www.mercadopublico.cl/TiendaFicha/Ficha?idProducto=",1266630,"http://www.mercadopublico.cl/TiendaFicha/Ficha?idProducto=1266630",1266630,"BOBINA DE ESTERILIZACIÓN","BOBINA DE ESTERILIZACIÓN 3M MIXTO CON FUELLE 10 CM X 100 M 3 ROLLOS",6823,350000]
["http://www.mercadopublico.cl/TiendaFicha/Ficha?idProducto=",1266637,"http://www.mercadopublico.cl/TiendaFicha/Ficha?idProducto=1266637",1266637,"BOBINA DE ESTERILIZACIÓN","ENVOLTURA  3M MIXTO SIN FUELLE 10 CM X 200 M 3 ROLLOS",6823,355000]
["http://www.mercadopublico.cl/TiendaFicha/Ficha?idProducto=",1266640,"http://www.mercadopublico.cl/TiendaFicha/Ficha?idProducto=1266640",1266640,"BOBINA DE ESTERILIZACIÓN","ENVOLTURA  3M MIXTO SIN FUELLE 25 CM X 200 M 2 ROLLOS",6823,360000]
["http://www.mercadopublico.cl/TiendaFicha/Ficha?idProducto=",1266642,"http://www.mercadopublico.cl/TiendaFicha/Ficha?idProducto=1266642",1266642,"BOBINA DE ESTERILIZACIÓN","ENVOLTURA  3M MIXTO SIN FUELLE 40 CM X 200 M ROLLO",6823,365000]
["http://www.mercadopublico.cl/TiendaFicha/Ficha?idProducto=",1266633,"http://www.mercadopublico.cl/TiendaFicha/Ficha?idProducto=1266633",1266633,"BOBINA DE ESTERILIZACIÓN","ENVOLTURA  3M MIXTO CON FUELLE 25 CM X 100 M 2 ROLLOS",6823,370000]
["http://www.mercadopublico.cl/TiendaFicha/Ficha?idProducto=",1266641,"http://www.mercadopublico.cl/TiendaFicha/Ficha?idProducto=1266641",1266641,"BOBINA DE ESTERILIZACIÓN","ENVOLTURA  3M MIXTO SIN FUELLE 30 CM X 200 M ROLLO",6823,375000]
["http://www.mercadopublico.cl/TiendaFicha/Ficha?idProducto=",1266631,"http://www.mercadopublico.cl/TiendaFicha/Ficha?idProducto=1266631",1266631,"BOBINA DE ESTERILIZACIÓN","ENVOLTURA  3M MIXTO CON FUELLE 15 CM X 100 M 2 ROLLOS",6823,380000]
["http://www.mercadopublico.cl/TiendaFicha/Ficha?idProducto=",1266638,"http://www.mercadopublico.cl/TiendaFicha/Ficha?idProducto=1266638",1266638,"BOBINA DE ESTERILIZACIÓN","ENVOLTURA  3M MIXTO SIN FUELLE 15 CM X 200 M 2 ROLLOS",6823,385000]
["http://www.mercadopublico.cl/TiendaFicha/Ficha?idProducto=",1266636,"http://www.mercadopublico.cl/TiendaFicha/Ficha?idProducto=1266636",1266636,"BOBINA DE ESTERILIZACIÓN","ENVOLTURA  3M MIXTO CON FUELLE 7,5 CM X 100 M 4 ROLLOS",6823,390000]
["http://www.mercadopublico.cl/TiendaFicha/Ficha?idProducto=",1400369,"http://www.mercadopublico.cl/TiendaFicha/Ficha?idProducto=1400369",1400369,"BOLSA PARA SANGRE","BOLSA PARA SANGRE BAIR HUGGER RANGER FLUJO STANDAR 242 10 UNIDADES",6846,395000]
["http://www.mercadopublico.cl/TiendaFicha/Ficha?idProducto=",1520428,"http://www.mercadopublico.cl/TiendaFicha/Ficha?idProducto=1520428",1520428,"CINTA ADHESIVA MEDICA","CINTA ADHESIVA MEDICA 3M MICROFOAM 1528-3 7,5 CM X 5 M 4 ROLLOS",6836,400000]
["http://www.mercadopublico.cl/TiendaFicha/Ficha?idProducto=",1322896,"http://www.mercadopublico.cl/TiendaFicha/Ficha?idProducto=1322896",1322896,"CINTA ADHESIVA MEDICA","CINTA ADHESIVA MEDICA 3M TRANSPORE 1527-2 5 CM X 9,1 M 6 UNIDADES",6836,405000]
["http://www.mercadopublico.cl/TiendaFicha/Ficha?idProducto=",1340026,"http://www.mercadopublico.cl/TiendaFicha/Ficha?idProducto=1340026",1340026,"CINTA ADHESIVA MEDICA","CINTA ADHESIVA MEDICA 3M ROLLO 2865L MEDIPORE H + LINER 15 CM X 10 M UNIDAD",6836,410000]
["http://www.mercadopublico.cl/TiendaFicha/Ficha?idProducto=",1322877,"http://www.mercadopublico.cl/TiendaFicha/Ficha?idProducto=1322877",1322877,"CINTA ADHESIVA MEDICA","CINTA ADHESIVA MEDICA 3M TRANSPORE 1527-1 2,5 CM X 9,1 M 12 UNIDADES",6836,415000]
["http://www.mercadopublico.cl/TiendaFicha/Ficha?idProducto=",1322899,"http://www.mercadopublico.cl/TiendaFicha/Ficha?idProducto=1322899",1322899,"CINTA ADHESIVA MEDICA","CINTA ADHESIVA MEDICA 3M MICROPORE 1535-2 5 CM X 9,1 M 6 UNIDADES",6836,420000]
["http://www.mercadopublico.cl/TiendaFicha/Ficha?idProducto=",1322889,"http://www.mercadopublico.cl/TiendaFicha/Ficha?idProducto=1322889",1322889,"CINTA ADHESIVA MEDICA","CINTA ADHESIVA MEDICA 3M TRANSPORE 1527-0 1,3 CM X 9,1 M 24 UNIDADES",6836,425000]
["http://www.mercadopublico.cl/TiendaFicha/Ficha?idProducto=",1322895,"http://www.mercadopublico.cl/TiendaFicha/Ficha?idProducto=1322895",1322895,"CINTA ADHESIVA MEDICA","CINTA ADHESIVA MEDICA 3M MICROPORE 1535-1 2,5 CM X 9,1 M 12 UNIDADES",6836,430000]
["http://www.mercadopublico.cl/TiendaFicha/Ficha?idProducto=",1340022,"http://www.mercadopublico.cl/TiendaFicha/Ficha?idProducto=1340022",1340022,"CINTA ADHESIVA MEDICA","CINTA ADHESIVA MEDICA 3M ROLLO 2862L MEDIPORE H + LINER 5 CM X 10 M UNIDAD",6836,435000]
["http://www.mercadopublico.cl/TiendaFicha/Ficha?idProducto=",1370313,"http://www.mercadopublico.cl/TiendaFicha/Ficha?idProducto=1370313",1370313,"CINTA ADHESIVA MEDICA","CINTA ADHESIVA MEDICA 3M 1533-2 MICROPORE COLOR PIEL S/DISPENSADOR 5 CM X 9,1 M, 6 ROLLOS/ CAJA",6836,440000]
["http://www.mercadopublico.cl/TiendaFicha/Ficha?idProducto=",1266393,"http://www.mercadopublico.cl/TiendaFicha/Ficha?idProducto=1266393",1266393,"CINTA ADHESIVA MEDICA","CINTA ADHESIVA MEDICA 3M MICROFOAM 1528-2 5 CM X 5 M 4 ROLLOS",6836,445000]
["http://www.mercadopublico.cl/TiendaFicha/Ficha?idProducto=",1266402,"http://www.mercadopublico.cl/TiendaFicha/Ficha?idProducto=1266402",1266402,"CINTA ADHESIVA MEDICA","CINTA ADHESIVA MEDICA 3M TELA SUAVE MEDIPORE H 2862 5 CM X 9,1 M 12 ROLLOS",6836,450000]
["http://www.mercadopublico.cl/TiendaFicha/Ficha?idProducto=",1266395,"http://www.mercadopublico.cl/TiendaFicha/Ficha?idProducto=1266395",1266395,"CINTA ADHESIVA MEDICA","CINTA ADHESIVA MEDICA 3M MICROFOAM 1528-4 10 CM X 5 M 3 ROLLOS",6836,455000]
["http://www.mercadopublico.cl/TiendaFicha/Ficha?idProducto=",1266404,"http://www.mercadopublico.cl/TiendaFicha/Ficha?idProducto=1266404",1266404,"CINTA ADHESIVA MEDICA","CINTA ADHESIVA MEDICA 3M TELA SUAVE MEDIPORE H 2864 10 CM X 9,1 M 12 ROLLOS",6836,460000]
["http://www.mercadopublico.cl/TiendaFicha/Ficha?idProducto=",1340024,"http://www.mercadopublico.cl/TiendaFicha/Ficha?idProducto=1340024",1340024,"CINTA ADHESIVA MEDICA","CINTA ADHESIVA MEDICA 3M ROLLO 2864L MEDIPORE H + LINER 10 CM X 10 M UNIDAD",6836,465000]
["http://www.mercadopublico.cl/TiendaFicha/Ficha?idProducto=",1299522,"http://www.mercadopublico.cl/TiendaFicha/Ficha?idProducto=1299522",1299522,"CINTA ADHESIVA MEDICA","CINTA ADHESIVA MEDICA 3M MICROPORE 1530-1  12 ROLLOS",6836,470000]
["http://www.mercadopublico.cl/TiendaFicha/Ficha?idProducto=",1266394,"http://www.mercadopublico.cl/TiendaFicha/Ficha?idProducto=1266394",1266394,"CINTA ADHESIVA MEDICA","CINTA ADHESIVA MEDICA 3M MICROFOAM 1528-2 5 CM X 5 M 6 ROLLOS",6836,475000]
["http://www.mercadopublico.cl/TiendaFicha/Ficha?idProducto=",1299524,"http://www.mercadopublico.cl/TiendaFicha/Ficha?idProducto=1299524",1299524,"CINTA ADHESIVA MEDICA","CINTA ADHESIVA MEDICA 3M MICROPOROSA 1533-1 2,5 CM X 9,1 M 12 ROLLOS",6836,480000]
["http://www.mercadopublico.cl/TiendaFicha/Ficha?idProducto=",1266401,"http://www.mercadopublico.cl/TiendaFicha/Ficha?idProducto=1266401",1266401,"CINTA ADHESIVA MEDICA","CINTA ADHESIVA MEDICA 3M QUIRÚRGICA DE SILICONA 2,5 CM X 5 M 12 ROLLOS",6836,485000]
["http://www.mercadopublico.cl/TiendaFicha/Ficha?idProducto=",1266403,"http://www.mercadopublico.cl/TiendaFicha/Ficha?idProducto=1266403",1266403,"CINTA ADHESIVA MEDICA","CINTA ADHESIVA MEDICA 3M TELA SUAVE MEDIPORE H 2863 7,5 CM X 9,1 M 12 ROLLOS",6836,490000]
["http://www.mercadopublico.cl/TiendaFicha/Ficha?idProducto=",1266391,"http://www.mercadopublico.cl/TiendaFicha/Ficha?idProducto=1266391",1266391,"CINTA ADHESIVA MEDICA","CINTA ADHESIVA MEDICA 3M DURAPORE 1538-1 2,5 CM X 9,1 M 12 ROLLOS",6836,495000]
["http://www.mercadopublico.cl/TiendaFicha/Ficha?idProducto=",1266396,"http://www.mercadopublico.cl/TiendaFicha/Ficha?idProducto=1266396",1266396,"CINTA ADHESIVA MEDICA","CINTA ADHESIVA MEDICA 3M MICROPORE 1533-0 1,3 CM X 9,1 M 24 ROLLOS",6836,500000]
["http://www.mercadopublico.cl/TiendaFicha/Ficha?idProducto=",1266397,"http://www.mercadopublico.cl/TiendaFicha/Ficha?idProducto=1266397",1266397,"CINTA ADHESIVA MEDICA","CINTA ADHESIVA MEDICA 3M MICROPORE 1535-0 1,3 CM X 9,1 M 24 ROLLOS",6836,505000]
["http://www.mercadopublico.cl/TiendaFicha/Ficha?idProducto=",1266408,"http://www.mercadopublico.cl/TiendaFicha/Ficha?idProducto=1266408",1266408,"CINTA ADHESIVA MEDICA","CINTA ADHESIVA MEDICA 3M TRANSPORE 1527-3 7,5 CM X 9,1 M 4 ROLLOS",6836,510000]
["http://www.mercadopublico.cl/TiendaFicha/Ficha?idProducto=",1266392,"http://www.mercadopublico.cl/TiendaFicha/Ficha?idProducto=1266392",1266392,"CINTA ADHESIVA MEDICA","CINTA ADHESIVA MEDICA 3M DURAPORE 1538-2 5 CM X 9,1 M 6 ROLLOS",6836,515000]
["http://www.mercadopublico.cl/TiendaFicha/Ficha?idProducto=",1515384,"http://www.mercadopublico.cl/TiendaFicha/Ficha?idProducto=1515384",1515384,"CINTA ESTERILIZACIÓN","CINTA ESTERILIZACIÓN COMPLY 3M ROLLO 55 X 19 CM 1228 PARA VH2O2 PERÓXIDO CAJA DE 24 UNIDADES",6842,520000]
["http://www.mercadopublico.cl/TiendaFicha/Ficha?idProducto=",1266387,"http://www.mercadopublico.cl/TiendaFicha/Ficha?idProducto=1266387",1266387,"CINTA ESTERILIZACIÓN","CINTA  ESTERILIZACIÓN 3M ETIQUETA INCHEQUE ROJO 12 ROLLOS",6842,525000]
["http://www.mercadopublico.cl/TiendaFicha/Ficha?idProducto=",1266384,"http://www.mercadopublico.cl/TiendaFicha/Ficha?idProducto=1266384",1266384,"CINTA ESTERILIZACIÓN","CINTA  ESTERILIZACIÓN 3M COMPLY TIRAS INDICADORAS OXIDO DE ETILENO MULTIPARÁMETRO 240 TIRAS",6842,530000]
["http://www.mercadopublico.cl/TiendaFicha/Ficha?idProducto=",1266374,"http://www.mercadopublico.cl/TiendaFicha/Ficha?idProducto=1266374",1266374,"CINTA ESTERILIZACIÓN","CINTA  ESTERILIZACIÓN 3M BOWIE-DICK TEST PACK PLUS 30 UNIDADES",6842,535000]
["http://www.mercadopublico.cl/TiendaFicha/Ficha?idProducto=",1266370,"http://www.mercadopublico.cl/TiendaFicha/Ficha?idProducto=1266370",1266370,"CINTA ESTERILIZACIÓN","CINTA  ESTERILIZACIÓN 3M AUTOCLAVE 12 MM X 55 M ROLLO",6842,540000]
["http://www.mercadopublico.cl/TiendaFicha/Ficha?idProducto=",1266375,"http://www.mercadopublico.cl/TiendaFicha/Ficha?idProducto=1266375",1266375,"CINTA ESTERILIZACIÓN","CINTA  ESTERILIZACIÓN 3M COMPLY AUTOCLAVE 12 MM X 55 M 42 ROLLOS",6842,545000]
["http://www.mercadopublico.cl/TiendaFicha/Ficha?idProducto=",1266383,"http://www.mercadopublico.cl/TiendaFicha/Ficha?idProducto=1266383",1266383,"CINTA ESTERILIZACIÓN","CINTA  ESTERILIZACIÓN 3M COMPLY OXIDO DE ETILENO 19 MM X 54,6 M 1224-6  ROLLO",6842,550000]
["http://www.mercadopublico.cl/TiendaFicha/Ficha?idProducto=",1266378,"http://www.mercadopublico.cl/TiendaFicha/Ficha?idProducto=1266378",1266378,"CINTA ESTERILIZACIÓN","CINTA  ESTERILIZACIÓN 3M COMPLY EMULADOR VAPOR CLASE 6 CICLO DE PRIONES 250 UNIDADES",6842,555000]
["http://www.mercadopublico.cl/TiendaFicha/Ficha?idProducto=",1322882,"http://www.mercadopublico.cl/TiendaFicha/Ficha?idProducto=1322882",1322882,"CINTA ESTERILIZACIÓN","CINTA  ESTERILIZACIÓN 3M ETIQUETA INCHEQUE ROJO 12 UNIDADES",6842,560000]
["http://www.mercadopublico.cl/TiendaFicha/Ficha?idProducto=",1266379,"http://www.mercadopublico.cl/TiendaFicha/Ficha?idProducto=1266379",1266379,"CINTA ESTERILIZACIÓN","CINTA ESTERILIZACIÓN 3M COMPLY INTEGRADOR VAPOR 100 UNIDADES",6842,565000]
["http://www.mercadopublico.cl/TiendaFicha/Ficha?idProducto=",1266386,"http://www.mercadopublico.cl/TiendaFicha/Ficha?idProducto=1266386",1266386,"CINTA ESTERILIZACIÓN","CINTA  ESTERILIZACIÓN 3M ETIQUETA INCHEQUE AZUL 12 ROLLOS",6842,570000]
["http://www.mercadopublico.cl/TiendaFicha/Ficha?idProducto=",1266372,"http://www.mercadopublico.cl/TiendaFicha/Ficha?idProducto=1266372",1266372,"CINTA ESTERILIZACIÓN","CINTA  ESTERILIZACIÓN 3M BOWIE-DICK TEST 00130LF 50 UNIDADES",6842,575000]
["http://www.mercadopublico.cl/TiendaFicha/Ficha?idProducto=",1266382,"http://www.mercadopublico.cl/TiendaFicha/Ficha?idProducto=1266382",1266382,"CINTA ESTERILIZACIÓN","CINTA  ESTERILIZACIÓN 3M COMPLY OXIDO DE ETILENO 19 MM X 54,6 M 1224-6  24 ROLLOS",6842,580000]
["http://www.mercadopublico.cl/TiendaFicha/Ficha?idProducto=",1266367,"http://www.mercadopublico.cl/TiendaFicha/Ficha?idProducto=1266367",1266367,"CINTA ESTERILIZACIÓN","CINTA  ESTERILIZACIÓN 3M AUTOCLAVE 12 MM X 50 M 42 ROLLOS",6842,585000]
["http://www.mercadopublico.cl/TiendaFicha/Ficha?idProducto=",1266366,"http://www.mercadopublico.cl/TiendaFicha/Ficha?idProducto=1266366",1266366,"CINTA ESTERILIZACIÓN","CINTA  ESTERILIZACIÓN 3M APLICADOR DE ETIQUETAS INCHEQUE UNIDAD",6842,590000]
["http://www.mercadopublico.cl/TiendaFicha/Ficha?idProducto=",1266371,"http://www.mercadopublico.cl/TiendaFicha/Ficha?idProducto=1266371",1266371,"CINTA ESTERILIZACIÓN","CINTA  ESTERILIZACIÓN 3M AUTOCLAVE 18 MM X 55 M 28 ROLLOS",6842,595000]
["http://www.mercadopublico.cl/TiendaFicha/Ficha?idProducto=",1266377,"http://www.mercadopublico.cl/TiendaFicha/Ficha?idProducto=1266377",1266377,"CINTA ESTERILIZACIÓN","CINTA  ESTERILIZACIÓN 3M COMPLY AUTOCLAVE 18 MM X 55 M ROLLO",6842,600000]
["http://www.mercadopublico.cl/TiendaFicha/Ficha?idProducto=",1266373,"http://www.mercadopublico.cl/TiendaFicha/Ficha?idProducto=1266373",1266373,"CINTA ESTERILIZACIÓN","CINTA  ESTERILIZACIÓN 3M BOWIE-DICK TEST PACK 1233LF 30 UNIDADES",6842,605000]
["http://www.mercadopublico.cl/TiendaFicha/Ficha?idProducto=",1266380,"http://www.mercadopublico.cl/TiendaFicha/Ficha?idProducto=1266380",1266380,"CINTA ESTERILIZACIÓN","CINTA  ESTERILIZACIÓN 3M COMPLY OXIDO DE ETILENO 12 MM X 54,6 M 1224-0  36 ROLLOS",6842,610000]
["http://www.mercadopublico.cl/TiendaFicha/Ficha?idProducto=",1266376,"http://www.mercadopublico.cl/TiendaFicha/Ficha?idProducto=1266376",1266376,"CINTA ESTERILIZACIÓN","CINTA  ESTERILIZACIÓN 3M COMPLY AUTOCLAVE 18 MM X 55 M 28 ROLLOS",6842,615000]
["http://www.mercadopublico.cl/TiendaFicha/Ficha?idProducto=",1266381,"http://www.mercadopublico.cl/TiendaFicha/Ficha?idProducto=1266381",1266381,"CINTA ESTERILIZACIÓN","CINTA  ESTERILIZACIÓN 3M COMPLY OXIDO DE ETILENO 12 MM X 54,6 M 1224-0  ROLLO",6842,620000]
["http://www.mercadopublico.cl/TiendaFicha/Ficha?idProducto=",1266368,"http://www.mercadopublico.cl/TiendaFicha/Ficha?idProducto=1266368",1266368,"CINTA ESTERILIZACIÓN","CINTA  ESTERILIZACIÓN 3M AUTOCLAVE 12 MM X 50 M 72 ROLLOS",6842,625000]
["http://www.mercadopublico.cl/TiendaFicha/Ficha?idProducto=",1266385,"http://www.mercadopublico.cl/TiendaFicha/Ficha?idProducto=1266385",1266385,"CINTA ESTERILIZACIÓN","CINTA  ESTERILIZACIÓN 3M COMPLY TIRAS INDICADORAS PARA VAPOR AUTOCLAVE MULTIPARAMETRO 240 TIRAS",6842,630000]
["http://www.mercadopublico.cl/TiendaFicha/Ficha?idProducto=",1266388,"http://www.mercadopublico.cl/TiendaFicha/Ficha?idProducto=1266388",1266388,"CINTA ESTERILIZACIÓN","CINTA  ESTERILIZACIÓN 3M ETIQUETA INCHEQUE VERDE 12 ROLLOS",6842,635000]
["http://www.mercadopublico.cl/TiendaFicha/Ficha?idProducto=",1266482,"http://www.mercadopublico.cl/TiendaFicha/Ficha?idProducto=1266482",1266482,"ELECTRODO","ELECTRODO 3M MONITORIZACIÓN RED DOT CON BROCHE DE CARBONO 5 UNIDADES",6813,640000]
["http://www.mercadopublico.cl/TiendaFicha/Ficha?idProducto=",1266486,"http://www.mercadopublico.cl/TiendaFicha/Ficha?idProducto=1266486",1266486,"ELECTRODO","ELECTRODO 3M RED DOT MONOTORIZACIÓN BROCHE DE CARBONO 5 UNIDADES",6813,645000]
["http://www.mercadopublico.cl/TiendaFicha/Ficha?idProducto=",1322905,"http://www.mercadopublico.cl/TiendaFicha/Ficha?idProducto=1322905",1322905,"ELECTRODO","ELECTRODO 3M NEONATAL CON CABLE 3 UNIDADES",6813,650000]
["http://www.mercadopublico.cl/TiendaFicha/Ficha?idProducto=",1266484,{"$f":"CONCATENATE(A130,B130)","v":"http://www.mercadopublico.cl/TiendaFicha/Ficha?idProducto=1266484"},{"$f":"HYPERLINK(C130,B130)","v":1266484},"ELECTRODO","ELECTRODO 3M NEONATAL CON CABLE 3 UNIDADES",6813,655000]
["http://www.mercadopublico.cl/TiendaFicha/Ficha?idProducto=",1266489,"http://www.mercadopublico.cl/TiendaFicha/Ficha?idProducto=1266489",1266489,"ELECTRODO","ELECTRODO 3M RED DOT USO GENERAL 2230 50 UNIDADES",6813,660000]
["http://www.mercadopublico.cl/TiendaFicha/Ficha?idProducto=",1266483,"http://www.mercadopublico.cl/TiendaFicha/Ficha?idProducto=1266483",1266483,"ELECTRODO","ELECTRODO 3M MULTIUSO 50 UNIDADES",6813,{"$f":" H131+5000","v":665000}]
["http://www.mercadopublico.cl/TiendaFicha/Ficha?idProducto=",1266490,"http://www.mercadopublico.cl/TiendaFicha/Ficha?idProducto=1266490",1266490,"ELECTRODO","ELECTRODO 3M RED DOT USO PEDIÁTRICO DE CINTA MICROPORE 2248 50 UNIDADES",6813,670000]
["http://www.mercadopublico.cl/TiendaFicha/Ficha?idProducto=",1266485,"http://www.mercadopublico.cl/TiendaFicha/Ficha?idProducto=1266485",1266485,"ELECTRODO","ELECTRODO 3M RED DOT CON SOPORTE DE CINTA MICROPORE 2249 50 UNIDADES",6813,675000]
["http://www.mercadopublico.cl/TiendaFicha/Ficha?idProducto=",1266493,"http://www.mercadopublico.cl/TiendaFicha/Ficha?idProducto=1266493",1266493,"ELECTRODO","ELECTRODO 3M USO GENERAL 50 UNIDADES",6813,680000]
["http://www.mercadopublico.cl/TiendaFicha/Ficha?idProducto=",1266492,"http://www.mercadopublico.cl/TiendaFicha/Ficha?idProducto=1266492",1266492,"ELECTRODO","ELECTRODO 3M TEST DE ESFUERZO ADULTO 5,1 CM DE DIAMETRO 2259 50 UNIDADES",6813,685000]
["http://www.mercadopublico.cl/TiendaFicha/Ficha?idProducto=",1266488,"http://www.mercadopublico.cl/TiendaFicha/Ficha?idProducto=1266488",1266488,"ELECTRODO","ELECTRODO 3M RED DOT PARA ECG 2330 40 UNIDADES",6813,690000]
["http://www.mercadopublico.cl/TiendaFicha/Ficha?idProducto=",1266481,"http://www.mercadopublico.cl/TiendaFicha/Ficha?idProducto=1266481",1266481,"ELECTRODO","ELECTRODO 3M MONITOREO PEDIATRICO 4.4 CM DE DIAMETRO 2248 50 UNIDADES",6813,695000]
["http://www.mercadopublico.cl/TiendaFicha/Ficha?idProducto=",1266487,"http://www.mercadopublico.cl/TiendaFicha/Ficha?idProducto=1266487",1266487,"ELECTRODO","ELECTRODO 3M RED DOT MULTIUSO 2228 50 UNIDADES",6813,700000]
["http://www.mercadopublico.cl/TiendaFicha/Ficha?idProducto=",1266535,"http://www.mercadopublico.cl/TiendaFicha/Ficha?idProducto=1266535",1266535,"ENGRAPADORA","ENGRAPADORA 3M PIEL PRECISE 35W 6 UNIDADES",6861,705000]
["http://www.mercadopublico.cl/TiendaFicha/Ficha?idProducto=",1266621,"http://www.mercadopublico.cl/TiendaFicha/Ficha?idProducto=1266621",1266621,"ENVOLTURA ","ENVOLTURA  3M CAMPO QUIRURGICO DE INCISIÓN YODADO IOBAN 6650EZ, 60 X 45 CM 10 UNIDADES",6825,710000]
["http://www.mercadopublico.cl/TiendaFicha/Ficha?idProducto=",1266626,"http://www.mercadopublico.cl/TiendaFicha/Ficha?idProducto=1266626",1266626,"ENVOLTURA ","ENVOLTURA  3M CAMPO QUIRURGICO STERI-DRAPE 2037, 35 X 28 CM 10 UNIDADES",6825,715000]
["http://www.mercadopublico.cl/TiendaFicha/Ficha?idProducto=",1299601,"http://www.mercadopublico.cl/TiendaFicha/Ficha?idProducto=1299601",1299601,"ENVOLTURA ","ENVOLTURA  3M PLACA UNIVERSAL DIVIDIDA 9160 100 UNIDADES",6825,720000]
["http://www.mercadopublico.cl/TiendaFicha/Ficha?idProducto=",1266616,"http://www.mercadopublico.cl/TiendaFicha/Ficha?idProducto=1266616",1266616,"ENVOLTURA ","ENVOLTURA  3M CAMPO QUIRURGICO DE INCISION 90 X 60 CM SERIE 2000 10 UNIDADES",6825,725000]
["http://www.mercadopublico.cl/TiendaFicha/Ficha?idProducto=",1266620,"http://www.mercadopublico.cl/TiendaFicha/Ficha?idProducto=1266620",1266620,"ENVOLTURA ","ENVOLTURA  3M CAMPO QUIRURGICO DE INCISIÓN YODADO IOBAN 6648EZ, 60 X 60 CM 10 UNIDADES",6825,730000]
["http://www.mercadopublico.cl/TiendaFicha/Ficha?idProducto=",1266619,"http://www.mercadopublico.cl/TiendaFicha/Ficha?idProducto=1266619",1266619,"ENVOLTURA ","ENVOLTURA  3M CAMPO QUIRURGICO DE INCISIÓN YODADO IOBAN 6640EZ, 35 X 35 CM 10 UNIDADES",6825,735000]
["http://www.mercadopublico.cl/TiendaFicha/Ficha?idProducto=",1266644,"http://www.mercadopublico.cl/TiendaFicha/Ficha?idProducto=1266644",1266644,"ENVOLTURA ","ENVOLTURA  3M MIXTO SIN FUELLE 7,5 CM X 200 M 4 ROLLOS",6825,740000]
["http://www.mercadopublico.cl/TiendaFicha/Ficha?idProducto=",1266643,"http://www.mercadopublico.cl/TiendaFicha/Ficha?idProducto=1266643",1266643,"ENVOLTURA ","ENVOLTURA  3M MIXTO SIN FUELLE 5 CM X 200 M 6 ROLLOS",6825,745000]
["http://www.mercadopublico.cl/TiendaFicha/Ficha?idProducto=",1266625,"http://www.mercadopublico.cl/TiendaFicha/Ficha?idProducto=1266625",1266625,"ENVOLTURA ","ENVOLTURA  3M CAMPO QUIRURGICO STERI-DRAPE 1050, 60 X 45 CM 10 UNIDADES",6825,750000]
["http://www.mercadopublico.cl/TiendaFicha/Ficha?idProducto=",1266623,"http://www.mercadopublico.cl/TiendaFicha/Ficha?idProducto=1266623",1266623,"ENVOLTURA ","ENVOLTURA  3M CAMPO QUIRURGICO STERI-DRAPE 1016, 50 X 60 CM 10 UNIDADES",6825,755000]
["http://www.mercadopublico.cl/TiendaFicha/Ficha?idProducto=",1266647,"http://www.mercadopublico.cl/TiendaFicha/Ficha?idProducto=1266647",1266647,"ENVOLTURA ","ENVOLTURA  3M PLACA UNIVERSAL ELECTROCIRUGIA STANDARD 100 UNIDADES",6825,760000]
["http://www.mercadopublico.cl/TiendaFicha/Ficha?idProducto=",1266618,"http://www.mercadopublico.cl/TiendaFicha/Ficha?idProducto=1266618",1266618,"ENVOLTURA ","ENVOLTURA  3M CAMPO QUIRURGICO DE INCISIÓN YODADO IOBAN 6619, 328 X 254 CM 5 UNIDADES",6825,765000]
["http://www.mercadopublico.cl/TiendaFicha/Ficha?idProducto=",1266629,"http://www.mercadopublico.cl/TiendaFicha/Ficha?idProducto=1266629",1266629,"ENVOLTURA ","ENVOLTURA  3M CAMPO QUIRURGICO STERI-DRAPE 2050, 60 X 60 CM 10 UNIDADES",6825,770000]
["http://www.mercadopublico.cl/TiendaFicha/Ficha?idProducto=",1266617,"http://www.mercadopublico.cl/TiendaFicha/Ficha?idProducto=1266617",1266617,"ENVOLTURA ","ENVOLTURA  3M CAMPO QUIRURGICO DE INCISION 90X45 CM IOBAN II 10 UNIDADES",6825,775000]
["http://www.mercadopublico.cl/TiendaFicha/Ficha?idProducto=",1266624,"http://www.mercadopublico.cl/TiendaFicha/Ficha?idProducto=1266624",1266624,"ENVOLTURA ","ENVOLTURA  3M CAMPO QUIRURGICO STERI-DRAPE 1040, 35 X 35 CM 10 UNIDADES",6825,780000]
["http://www.mercadopublico.cl/TiendaFicha/Ficha?idProducto=",1266645,"http://www.mercadopublico.cl/TiendaFicha/Ficha?idProducto=1266645",1266645,"ENVOLTURA ","ENVOLTURA  3M PLACA UNIVERSAL DIVIDIDA CON CABLE 40 UNIDADES",6825,785000]
["http://www.mercadopublico.cl/TiendaFicha/Ficha?idProducto=",1266627,"http://www.mercadopublico.cl/TiendaFicha/Ficha?idProducto=1266627",1266627,"ENVOLTURA ","ENVOLTURA  3M CAMPO QUIRURGICO STERI-DRAPE 2040, 45 X 28 CM 10 UNIDADES",6825,790000]
["http://www.mercadopublico.cl/TiendaFicha/Ficha?idProducto=",1266628,"http://www.mercadopublico.cl/TiendaFicha/Ficha?idProducto=1266628",1266628,"ENVOLTURA ","ENVOLTURA  3M CAMPO QUIRURGICO STERI-DRAPE 2045, 50 X 45 CM 10 UNIDADES",6825,795000]
["http://www.mercadopublico.cl/TiendaFicha/Ficha?idProducto=",1266622,"http://www.mercadopublico.cl/TiendaFicha/Ficha?idProducto=1266622",1266622,"ENVOLTURA ","ENVOLTURA  3M CAMPO QUIRURGICO STERI-DRAPE 1015, 130 X 120 CM 10 UNIDADES",6825,800000]
["http://www.mercadopublico.cl/TiendaFicha/Ficha?idProducto=",1266646,"http://www.mercadopublico.cl/TiendaFicha/Ficha?idProducto=1266646",1266646,"ENVOLTURA ","ENVOLTURA  3M PLACA UNIVERSAL ELECTROCIRUGIA DIVIDIDA 200 UNIDADES",6825,805000]
["http://www.mercadopublico.cl/TiendaFicha/Ficha?idProducto=",1266682,"http://www.mercadopublico.cl/TiendaFicha/Ficha?idProducto=1266682",1266682,"EQUIPO AUTOCLAVE ","EQUIPO AUTOCLAVE  3M ATTEST INCUBADORA 290 DE LECTURA RAPIDA UNIDAD",6828,810000]
["http://www.mercadopublico.cl/TiendaFicha/Ficha?idProducto=",1266746,"http://www.mercadopublico.cl/TiendaFicha/Ficha?idProducto=1266746",1266746,"ESTETOSCOPIO","ESTETOSCOPIO LITTMANN MASTER CLASICO II (PAR OLIVAS) 2634 3 UNIDADES",6863,815000]
["http://www.mercadopublico.cl/TiendaFicha/Ficha?idProducto=",1266741,"http://www.mercadopublico.cl/TiendaFicha/Ficha?idProducto=1266741",1266741,"ESTETOSCOPIO","ESTETOSCOPIO LITTMANN MASTER CLASICO II (PAR OLIVAS) 2146 3 UNIDADES",6863,820000]
["http://www.mercadopublico.cl/TiendaFicha/Ficha?idProducto=",1266724,"http://www.mercadopublico.cl/TiendaFicha/Ficha?idProducto=1266724",1266724,"ESTETOSCOPIO","ESTETOSCOPIO LITTMANN CLASICO II S.E. (PAR OLIVAS) 2210 3 UNIDADES",6863,825000]
["http://www.mercadopublico.cl/TiendaFicha/Ficha?idProducto=",1379876,"http://www.mercadopublico.cl/TiendaFicha/Ficha?idProducto=1379876",1379876,"ESTETOSCOPIO","ESTETOSCOPIO LITTMANN FONENDOSCOPIO CLASICO II NEGRO 2201 3 UNIDADES",6863,830000]
["http://www.mercadopublico.cl/TiendaFicha/Ficha?idProducto=",1379765,"http://www.mercadopublico.cl/TiendaFicha/Ficha?idProducto=1379765",1379765,"ESTETOSCOPIO","ESTETOSCOPIO LITTMANN FONENDOSCOPIO CLASICO III COLOR LAVANDA UNIDAD",6863,835000]
["http://www.mercadopublico.cl/TiendaFicha/Ficha?idProducto=",1379764,"http://www.mercadopublico.cl/TiendaFicha/Ficha?idProducto=1379764",1379764,"ESTETOSCOPIO","ESTETOSCOPIO LITTMANN FONENDOSCOPIO CLASICO III COLOR FRAMBUESA UNIDAD",6863,840000]
["http://www.mercadopublico.cl/TiendaFicha/Ficha?idProducto=",1512715,"http://www.mercadopublico.cl/TiendaFicha/Ficha?idProducto=1512715",1512715,"ESTETOSCOPIO","ESTETOSCOPIO LITTMANN CLASICO III FRAMBUESA ARCO IRIS 5806 UNIDAD",6863,845000]
["http://www.mercadopublico.cl/TiendaFicha/Ficha?idProducto=",1266755,"http://www.mercadopublico.cl/TiendaFicha/Ficha?idProducto=1266755",1266755,"ESTETOSCOPIO","ESTETOSCOPIO LITTMANN PEDIATRICO (PAR OLIVAS) 2153 3 UNIDADES",6863,850000]
["http://www.mercadopublico.cl/TiendaFicha/Ficha?idProducto=",1266751,"http://www.mercadopublico.cl/TiendaFicha/Ficha?idProducto=1266751",1266751,"ESTETOSCOPIO","ESTETOSCOPIO LITTMANN PEDIATRICO (PAR OLIVAS) 2113R 3 UNIDADES",6863,855000]
["http://www.mercadopublico.cl/TiendaFicha/Ficha?idProducto=",1266709,"http://www.mercadopublico.cl/TiendaFicha/Ficha?idProducto=1266709",1266709,"ESTETOSCOPIO","ESTETOSCOPIO LITTMANN CARDIOLOGICO III (PAR OLIVAS) 3130 3 UNIDADES",6863,860000]
["http://www.mercadopublico.cl/TiendaFicha/Ficha?idProducto=",1266747,"http://www.mercadopublico.cl/TiendaFicha/Ficha?idProducto=1266747",1266747,"ESTETOSCOPIO","ESTETOSCOPIO LITTMANN MASTER CLASSIC II (PAR OLIVAS) 2143 3 UNIDADES",6863,865000]
["http://www.mercadopublico.cl/TiendaFicha/Ficha?idProducto=",1266740,"http://www.mercadopublico.cl/TiendaFicha/Ficha?idProducto=1266740",1266740,"ESTETOSCOPIO","ESTETOSCOPIO LITTMANN MASTER CLASICO II (PAR OLIVAS) 2144L 3 UNIDADES",6863,870000]
["http://www.mercadopublico.cl/TiendaFicha/Ficha?idProducto=",1266754,"http://www.mercadopublico.cl/TiendaFicha/Ficha?idProducto=1266754",1266754,"ESTETOSCOPIO","ESTETOSCOPIO LITTMANN PEDIATRICO (PAR OLIVAS) 2123 3 UNIDADES",6863,875000]
["http://www.mercadopublico.cl/TiendaFicha/Ficha?idProducto=",1266715,"http://www.mercadopublico.cl/TiendaFicha/Ficha?idProducto=1266715",1266715,"ESTETOSCOPIO","ESTETOSCOPIO LITTMANN CLASICO II (PAR OLIVAS) 2209 3 UNIDADES",6863,880000]
["http://www.mercadopublico.cl/TiendaFicha/Ficha?idProducto=",1387179,"http://www.mercadopublico.cl/TiendaFicha/Ficha?idProducto=1387179",1387179,"ESTETOSCOPIO","ESTETOSCOPIO LITTMANN FONENDOSCOPIO CLASICO III COLOR SMOKE FINISH UNIDAD",6863,885000]
["http://www.mercadopublico.cl/TiendaFicha/Ficha?idProducto=",1379767,"http://www.mercadopublico.cl/TiendaFicha/Ficha?idProducto=1379767",1379767,"ESTETOSCOPIO","ESTETOSCOPIO LITTMANN FONENDOSCOPIO CLASICO III COLOR TURQUESA UNIDAD",6863,890000]
["http://www.mercadopublico.cl/TiendaFicha/Ficha?idProducto=",1387180,"http://www.mercadopublico.cl/TiendaFicha/Ficha?idProducto=1387180",1387180,"ESTETOSCOPIO","ESTETOSCOPIO LITTMANN FONENEDOSCOPIO CLASICO III COLOR CHOCOLATE Y CAMPANA COLOR COBRE UNIDAD",6863,895000]
["http://www.mercadopublico.cl/TiendaFicha/Ficha?idProducto=",1379766,"http://www.mercadopublico.cl/TiendaFicha/Ficha?idProducto=1379766",1379766,"ESTETOSCOPIO","ESTETOSCOPIO LITTMANN FONENDOSCOPIO CLASICO III COLOR CIRUELA UNIDAD",6863,900000]
["http://www.mercadopublico.cl/TiendaFicha/Ficha?idProducto=",1266739,"http://www.mercadopublico.cl/TiendaFicha/Ficha?idProducto=1266739",1266739,"ESTETOSCOPIO","ESTETOSCOPIO LITTMANN MASTER CLASICO II (PAR OLIVAS) 2141 3 UNIDADES",6863,905000]
["http://www.mercadopublico.cl/TiendaFicha/Ficha?idProducto=",1379745,"http://www.mercadopublico.cl/TiendaFicha/Ficha?idProducto=1379745",1379745,"ESTETOSCOPIO","ESTETOSCOPIO LITTMANN FONENDOSCOPIO CLASICO III COLOR LIMA LIMON UNIDAD",6863,910000]
["http://www.mercadopublico.cl/TiendaFicha/Ficha?idProducto=",1379743,"http://www.mercadopublico.cl/TiendaFicha/Ficha?idProducto=1379743",1379743,"ESTETOSCOPIO","ESTETOSCOPIO LITTMANN FONENDOSCOPIO CLASICO III COLOR NEGRO UNIDAD",6863,915000]
["http://www.mercadopublico.cl/TiendaFicha/Ficha?idProducto=",1379878,"http://www.mercadopublico.cl/TiendaFicha/Ficha?idProducto=1379878",1379878,"ESTETOSCOPIO","ESTETOSCOPIO LITTMANN FONENDOSCOPIO CLASICO III  AZUL CARIBE 3 UNIDADES",6863,920000]
["http://www.mercadopublico.cl/TiendaFicha/Ficha?idProducto=",1266734,"http://www.mercadopublico.cl/TiendaFicha/Ficha?idProducto=1266734",1266734,"ESTETOSCOPIO","ESTETOSCOPIO LITTMANN ELECTRONICO BLUETOOTH 3200N UNIDAD",6863,925000]
["http://www.mercadopublico.cl/TiendaFicha/Ficha?idProducto=",1379739,"http://www.mercadopublico.cl/TiendaFicha/Ficha?idProducto=1379739",1379739,"ESTETOSCOPIO","ESTETOSCOPIO LITTMANN FONENDOSCOPIO CLASICO III COLOR AZUL MARINO UNIDAD",6863,930000]
["http://www.mercadopublico.cl/TiendaFicha/Ficha?idProducto=",1299660,"http://www.mercadopublico.cl/TiendaFicha/Ficha?idProducto=1299660",1299660,"ESTETOSCOPIO","ESTETOSCOPIO LITTMANN PEDIATRICO (PAR OLIVAS) 2113B UNIDAD",6863,935000]
["http://www.mercadopublico.cl/TiendaFicha/Ficha?idProducto=",1266736,"http://www.mercadopublico.cl/TiendaFicha/Ficha?idProducto=1266736",1266736,"ESTETOSCOPIO","ESTETOSCOPIO 3M LITTMANN MASTER CARDIOLOGICO (PAR OLIVAS) 2161 3 UNIDADES",6863,940000]
["http://www.mercadopublico.cl/TiendaFicha/Ficha?idProducto=",1266735,"http://www.mercadopublico.cl/TiendaFicha/Ficha?idProducto=1266735",1266735,"ESTETOSCOPIO","ESTETOSCOPIO 3M LITTMANN MASTER CARDIOLOGICO (PAR O LIVAS) 2160 3 UNIDADES",6863,945000]
["http://www.mercadopublico.cl/TiendaFicha/Ficha?idProducto=",1266748,"http://www.mercadopublico.cl/TiendaFicha/Ficha?idProducto=1266748",1266748,"ESTETOSCOPIO","ESTETOSCOPIO 3M LITTMANN NEONATOLOGICO (PAR OLIVAS) 2114B 3 UNIDADES",6863,950000]
["http://www.mercadopublico.cl/TiendaFicha/Ficha?idProducto=",1266749,"http://www.mercadopublico.cl/TiendaFicha/Ficha?idProducto=1266749",1266749,"ESTETOSCOPIO","ESTETOSCOPIO 3M LITTMANN NEONATOLOGICO (PAR OLIVAS) 2157 3 UNIDADES",6863,955000]
["http://www.mercadopublico.cl/TiendaFicha/Ficha?idProducto=",1266744,"http://www.mercadopublico.cl/TiendaFicha/Ficha?idProducto=1266744",1266744,"ESTETOSCOPIO","ESTETOSCOPIO 3M LITTMANN MASTER CLASICO II (PAR OLIVAS) 2632 3 UNIDADES",6863,960000]
["http://www.mercadopublico.cl/TiendaFicha/Ficha?idProducto=",1266753,"http://www.mercadopublico.cl/TiendaFicha/Ficha?idProducto=1266753",1266753,"ESTETOSCOPIO","ESTETOSCOPIO 3M LITTMANN PEDIATRICO (PAR OLIVAS) 2122 3 UNIDADES",6863,965000]
["http://www.mercadopublico.cl/TiendaFicha/Ficha?idProducto=",1266732,"http://www.mercadopublico.cl/TiendaFicha/Ficha?idProducto=1266732",1266732,"ESTETOSCOPIO","ESTETOSCOPIO 3M LITTMANN CLASICO II S.E.(PAR OLIVAS) 2822 3 UNIDADES",6863,970000]
["http://www.mercadopublico.cl/TiendaFicha/Ficha?idProducto=",1266745,{"$f":"CONCATENATE(A194,B194)","v":"http://www.mercadopublico.cl/TiendaFicha/Ficha?idProducto=1266745"},{"$f":"HYPERLINK(C194,B194)","v":1266745},"ESTETOSCOPIO","ESTETOSCOPIO 3M LITTMANN MASTER CLASICO II (PAR OLIVAS) 2633 3 UNIDADES",6863,975000]
["http://www.mercadopublico.cl/TiendaFicha/Ficha?idProducto=",1266750,"http://www.mercadopublico.cl/TiendaFicha/Ficha?idProducto=1266750",1266750,"ESTETOSCOPIO","ESTETOSCOPIO 3M LITTMANN PEDIATRICO (PAR OLIVAS) 2113B 3 UNIDADES",6863,980000]
["http://www.mercadopublico.cl/TiendaFicha/Ficha?idProducto=",1299686,"http://www.mercadopublico.cl/TiendaFicha/Ficha?idProducto=1299686",1299686,"GASA","GASA NEXCARE 15 X15 CM ESTERIL, NO ADHERENTE 6 UNIDADES",6872,{"$f":" H195+5000","v":985000}]
["http://www.mercadopublico.cl/TiendaFicha/Ficha?idProducto=",1266888,"http://www.mercadopublico.cl/TiendaFicha/Ficha?idProducto=1266888",1266888,"HIDROGEL","HIDROGEL 3M 91110 TEGADERM 15 GR UNIDAD",6879,990000]
["http://www.mercadopublico.cl/TiendaFicha/Ficha?idProducto=",1266887,"http://www.mercadopublico.cl/TiendaFicha/Ficha?idProducto=1266887",1266887,"HIDROGEL","HIDROGEL 3M 91110 TEGADERM 15 GR 10 UNIDADES",6879,995000]
["http://www.mercadopublico.cl/TiendaFicha/Ficha?idProducto=",1266960,"http://www.mercadopublico.cl/TiendaFicha/Ficha?idProducto=1266960",1266960,"KIT DE ESTERILIZACIÓN","KIT DE ESTERILIZACIÓN 3M CLEAN-TRACE LUMINOMETRO NGI HOSPITAL UNIDAD",6829,1000000]
["http://www.mercadopublico.cl/TiendaFicha/Ficha?idProducto=",1266956,"http://www.mercadopublico.cl/TiendaFicha/Ficha?idProducto=1266956",1266956,"KIT DE ESTERILIZACIÓN","KIT DE ESTERILIZACIÓN 3M ATTEST CONTROL BIOLÓGICO LECTURA RÁPIDA 1298F 25 UNIDADES",6829,1005000]
["http://www.mercadopublico.cl/TiendaFicha/Ficha?idProducto=",1266959,"http://www.mercadopublico.cl/TiendaFicha/Ficha?idProducto=1266959",1266959,"KIT DE ESTERILIZACIÓN","KIT DE ESTERILIZACIÓN 3M ATTEST CONTROL BIOLÓGICO LECTURA RÁPIDA VAPOR 1292 50 UNIDADES",6829,1010000]
["http://www.mercadopublico.cl/TiendaFicha/Ficha?idProducto=",1266963,"http://www.mercadopublico.cl/TiendaFicha/Ficha?idProducto=1266963",1266963,"KIT DE ESTERILIZACIÓN","KIT DE ESTERILIZACIÓN 3M CONTROL BIOLOGICO DE PAQUETE LECTURA RÁPIDA ATTEST 1296F 25 UNIDADES",6829,1015000]
["http://www.mercadopublico.cl/TiendaFicha/Ficha?idProducto=",1266955,"http://www.mercadopublico.cl/TiendaFicha/Ficha?idProducto=1266955",1266955,"KIT DE ESTERILIZACIÓN","KIT DE ESTERILIZACIÓN 3M ATTEST CONTROL BIOLÓGICO LECTURA EXTRA RÁPIDA 1492V  50 UNIDADES",6829,1020000]
["http://www.mercadopublico.cl/TiendaFicha/Ficha?idProducto=",1299770,"http://www.mercadopublico.cl/TiendaFicha/Ficha?idProducto=1299770",1299770,"KIT DE ESTERILIZACIÓN","KIT DE ESTERILIZACIÓN 3M ATTEST CONTROL BIOLOGICO EXTRA RAPIDO 1496VF 24 UNIDADES",6829,1025000]
["http://www.mercadopublico.cl/TiendaFicha/Ficha?idProducto=",1266958,"http://www.mercadopublico.cl/TiendaFicha/Ficha?idProducto=1266958",1266958,"KIT DE ESTERILIZACIÓN","KIT DE ESTERILIZACIÓN 3M ATTEST CONTROL BIOLOGICO LECTURA RAPIDA PAQ. OXIDO DE ETILENO 25 UNIDADES",6829,1030000]
["http://www.mercadopublico.cl/TiendaFicha/Ficha?idProducto=",1266957,"http://www.mercadopublico.cl/TiendaFicha/Ficha?idProducto=1266957",1266957,"KIT DE ESTERILIZACIÓN","KIT DE ESTERILIZACIÓN 3M ATTEST CONTROL BIOLOGICO LECTURA RAPIDA PAQ. AUTOCLAVE 25 UNIDADES",6829,1035000]
["http://www.mercadopublico.cl/TiendaFicha/Ficha?idProducto=",1515365,"http://www.mercadopublico.cl/TiendaFicha/Ficha?idProducto=1515365",1515365,"LIMPIADOR DE HERIDAS","LIMPIADOR DE HERIDAS SOLUPREP 3M 10025 4 ESPONJAS SOLUCIÓN ANTISÉPTICA COLOREADA CAJA 30 U",7081,1040000]
["http://www.mercadopublico.cl/TiendaFicha/Ficha?idProducto=",1515362,"http://www.mercadopublico.cl/TiendaFicha/Ficha?idProducto=1515362",1515362,"LIMPIADOR DE HERIDAS","LIMPIADOR DE HERIDAS SOLUPREP 3M 10203 TÓRULA IMPREGNADA C/SOLUCIÓN ANTISÉPTICA TRANSP CAJA 50 U",7081,1045000]
["http://www.mercadopublico.cl/TiendaFicha/Ficha?idProducto=",1515364,"http://www.mercadopublico.cl/TiendaFicha/Ficha?idProducto=1515364",1515364,"LIMPIADOR DE HERIDAS","LIMPIADOR DE HERIDAS SOLUPREP 3M 10027 2 ESPONJAS SOLUCIÓN ANTISÉPTICA COLOREADA CAJA 30 U",7081,1050000]
["http://www.mercadopublico.cl/TiendaFicha/Ficha?idProducto=",1515367,"http://www.mercadopublico.cl/TiendaFicha/Ficha?idProducto=1515367",1515367,"MANTA TÉRMINA CLÍNICA","MANTA TÉRMINA CLÍNICA BAIR HUGGER 3M 550 BAJO PACIENTE PEDIÁTRICA GRANDE CAJA DE 10 UNIDADES",7760,1055000]
["http://www.mercadopublico.cl/TiendaFicha/Ficha?idProducto=",1515371,"http://www.mercadopublico.cl/TiendaFicha/Ficha?idProducto=1515371",1515371,"MANTA TÉRMINA CLÍNICA","MANTA TÉRMINA CLÍNICA BAIR HUGGER 3M 525 PARTE INFERIOR DEL CUERPO CAJA DE 10 UNIDADES",7760,1060000]
["http://www.mercadopublico.cl/TiendaFicha/Ficha?idProducto=",1515369,"http://www.mercadopublico.cl/TiendaFicha/Ficha?idProducto=1515369",1515369,"MANTA TÉRMINA CLÍNICA","MANTA TÉRMINA CLÍNICA BAIR HUGGER 3M 555 BAJO PACIENTE USO NEONATO CAJA DE 10 UNIDADES",7760,1065000]
["http://www.mercadopublico.cl/TiendaFicha/Ficha?idProducto=",1515392,"http://www.mercadopublico.cl/TiendaFicha/Ficha?idProducto=1515392",1515392,"MANTA TÉRMINA CLÍNICA","MANTA TÉRMINA CLÍNICA BAIR HUGGER 3M 300 CUERPO COMPLETO CAJA DE 10 UNIDADES",7760,1070000]
["http://www.mercadopublico.cl/TiendaFicha/Ficha?idProducto=",1515393,"http://www.mercadopublico.cl/TiendaFicha/Ficha?idProducto=1515393",1515393,"MANTA TÉRMINA CLÍNICA","MANTA TÉRMINA CLÍNICA BAIR HUGGER 3M 635 BAJO PACIENTE CUERPO COMPLETO CAJA DE 5 UNIDADES",7760,1075000]
["http://www.mercadopublico.cl/TiendaFicha/Ficha?idProducto=",1515381,"http://www.mercadopublico.cl/TiendaFicha/Ficha?idProducto=1515381",1515381,"MANTA TÉRMINA CLÍNICA","MANTA TÉRMINA CLÍNICA BAIR HUGGER 3M 622 MULTI-POSICIONAMIENTO CAJA DE 10 UNIDADES",7760,1080000]
["http://www.mercadopublico.cl/TiendaFicha/Ficha?idProducto=",1515374,"http://www.mercadopublico.cl/TiendaFicha/Ficha?idProducto=1515374",1515374,"MANTA TÉRMINA CLÍNICA","MANTA TÉRMINA CLÍNICA BAIR HUGGER BAIR HUGGER 585 BAJO PACIENTE LITOTOMÍA CAJA DE 10 UNIDADES",7760,1085000]
["http://www.mercadopublico.cl/TiendaFicha/Ficha?idProducto=",1266993,"http://www.mercadopublico.cl/TiendaFicha/Ficha?idProducto=1266993",1266993,"MASCARILLA","MASCARILLA 3M RESPIRADOR VFLEX 1805 TIPO N95 50 UNIDADES",6816,1090000]
["http://www.mercadopublico.cl/TiendaFicha/Ficha?idProducto=",1267002,"http://www.mercadopublico.cl/TiendaFicha/Ficha?idProducto=1267002",1267002,"MASCARILLA DESECHABLE","MASCARILLA DESECHABLE 3M RESPIRADOR DESECHABLE 1870 20 UNIDADES",6882,1095000]
["http://www.mercadopublico.cl/TiendaFicha/Ficha?idProducto=",1267003,"http://www.mercadopublico.cl/TiendaFicha/Ficha?idProducto=1267003",1267003,"MASCARILLA DESECHABLE","MASCARILLA DESECHABLE 3M RESPIRADOR DESECHABLE 8210 20 UNIDADES",6882,1100000]
["http://www.mercadopublico.cl/TiendaFicha/Ficha?idProducto=",1267001,"http://www.mercadopublico.cl/TiendaFicha/Ficha?idProducto=1267001",1267001,"MASCARILLA DESECHABLE","MASCARILLA DESECHABLE 3M RESPIRADOR DESECHABLE 1860 20 UNIDADES",6882,1105000]
["http://www.mercadopublico.cl/TiendaFicha/Ficha?idProducto=",1299908,"http://www.mercadopublico.cl/TiendaFicha/Ficha?idProducto=1299908",1299908,"PARCHE MÉDICO","PARCHE MÉDICO NEXCARE ADHESIVO RECTANGULAR 10 UNIDADES",6831,1110000]
["http://www.mercadopublico.cl/TiendaFicha/Ficha?idProducto=",1267095,"http://www.mercadopublico.cl/TiendaFicha/Ficha?idProducto=1267095",1267095,"PARCHE MÉDICO","PARCHE MÉDICO 3M OCULAR OPTICLUDE ADULTO 4004 200 UNIDADES",6831,1115000]
["http://www.mercadopublico.cl/TiendaFicha/Ficha?idProducto=",1267094,"http://www.mercadopublico.cl/TiendaFicha/Ficha?idProducto=1267094",1267094,"PARCHE MÉDICO","PARCHE MÉDICO 3M OCULAR OPTICLUDE ADULTO 200 UNIDADES",6831,1120000]
["http://www.mercadopublico.cl/TiendaFicha/Ficha?idProducto=",1267097,"http://www.mercadopublico.cl/TiendaFicha/Ficha?idProducto=1267097",1267097,"PARCHE MÉDICO","PARCHE MÉDICO 3M OCULAR OPTICLUDE PEQUEÑO 4005 200 UNIDADES",6831,1125000]
["http://www.mercadopublico.cl/TiendaFicha/Ficha?idProducto=",1267098,"http://www.mercadopublico.cl/TiendaFicha/Ficha?idProducto=1267098",1267098,"PARCHE MÉDICO","PARCHE MÉDICO 3M PARCHE ADHESIVO CIRCULAR 1000 UNIDADES",6831,1130000]
["http://www.mercadopublico.cl/TiendaFicha/Ficha?idProducto=",1267092,"http://www.mercadopublico.cl/TiendaFicha/Ficha?idProducto=1267092",1267092,"PARCHE MÉDICO","PARCHE MÉDICO 3M ADHESIVO CIRCULAR 1000 UNIDADES",6831,1135000]
["http://www.mercadopublico.cl/TiendaFicha/Ficha?idProducto=",1267099,"http://www.mercadopublico.cl/TiendaFicha/Ficha?idProducto=1267099",1267099,"PARCHE MÉDICO","PARCHE MÉDICO 3M PARCHE ADHESIVO RECTANGULAR 1000 UNIDADES",6831,1140000]
["http://www.mercadopublico.cl/TiendaFicha/Ficha?idProducto=",1267093,"http://www.mercadopublico.cl/TiendaFicha/Ficha?idProducto=1267093",1267093,"PARCHE MÉDICO","PARCHE MÉDICO 3M ADHESIVO RECTANGULAR 1000 UNIDADES",6831,1145000]
["http://www.mercadopublico.cl/TiendaFicha/Ficha?idProducto=",1267096,"http://www.mercadopublico.cl/TiendaFicha/Ficha?idProducto=1267096",1267096,"PARCHE MÉDICO","PARCHE MÉDICO 3M OCULAR OPTICLUDE PEDIÁTRICO 200 UNIDADES",6831,1150000]
["http://www.mercadopublico.cl/TiendaFicha/Ficha?idProducto=",1299927,"http://www.mercadopublico.cl/TiendaFicha/Ficha?idProducto=1299927",1299927,"PLANA QUIRÚRGICA","PLANA QUIRÚRGICA BAIR HUGGER MANTA CUERPO COMPLETO 10 UNIDADES",6820,1155000]
["http://www.mercadopublico.cl/TiendaFicha/Ficha?idProducto=",1299926,"http://www.mercadopublico.cl/TiendaFicha/Ficha?idProducto=1299926",1299926,"PLANA QUIRÚRGICA","PLANA QUIRÚRGICA BAIR HUGGER MANTA BAJO PACIENTE ACCESO COMPLETO 5 UNIDADES",6820,1160000]
["http://www.mercadopublico.cl/TiendaFicha/Ficha?idProducto=",1370320,"http://www.mercadopublico.cl/TiendaFicha/Ficha?idProducto=1370320",1370320,"PLANA QUIRÚRGICA","PLANA QUIRÚRGICA 3M PAQUETE LASIK CON 2 BATAS, CAJA DE 6 UNIDADES",6820,1165000]
["http://www.mercadopublico.cl/TiendaFicha/Ficha?idProducto=",1370327,"http://www.mercadopublico.cl/TiendaFicha/Ficha?idProducto=1370327",1370327,"PLANA QUIRÚRGICA","PLANA QUIRÚRGICA 3M 1020 STERI-DRAPE OFTÁLMICO PERFORADO DE 6,3 CM, CAJA DE 10 UNIDADES",6820,1170000]
["http://www.mercadopublico.cl/TiendaFicha/Ficha?idProducto=",1267159,"http://www.mercadopublico.cl/TiendaFicha/Ficha?idProducto=1267159",1267159,"PLANA QUIRÚRGICA","PLANA QUIRÚRGICA 3M PAQUETE 3 BATAS UNIVERSAL 4 UNIDADES",6820,1175000]
["http://www.mercadopublico.cl/TiendaFicha/Ficha?idProducto=",1370325,"http://www.mercadopublico.cl/TiendaFicha/Ficha?idProducto=1370325",1370325,"PLANA QUIRÚRGICA","PLANA QUIRÚRGICA 3M 1040 STERI-DRAPE DE 60 X 35 CM, CAJA 10 UNIDADES",6820,1180000]
["http://www.mercadopublico.cl/TiendaFicha/Ficha?idProducto=",1370322,"http://www.mercadopublico.cl/TiendaFicha/Ficha?idProducto=1370322",1370322,"PLANA QUIRÚRGICA","PLANA QUIRÚRGICA 3M PAQUETE UNIVERSAL, CAJA DE 5 UNIDADES",6820,1185000]
["http://www.mercadopublico.cl/TiendaFicha/Ficha?idProducto=",1267157,"http://www.mercadopublico.cl/TiendaFicha/Ficha?idProducto=1267157",1267157,"PLANA QUIRÚRGICA","PLANA QUIRÚRGICA 3M PAQUETE 3 BATAS ARTROSCOPIA DE HOMBRO 3 UNIDADES",6820,1190000]
["http://www.mercadopublico.cl/TiendaFicha/Ficha?idProducto=",1267164,"http://www.mercadopublico.cl/TiendaFicha/Ficha?idProducto=1267164",1267164,"QUITA SUTURA","QUITA SUTURA 3M REMOVEDOR DE CORCHETE METÁLICO PRECISE SR-1 10 UNIDADES",6839,1195000]
["http://www.mercadopublico.cl/TiendaFicha/Ficha?idProducto=",1267166,"http://www.mercadopublico.cl/TiendaFicha/Ficha?idProducto=1267166",1267166,"QUITA SUTURA","QUITA SUTURA 3M SACACORCHETES PRECISE 10 UNIDADES",6839,1200000]
["http://www.mercadopublico.cl/TiendaFicha/Ficha?idProducto=",1267179,"http://www.mercadopublico.cl/TiendaFicha/Ficha?idProducto=1267179",1267179,"SELLADOR DE ESTERILIZACIÓN","SELLADOR DE ESTERILIZACIÓN BAIR HUGGER UNIDAD DE CALENTAMIENTO C/ CARRO 77514 UNIDAD",6826,1205000]
["http://www.mercadopublico.cl/TiendaFicha/Ficha?idProducto=",1267183,"http://www.mercadopublico.cl/TiendaFicha/Ficha?idProducto=1267183",1267183,"SELLADOR DE ESTERILIZACIÓN","SELLADOR DE ESTERILIZACIÓN 3M COMPLY CINTA EXPOSICION AUTOCLAVE 1322-18MM X 55 M 28 ROLLOS",6826,1210000]
["http://www.mercadopublico.cl/TiendaFicha/Ficha?idProducto=",1267178,"http://www.mercadopublico.cl/TiendaFicha/Ficha?idProducto=1267178",1267178,"SELLADOR DE ESTERILIZACIÓN","SELLADOR DE ESTERILIZACIÓN 3M ATTEST INCUBADORA PARA AUTOCLAVE 118 UNIDAD",6826,1215000]
["http://www.mercadopublico.cl/TiendaFicha/Ficha?idProducto=",1267175,"http://www.mercadopublico.cl/TiendaFicha/Ficha?idProducto=1267175",1267175,"SELLADOR DE ESTERILIZACIÓN","SELLADOR DE ESTERILIZACIÓN 3M ATTEST INCUBADORA LECTURA EXTRA RAPIDA. AUTOCLAVE 490 UNIDAD",6826,1220000]
["http://www.mercadopublico.cl/TiendaFicha/Ficha?idProducto=",1267174,"http://www.mercadopublico.cl/TiendaFicha/Ficha?idProducto=1267174",1267174,"SELLADOR DE ESTERILIZACIÓN","SELLADOR DE ESTERILIZACIÓN 3M APLICADOR DE ETIQUETAS INCHEQUE 1256B UNIDAD",6826,1225000]
["http://www.mercadopublico.cl/TiendaFicha/Ficha?idProducto=",1267186,"http://www.mercadopublico.cl/TiendaFicha/Ficha?idProducto=1267186",1267186,"SELLADOR DE ESTERILIZACIÓN","SELLADOR DE ESTERILIZACIÓN 3M SELLADORA 3000SK UNIDAD",6826,1230000]
["http://www.mercadopublico.cl/TiendaFicha/Ficha?idProducto=",1267182,"http://www.mercadopublico.cl/TiendaFicha/Ficha?idProducto=1267182",1267182,"SELLADOR DE ESTERILIZACIÓN","SELLADOR DE ESTERILIZACIÓN 3M CLIPPER CUCHILLO CORTADOR DE VELLO 9681 UNIDAD",6826,1235000]
["http://www.mercadopublico.cl/TiendaFicha/Ficha?idProducto=",1267180,"http://www.mercadopublico.cl/TiendaFicha/Ficha?idProducto=1267180",1267180,"SELLADOR DE ESTERILIZACIÓN","SELLADOR DE ESTERILIZACIÓN 3M CLEAN-TRACE LUMINÓMETRO NGI HOSPITAL NGI UNIDAD",6826,1240000]
["http://www.mercadopublico.cl/TiendaFicha/Ficha?idProducto=",1267176,"http://www.mercadopublico.cl/TiendaFicha/Ficha?idProducto=1267176",1267176,"SELLADOR DE ESTERILIZACIÓN","SELLADOR DE ESTERILIZACIÓN 3M ATTEST INCUBADORA LECTURA RAPIDA. AUTOCLAVE 390 UNIDAD",6826,1245000]
["http://www.mercadopublico.cl/TiendaFicha/Ficha?idProducto=",1267177,"http://www.mercadopublico.cl/TiendaFicha/Ficha?idProducto=1267177",1267177,"SELLADOR DE ESTERILIZACIÓN","SELLADOR DE ESTERILIZACIÓN 3M ATTEST INCUBADORA LECTURA RAPIDA. ÓXIDO DE ETILENO 390G UNIDAD",6826,1250000]
["http://www.mercadopublico.cl/TiendaFicha/Ficha?idProducto=",1267181,"http://www.mercadopublico.cl/TiendaFicha/Ficha?idProducto=1267181",1267181,"SELLADOR DE ESTERILIZACIÓN","SELLADOR DE ESTERILIZACIÓN 3M CLIPPER CUCHILLO CORTADOR 9683 CARGADOR UNIDAD",6826,1255000]
["http://www.mercadopublico.cl/TiendaFicha/Ficha?idProducto=",1267205,"http://www.mercadopublico.cl/TiendaFicha/Ficha?idProducto=1267205",1267205,"SUTURA","SUTURA 3M CUTANEA ADHESIVA 6 MM X 7,5 CM STERI STRIP E4541 50 UNIDADES",6834,1260000]
["http://www.mercadopublico.cl/TiendaFicha/Ficha?idProducto=",1267200,"http://www.mercadopublico.cl/TiendaFicha/Ficha?idProducto=1267200",1267200,"SUTURA","SUTURA 3M CUTANEA ADHESIVA 25 MM X 12,5 CM STERI STRIP R1548 25 UNIDADES",6834,1265000]
["http://www.mercadopublico.cl/TiendaFicha/Ficha?idProducto=",1267204,"http://www.mercadopublico.cl/TiendaFicha/Ficha?idProducto=1267204",1267204,"SUTURA","SUTURA 3M CUTANEA ADHESIVA 6 MM X 3,8 CM STERI STRIP R1542 50 UNIDADES",6834,1270000]
["http://www.mercadopublico.cl/TiendaFicha/Ficha?idProducto=",1267202,"http://www.mercadopublico.cl/TiendaFicha/Ficha?idProducto=1267202",1267202,"SUTURA","SUTURA 3M CUTANEA ADHESIVA 6 MM X 3,8 CM STERI STRIP E4542 50 UNIDADES",6834,1275000]
["http://www.mercadopublico.cl/TiendaFicha/Ficha?idProducto=",1267198,"http://www.mercadopublico.cl/TiendaFicha/Ficha?idProducto=1267198",1267198,"SUTURA","SUTURA 3M CUTANEA ADHESIVA 12 MM X 10 CM STERI STRIP R1547 50 UNIDADES",6834,1280000]
["http://www.mercadopublico.cl/TiendaFicha/Ficha?idProducto=",1267199,"http://www.mercadopublico.cl/TiendaFicha/Ficha?idProducto=1267199",1267199,"SUTURA","SUTURA 3M CUTANEA ADHESIVA 12 MM X 4,7 CM STERI STRIP W8516 25 UNIDADES",6834,1285000]
["http://www.mercadopublico.cl/TiendaFicha/Ficha?idProducto=",1267201,"http://www.mercadopublico.cl/TiendaFicha/Ficha?idProducto=1267201",1267201,"SUTURA","SUTURA 3M CUTANEA ADHESIVA 6 MM X 10 CM STERI STRIP R1546 50 UNIDADES",6834,1290000]
["http://www.mercadopublico.cl/TiendaFicha/Ficha?idProducto=",1267203,{"$f":"CONCATENATE(A258,B258)","v":"http://www.mercadopublico.cl/TiendaFicha/Ficha?idProducto=1267203"},{"$f":"HYPERLINK(C258,B258)","v":1267203},"SUTURA","SUTURA 3M CUTANEA ADHESIVA 6 MM X 3,8 CM STERI STRIP R1542 50 UNIDADES",6834,1295000]
["http://www.mercadopublico.cl/TiendaFicha/Ficha?idProducto=",1267206,"http://www.mercadopublico.cl/TiendaFicha/Ficha?idProducto=1267206",1267206,"SUTURA","SUTURA 3M CUTANEA ADHESIVA 6 MM X 7,5 CM STERI STRIP R1541 50 UNIDADES",6834,1300000]
["http://www.mercadopublico.cl/TiendaFicha/Ficha?idProducto=",1267320,"http://www.mercadopublico.cl/TiendaFicha/Ficha?idProducto=1267320",1267320,"TIJERA QUIRÚRGICA","TIJERA QUIRÚRGICA 3M CUCHILLO CORTADOR DE VELLO CLIPPER 9680 50 UNIDADES",6821,{"$f":" H259+5000","v":1305000}]
["http://www.mercadopublico.cl/TiendaFicha/Ficha?idProducto=",1515382,"http://www.mercadopublico.cl/TiendaFicha/Ficha?idProducto=1515382",1515382,"TUBO PARA ESTERILIZACIÓN","TUBO PARA ESTERILIZACIÓN ATTEST 3M 1295 CONTROL BIOLÓGICO PARA VH2O2 PERÓXIDO SOBRE 30 UN UNIDAD",6827,1310000]
["http://www.mercadopublico.cl/TiendaFicha/Ficha?idProducto=",1267447,"http://www.mercadopublico.cl/TiendaFicha/Ficha?idProducto=1267447",1267447,"TUBO PARA ESTERILIZACIÓN","TUBO PARA ESTERILIZACIÓN 3M CARTUCHO DE OXIDO DE ETILENO DESECHABLE STERI-GAS 8-170 12 UNIDADES",6827,1315000]
["http://www.mercadopublico.cl/TiendaFicha/Ficha?idProducto=",1267446,"http://www.mercadopublico.cl/TiendaFicha/Ficha?idProducto=1267446",1267446,"TUBO PARA ESTERILIZACIÓN","TUBO PARA ESTERILIZACIÓN 3M CARTUCHO DE GAS DE OXIDO DE ETILENO STERI-GAS 4-100 12 UNIDADES",6827,1320000]
["http://www.mercadopublico.cl/TiendaFicha/Ficha?idProducto=",1267501,"http://www.mercadopublico.cl/TiendaFicha/Ficha?idProducto=1267501",1267501,"VENDA","VENDA NEXCARE COMPRESA FRIO CALOR 10 UNIDADES",6833,1325000]
["http://www.mercadopublico.cl/TiendaFicha/Ficha?idProducto=",1267453,"http://www.mercadopublico.cl/TiendaFicha/Ficha?idProducto=1267453",1267453,"VENDA","VENDA 3M MULTICAPA COBAN2 1 SISTEMA DE VENDAJE UNIDAD",6833,1330000]
["http://www.mercadopublico.cl/TiendaFicha/Ficha?idProducto=",1267449,"http://www.mercadopublico.cl/TiendaFicha/Ficha?idProducto=1267449",1267449,"VENDA","VENDA 3M COBAN 1583, 7,5 CM X 4,6 M 24 ROLLOS",6833,1335000]
["http://www.mercadopublico.cl/TiendaFicha/Ficha?idProducto=",1370316,"http://www.mercadopublico.cl/TiendaFicha/Ficha?idProducto=1370316",1370316,"VENDA","VENDA 3M 2094 SISTEMA COMPRESIVO COBAN 2 LAYER, CAJA DE 8 UNIDADES",6833,1340000]
["http://www.mercadopublico.cl/TiendaFicha/Ficha?idProducto=",1267451,"http://www.mercadopublico.cl/TiendaFicha/Ficha?idProducto=1267451",1267451,"VENDA","VENDA 3M COBAN 1584S, 10 CM X 4,6 M ESTÉRIL  18 ROLLOS",6833,1345000]
["http://www.mercadopublico.cl/TiendaFicha/Ficha?idProducto=",1267450,"http://www.mercadopublico.cl/TiendaFicha/Ficha?idProducto=1267450",1267450,"VENDA","VENDA 3M COBAN 1584, 10 CM X 4,6 M 18 ROLLOS",6833,1350000]
["http://www.mercadopublico.cl/TiendaFicha/Ficha?idProducto=",1267452,"http://www.mercadopublico.cl/TiendaFicha/Ficha?idProducto=1267452",1267452,"VENDA","VENDA 3M COBAN 2094 2 CAPAS UNIDAD",6833,1355000]
["http://www.mercadopublico.cl/TiendaFicha/Ficha?idProducto=",1267448,"http://www.mercadopublico.cl/TiendaFicha/Ficha?idProducto=1267448",1267448,"VENDA","VENDA 3M COBAN 1582, 5 CM X 4,6 M 36 ROLLOS",6833,1360000]
["http://www.mercadopublico.cl/TiendaFicha/Ficha?idProducto=",1515363,"http://www.mercadopublico.cl/TiendaFicha/Ficha?idProducto=1515363",1515363,"LIMPIADOR DE HERIDAS","LIMPIADOR DE HERIDAS SOLUPREP 3M 10209 TÓRULA IMPREGNADA C/SOLUCIÓN ANTISÉPTICA COLOREADA CAJA 30 U",null,1365000]

{"sheet":"MATERIALES","index":7,"n_rows":18,"n_cols":11,"rows_kept":18,"cut":false,"hidden":false,"merged":[[17,3,17,4],[0,0,0,4],[0,6,0,10],[13,2,13,3],[13,8,13,9],[16,3,16,4]]}
["MATERIALES DE SUTURA Y CURACION - CONSUMO 1a Cirugia ",null,null,null,null,null,"MATERIALES DE SUTURA Y CURACION - CONSUMO 1a Cirugia "]
["CODIGO","DETALLE","CANTIDAD","VR UNIT","VR TOTAL",null,"CODIGO","DETALLE","CANTIDAD","VR UNIT","VR TOTAL"]
[1266151,{"$f":"VLOOKUP(A3,INSUMOS,3,FALSE)","v":"APÓSITO 3M ALGINATO DE CALCIO EN PLACA TEGADERM 90112 10 X 10 CM 10 UNIDADES "},0.5,55000,{"$f":"D3*C3","v":27500},null,1266164,{"$f":"VLOOKUP(G3,INSUMOS,3,FALSE)","v":"APÓSITO 3M HIDROCOLOIDE THIN OVALADO TEGADERM 90023 10 X 12 CM 10 UNIDADES"},0.5,75000,{"$f":"J3*I3","v":37500}]
[1266482,{"$f":"IF(A4=\"\",\"\",VLOOKUP(A4,INSUMOS,3,FALSE))","v":"ELECTRODO 3M MONITORIZACIÓN RED DOT CON BROCHE DE CARBONO 5 UNIDADES"},0.2,640000,{"$f":"D4*C4","v":128000},null,1266161,{"$f":"IF(G4=\"\",\"\",VLOOKUP(G4,INSUMOS,3,FALSE))","v":"APÓSITO 3M HIDROCOLOIDE OVALADO TEGADERM STANDARD 90001 7 X 9 CM 5 UNIDADES"},1,50000,{"$f":"J4*I4","v":50000}]
[1266482,"ELECTRODO 3M MONITORIZACIÓN RED DOT CON BROCHE DE CARBONO 5 UNIDADES",null,null,0,null,null,"",null,null,{"$f":"J5*I5","v":0}]
[null,"",null,null,0,null,null,"",null,{"$f":"IF(G6=0,0,VLOOKUP(G6,INSUMOS,5,FALSE))","v":0},0]
[null,"",null,null,0,null,null,"",null,0,0]
[null,"",null,null,0,null,null,"",null,0,0]
[null,"",null,null,0,null,null,"",null,0,0]
[null,"",null,null,0,null,null,"",null,0,0]
[null,"",null,null,0,null,null,"",null,0,0]
[null,"",null,null,0,null,null,"",null,0,0]
[null,"",null,null,0,null,null,"",null,0,0]
[null,null,"TOTAL PRIMERA CIRUGIA ",null,{"$f":"SUM(E3:E13)","v":155500},null,null,null,"TOTAL SEGUNDA CIRUGIA ",null,{"$f":"SUM(K3:K13)","v":87500}]
[]
["CODIGO","PROCEDIMIENTO ","UVR","VR. MATERIALES",null,"DETALLE "]
[{"$f":"'INFORMACION '!C10","v":28500},{"$f":"VLOOKUP(A17,ISS,2,FALSE)","v":"EXTRACCIÓN DE TRACTOR CEFALICO [HALO CHALECO] SOD "},{"$f":"VLOOKUP(A17,ISS,3,FALSE)","v":35},{"$f":"IF(C17>=170,E14,VLOOKUP(C17,MATERIALES,2,TRUE))","v":32005},null,{"$f":"CONCATENATE(\"Materiales \",B17)","v":"Materiales EXTRACCIÓN DE TRACTOR CEFALICO [HALO CHALECO] SOD "}]
[{"$f":"'INFORMACION '!C13","v":373301},{"$f":"IF(A18=\"\",\"\",VLOOKUP(A18,ISS,2,FALSE))","v":"ESCISION DE TUMOR DEL CORAZON   (75) "},{"$f":"IF(A18=\"\",\"\",VLOOKUP(A18,ISS,3,FALSE))","v":400},{"$f":"IF(C18>=170,K14,VLOOKUP(C18,MATERIALES,2,TRUE))","v":87500},null,{"$f":"CONCATENATE(\"Materiales \",B18)","v":"Materiales ESCISION DE TUMOR DEL CORAZON   (75) "}]

{"sheet":"Facturacion ","index":8,"n_rows":18,"n_cols":5,"rows_kept":18,"cut":false,"hidden":false,"merged":[[8,0,8,5],[2,0,2,5],[7,0,7,5],[6,2,6,5],[0,0,0,5],[1,0,1,2],[3,1,3,3],[4,0,4,1],[6,0,6,1],[9,0,9,1],[11,0,11,1],[12,0,12,1],[13,0,13,1],[10,0,10,1],[15,0,15,1],[14,0,14,5],[17,0,19,1],[17,2,19,3],[17,4,19,5],[16,0,16,5],[15,4,15,5],[9,4,9,5],[10,4,10,5],[11,4,11,5],[12,4,12,5],[13,4,13,5]]}
["CLINICA LA PELIGROSA - NIT 819.000.001"]
["FACTURA DE SERVICIO Nº",null,null,null,"Fecha:"]
[]
["Cliente:",null,null,null,"RUT:"]
["Direccion",null,"Telefono:",null,"Contacto:"]
["Paciente:",null,"Identificacion:",null,"Autorizacion:"]
["PROCEDIMIENTO REALIZADOS",null,"EXTRACCIÓN DE TRACTOR CEFALICO [HALO CHALECO] SOD "]
[]
["LIQUIDACION DE SERVICIOS"]
["Derecho de Sala "]
["Honorarios Cirujanos"]
["Honorarioan Anestesiologo"]
["Honorarios Ayudantes"]
["Materiales"]
[]
["TOTAL FACTURADO",null,null,null,{"$f":"SUM(E10:F14)","v":0}]
[]
["Firmado Recibido",null,"Firma Paciente ",null,"Autorizado"]

{"sheet":"Facturacion Multiple","index":9,"n_rows":25,"n_cols":5,"rows_kept":25,"cut":false,"hidden":false,"merged":[[7,0,7,1],[6,0,6,1],[7,2,7,5],[6,2,6,5],[0,0,0,5],[1,0,1,2],[2,0,2,5],[3,1,3,3],[4,0,4,1],[23,0,23,5],[24,0,26,1],[24,2,26,3],[24,4,26,5],[8,0,8,5],[9,0,9,5],[10,0,10,1],[11,0,11,1],[13,0,13,1],[16,0,16,1],[12,0,12,1],[14,0,14,1],[15,0,15,1],[16,4,16,5],[22,4,22,5],[10,4,10,5],[11,4,11,5],[12,4,12,5],[13,4,13,5],[14,4,14,5],[15,4,15,5],[21,0,21,5],[22,0,22,1],[17,4,17,5],[18,4,18,5],[19,4,19,5],[20,4,20,5],[17,0,17,1],[18,0,18,1],[19,0,19,1],[20,0,20,1]]}
["CLINICA LA PELIGROSA - NIT 819.000.001"]
["FACTURA DE SERVICIO Nº",null,null,null,"Fecha:"]
[]
["Cliente:",null,null,null,"RUT:"]
["Direccion",null,"Telefono:",null,"Contacto:"]
["Paciente:",null,"Identificacion:",null,"Autorizacion:"]
["CIRUGIA No 1"]
["CIRUGIA No 2"]
[]
["LIQUIDACION DE SERVICIOS"]
["Derecho de Sala Primera Cirugia "]
["Derecho de Sala Segunda Cirugia "]
["Honorarios Cirujano Principal"]
["Honorarios Segunda Cirugia"]
["Honorario Anestesia Primera Cirugia"]
["Honorario Anestesia Segunda Cirugia"]
["Honorarios Ayudantes Primera Cirugia"]
["Honorarios AyudantesSegunda Cirugia"]
["Materiales Primera Cirugia"]
["Materiales Segunda Cirugia"]
["Sala",null,null,null,{"$f":"SUM(E11:F20)","v":0}]
[]
["TOTAL FACTURADO"]
[]
["Firmado Recibido",null,"Firma Paciente ",null,"Autorizado"]

{"sheet":"Hoja1","index":10,"n_rows":2,"n_cols":10,"rows_kept":2,"cut":false,"hidden":false,"merged":[]}
[2,2,2,"NO",352200,{"$f":"VLOOKUP(E1,ISS,2,FALSE)","v":"REEMPLAZO DE VALVULA MITRAL CON PROTESIS O BIOPROTESIS (AUTOLOGA O HETEROLOGA) SOD "},{"$f":"VLOOKUP(E1,ISS,3,FALSE)","v":450},373301,{"$f":"IF(A1=1,\"SOLO TIENE REGISTRADA UNA(1) CX\",VLOOKUP(H1,ISS,2,FALSE))","v":"ESCISION DE TUMOR DEL CORAZON   (75) "},{"$f":"IF(G1<VLOOKUP(H1,ISS,3,FALSE),\"LA PRIMERA CX ES DE MENOR VALOR, CORREGIR EL ORDEN\",VLOOKUP(H1,ISS,3,FALSE))","v":400}]
[1,2,1,"SI",33100,{"$f":"VLOOKUP(E2,ISS,2,FALSE)","v":"PUNCION LUMBAR SOD * "},{"$f":"VLOOKUP(E2,ISS,3,FALSE)","v":40},39001,{"$f":"IF(A2=1,\"SOLO TIENE REGISTRADA UNA(1) CX\",VLOOKUP(H2,ISS,2,FALSE))","v":"SOLO TIENE REGISTRADA UNA(1) CX"},{"$f":"IF(G2<VLOOKUP(H2,ISS,3,FALSE),\"LA PRIMERA CX ES DE MENOR VALOR, CORREGIR EL ORDEN\",VLOOKUP(H2,ISS,3,FALSE))","v":"LA PRIMERA CX ES DE MENOR VALOR, CORREGIR EL ORDEN"}]

{"sheet":"Hoja4","index":11,"n_rows":0,"n_cols":0,"rows_kept":0,"cut":false,"hidden":false,"merged":[]}

{"sheet":"Hoja3","index":12,"n_rows":3,"n_cols":6,"rows_kept":3,"cut":false,"hidden":false,"merged":[]}
["CODIGO","DETALLE","UVR","BILATERAL"]
[383501,"RESECCION CON ANASTOMOSIS EN VASOS ESPINALES, SEGMENTO CERVICAL (77) ",585,null,824850,1113547.5]
[373301,"ESCISION DE TUMOR DEL CORAZON   (75) ",400,"NO"]